{"text_format":"3","workbook":"xlsx","n_sheets":12,"sheets":["Schedule A - P&G","Schedule B - Automation","Schedule C - Electrical","Schedule D - Civil","Schedule E - Mechanical ","Schedule F - Quality","Schedule G - H&S","Schedule  H-Environmental","Sheet2","Sheet1","Summary","Mechanical"],"not_rendered":{"images":1,"external_links":4,"defined_names":274},"read":"whole","date_system":"1900"}

{"sheet":"Schedule A - P&G","index":0,"n_rows":55,"n_cols":17,"rows_kept":55,"merged":[[1,1,1,6],[1,9,1,11],[3,2,3,5],[3,9,3,11],[51,2,52,2]]}
[]
[null,"TENDER FOR THE DESIGN, MANUFACTURE, SUPPLY, DELIVERY, INSTALLATION, CONSTRUCTION, CONFIGURATION, TESTING AND COMMISSSIONING OF TELEMETRY SYSTEMS AND BUILDINGS FOR ALL RAND WATER BWD RESERVOIRS SITES  AND MUNICIPALITIES RESERVOIRS"]
[]
[{"$nulls":6},"Schedule A: P&G"]
[]
["Item","Payment","Description","Unit","Qty","Rate","Amount"]
["No.","Refers"]
[]
[null,null,"PRELIMINARY & GENERAL FIXED CHARGES"]
[]
[null,null,"PRELIMINARY & GENERAL FIXED CHARGES"]
[]
["1.1",null,"Site Establishment and Facilities                                                       ","Sum",1]
["1.2",null,"Plant and Equipment","Sum",1]
["1.3",null,"Project Management & Contract Administration","Sum",1]
["1.4",null,"Contractual Obligation","Sum",1]
[]
[1.5,null,"Documentation"]
[]
["1.5.1",null,"Documentation (Automation, Architecture, Electrical, Civil and Mechanical) including but not limited to the list below:","Sum",1]
["1.5.2",null,"Design Documents (including Design Philosophy, Calculations, Drawings, Schedules, etc.)","Sum",1]
["1.5.3",null,"Cold and Hot Commissioning Documentation","Sum",1]
["1.5.4",null,"Operating and Maintenance Manuals","Sum",1]
["1.5.5",null,"Data Books","Sum",1]
[]
[1.6,null,"Provisional Sums"]
[]
["1.6.1",null,"Provisional sum for relocation of existing services ","Prov. Sum",1,{"v":500000,"d":"500,000.00"},{"v":500000,"d":"500,000.00"}]
["1.6.2",null,"Contractors mark-up on item 1.6.1 above.","%"]
[]
["1.6.3",null,"Provisional sum for supervision during the contract","Prov.Sum",1,{"v":2000000,"d":"2,000,000.00"},{"v":2000000,"d":"2,000,000.00"}]
["1.6.4",null,"Contractors mark-up on item 1.6.3 above.","%"]
[]
["1.6.5",null,"Provisional sum for testing equipment prior to installation. (As and when required).","Prov. Sum",1,{"v":1000000,"d":"1,000,000.00"},{"v":1000000,"d":"1,000,000.00"}]
["1.6.6",null,"Contractors mark-up on item 1.6.5 above.","%"]
[]
["1.6.7",null,"Provisional sum for review of all equipment against the manufacturers specification & operational capacity.","Prov. Sum",null,{"v":1500000,"d":"1,500,000.00"},{"v":1500000,"d":"1,500,000.00"}]
["1.6.8",null,"Contractors mark-up on item 1.6.7 above.","%"]
[]
["1.6.7",null,"Provisional sum for review of all equipment against the manufacturers specification & operational capacity.","Prov. Sum",null,{"v":1500000,"d":"1,500,000.00"},{"v":1500000,"d":"1,500,000.00"}]
["1.6.8",null,"Contractors mark-up on item 1.6.7 above.","%"]
[]
[]
[]
[1.7,null,"Legislative Requirements"]
[]
["1.7.1",null,"Full compliance to legislative requirements as well as Rand Water and External Standards referred to in this contract document. This shall include but not limited to the list below:","Sum",1]
[{"$nulls":3},"Sum",1]
["1.7.2",null,"Environmental Management Plan","Sum",1]
["1.7.3",null,"Quality Control Plan","Sum",1]
["1.7.4",null,"Rand Water and External Standard referred to in this contract document","Sum",1]
["1.7.5",null,"Other Legislative Requirements (Specify)","Sum",1]
["1.7.6",null,null,"Sum",1]
[{"$nulls":15},{"$f":"208000*0.1","v":20800},{"$f":"P54/10","v":2080}]
["1.8",null,"Training of Rand Water Personnel (Inclusive of training manuals)","Sum",1]

{"sheet":"Schedule B - Automation","index":1,"n_rows":710,"n_cols":9,"rows_kept":710,"merged":[[1,1,1,8],[2,11,2,13],[3,11,3,13],[5,0,6,0],[5,1,6,1],[5,5,6,5],[5,6,6,6],[5,7,6,7]]}
[]
[null,{"$f":"'Schedule A - P&G'!B2:G2","v":"TENDER FOR THE DESIGN, MANUFACTURE, SUPPLY, DELIVERY, INSTALLATION, CONSTRUCTION, CONFIGURATION, TESTING AND COMMISSSIONING OF TELEMETRY SYSTEMS AND BUILDINGS FOR ALL RAND WATER BWD RESERVOIRS SITES  AND MUNICIPALITIES RESERVOIRS"}]
[]
[{"$nulls":8},"Schedule B: Automation"]
[]
["Item   No.","System Specifcation Clause","Description","Unit","Qty","Design Rate","Manufacture, Supply & Delivery Rate","Installation, Configuration, Testing & Commissioning Rate","Total Amount"]
[]
[]
[null,null,"Automation Equipment"]
[]
["1","SS 2.3.1.1.1","The Contractor shall design and supply all Automation design requirements and all quality documents.","Sum",1]
["2","SS 2.3.1.1.2","The Contractor shall put into operation the Ethernet network system as shown on the BWD Telemetry Automation network layout drawing RA_39497.","Sum",1]
["3","SS 2.3.1.1.3","The Contractor shall put into operation one wireless GPRS/GSM modem or VSAT (Very Small Aperture Terminal) Satellite solution for receiving data from the Rustenburg South, Thlabane and Boosport Reservoir sites as shown on the BWD Telemetry Automation network layout drawing RA_39497 and BWD Overall Regional Reservoirs Automation network layout drawing RO_39638.","Sum",1]
["4","SS 2.3.1.1.4","The Contractor shall put into operation the SCADA system at Townlands Pumping Station Control Room as shown on the BWD Telemetry Automation network layout drawing RA_39497.","Sum",1]
["5","SS 2.3.1.1.5","The Contractor shall put into operation one (1) BWD Telemetry Communication Panel with all components as shown on the BWD Telemetry Communication Panel General Arrangement drawing RA_39498.","Sum",1]
["6","SS 2.3.1.1.6","The Contractor shall put into operation two (2) power supplies as shown on the BWD Telemetry Communication Panel drawing RA_39498.","Sum",1]
["7","SS 2.3.1.1.7","The Contractor shall put into operation the din-railed uninterrupted power supply (UPS) as shown on the BWD Telemetry Automation network layout drawing RA_39497.","Sum",1]
["8","SS 2.3.1.1.8","The Contractor shall design, supply, deliver, install, test and commission of all low voltage power and control cabling including earthing.","Sum",1]
["9","SS 2.3.1.1.9"," The Contractor shall supply, deliver, install, test and commission the SCADA PC at Townlands Pumping Station Control Room as shown on the BWD Telemetry Automation network layout drawing RA_39497.","Sum",1]
["10","SS 2.3.1.2.1"," The Contractor shall design and supply all Automation design requirements and quality documents including, but not limited to all the items as mentioned in Section 6.3.","Sum",1]
["11","SS 2.3.1.2.2.1"," The Contractor shall put into operation one (1) ultrasonic level sensor and transmitter for Rustenburg South Reservoir-1 level measurement as shown on the BWD Telemetry Automation network layout drawing RA_39497.","Sum",1]
["12","SS 2.3.1.2.2.2","The Contractor shall put into operation one (1) radar level sensor and transmitter for Rustenburg South Reservoir-1 level measurement as shown on the BWD Telemetry Automation network layout drawing RA_39497.","Sum",1]
["13","SS 2.3.1.2.3","The Contractor shall put into operation the wireless network for linking the wireless level transmitters and wireless radio receiver as shown on the BWD Telemetry Automation network layout drawing RA_39497.","Sum",1]
["14","SS 2.3.1.2.4","The Contractor shall put into operation the Ethernet network system as shown on the BWD Telemetry Automation network layout drawing RA_39497.","Sum",1]
["15","SS 2.3.1.2.5","The Contractor shall put into operation one wireless GPRS/GSM modem for transmitting data to Central Depot Control Room and Townlands Pumping Station Control Room as shown on the BWD Telemetry Automation network layout drawing RA_39497.","Sum",1]
["16","SS 2.3.1.2.6","The Contractor shall put into operation the SCADA system at Central Depot Control Room and Townlands Pumping Station Control Room as shown on the BWD Telemetry Automation network layout drawing RA_39497.","Sum",1]
["17","SS 2.3.1.2.7","The Contractor shall put into operation one (1) BWD Telemetry Communication Panel with all components as shown on the BWD Telemetry Communication Panel General Arrangement drawing RA_39498 and BWD Telemetry Building Site Plan RA_39634.","Sum",1]
["18","SS 2.3.1.2.8","The Contractor shall put into operation one (1) BWD Junction Box with all components for Rustenburg South Reservoir-1 as shown on the BWD Reservoir Junction Box drawing RA_39500.","Sum",1]
["19","SS 2.3.1.2.9","The Contractor shall put into operation one (1) BWD Reservoir Automation Kiosk for the level transmitters for Rustenburg South Reservoir-1 as shown on the BWD Reservoir Automation Kiosk General Arrangement Drawing RA_29317-001.","Sum",1]
["20","SS 2.3.1.2.10","The Contractor shall put into operation two (2) power supplies as shown on the BWD Telemetry Communication Panel drawing RA_39498.","Sum",1]
["21","SS 2.3.1.2.11","The Contractor shall put into operation the din-railed uninterrupted power supply (UPS) as shown on the BWD Telemetry Automation network layout drawing RA_39497.","Sum",1]
["22","SS 2.3.1.2.12","The Contractor shall design, supply, deliver, install, test and commission of all low voltage power and control cabling including earthing.","Sum",1]
["23","SS 2.3.1.3.1","The Contractor shall design and supply all Automation design requirements and quality documents including, but not limited to all the items as mentioned in Section 6.3.","Sum",1]
["24","SS 2.3.1.3.2.1","The Contractor shall put into operation two (2) ultrasonic level sensors and transmitters for Waterval Reservoir-1 and Resevoir-2 level measurement as shown on the BWD Telemetry Automation network layout drawing RA_39497.","Sum",1]
["25","SS 2.3.1.3.2.2","The Contractor shall put into operation two (2) radar level sensors and transmitters for Waterval Reservoir-1 and Resevoir-2 level measurement as shown on the BWD Telemetry Automation network layout drawing RA_39497.","Sum",1]
["26","SS 2.3.1.3.3","The Contractor shall put into operation the wireless network for linking the wireless level transmitters and wireless radio receiver as shown on the BWD Telemetry Automation network layout drawing RA_39497.","Sum",1]
["27","SS 2.3.1.3.4","The Contractor shall put into operation the Ethernet network system as shown on the BWD Telemetry Automation network layout drawing RA_39497.","Sum",1]
["28","SS 2.3.1.3.5","The Contractor shall put into operation one wireless GPRS/GSM modem for transmitting data to Central Depot Control Room and Waterval Depot Control Room as shown on the BWD Telemetry Automation network layout drawing RA_39497.","Sum",1]
["29","SS 2.3.1.3.6","The Contractor shall put into operation the SCADA system at Central Depot Control Room and Waterval Depot Control Room as shown on the BWD Telemetry Automation network layout drawing RA_39497.","Sum",1]
["30","SS 2.3.1.3.7","The Contractor shall put into operation one (1) BWD Telemetry Communication Panel with all components as shown on the BWD Telemetry Communication Panel General Arrangement drawing RA_39498 and BWD Telemetry Building Site Plan RA_39634.","Sum",1]
["31","SS 2.3.1.3.8","The Contractor shall put into operation two (2) BWD Junction Boxes with all components for Waterval Reservoir-1 and Resevoir-2 as shown on the BWD Reservoir Junction Box drawing RA_39500.","Sum",1]
["32","SS 2.3.1.3.9","The Contractor shall put into operation two (2) BWD Reservoir Automation Kiosks for the level transmitters for Waterval Reservoir-1 and Resevoir-2 as shown on the BWD Reservoir Automation Kiosk General Arrangement Drawing RA_29317-001.","Sum",1]
["33","SS 2.3.1.3.10","The Contractor shall put into operation two (2) power supplies as shown on the BWD Telemetry Communication Panel drawing RA_39498.","Sum",1]
["34","SS 2.3.1.3.11","The Contractor shall put into operation the din-railed uninterrupted power supply (UPS) as shown on the BWD Telemetry Automation network layout drawing RA_39497.","Sum",1]
["35","SS 2.3.1.3.12","The Contractor shall design, supply, deliver, install, test and commission of all low voltage power and control cabling including earthing.","Sum",1]
["36","SS 2.3.1.3.13","The Contractor shall supply, deliver, install, test and commission the SCADA PC at Waterval Depot Control Room as shown on the BWD Telemetry Automation network layout drawing RA_39497.","Sum",1]
["37","SS 2.3.1.3.14","The Contractor shall put into operation the 316L Stainless Steel Manhole Cover on top of the Waterval Reservoir-1 and Reservoir-2 respectively.","Sum",1]
["38","SS 2.3.1.4.1","The Contractor shall design and supply all Automation design requirements and quality documents including, but not limited to all the items as mentioned in Section 6.3.","Sum",1]
["39","SS 2.3.1.4.2.1","The Contractor shall put into operation one (1) ultrasonic level sensor and transmitter for Weltevreden Reservoir-1 level measurement as shown on the BWD Telemetry Automation network layout drawing RA_39497.","Sum",1]
["40","SS 2.3.1.4.2.2","The Contractor shall put into operation one (1) radar level sensor and transmitter for Weltevreden Reservoir-1 level measurement as shown on the BWD Telemetry Automation network layout drawing RA_39497.","Sum",1]
["41","SS 2.3.1.4.3","The Contractor shall put into operation the wireless network for linking the wireless level transmitters and wireless radio receiver as shown on the BWD Telemetry Automation network layout drawing RA_39497.","Sum",1]
["42","SS 2.3.1.4.4","The Contractor shall put into operation the Ethernet network system as shown on the BWD Telemetry Automation network layout drawing RA_39497.","Sum",1]
["43","SS 2.3.1.4.5"," The Contractor shall put into operation one wireless GPRS/GSM modem for transmitting data to Central Depot Control Room and Waterval Depot Control Room as shown on the BWD Telemetry Automation network layout drawing RA_39497.","Sum",1]
["44","SS 2.3.1.4.6","The Contractor shall put into operation the SCADA system at Central Depot Control Room and Waterval Depot Control Room as shown on the BWD Telemetry Automation network layout drawing RA_39497.","Sum",1]
["45","SS 2.3.1.4.7"," The Contractor shall put into operation one (1) BWD Telemetry Communication Panel with all components as shown on the BWD Telemetry Communication Panel General Arrangement drawing RA_39498 and BWD Telemetry Building Site Plan RA_39634.","Sum",1]
["46","SS 2.3.1.4.8","The Contractor shall put into operation one (1) BWD Junction Box with all components for Weltevreden Reservoir-1 as shown on the BWD Reservoir Junction Box drawing RA_39500.","Sum",1]
["47","SS 2.3.1.4.9","The Contractor shall put into operation one (1) BWD Reservoir Automation Kiosk for the level transmitters for Weltevreden Reservoir-1 as shown on the BWD Reservoir Automation Kiosk General Arrangement Drawing RA_29317-001.","Sum",1]
["48","SS 2.3.1.4.10","The Contractor shall put into operation two (2) power supplies as shown on the BWD Telemetry Communication Panel drawing RA_39498.","Sum",1]
["49","SS 2.3.1.4.11","The Contractor shall put into operation the din-railed uninterrupted power supply (UPS) as shown on the BWD Telemetry Automation network layout drawing RA_39497.","Sum",1]
["50","SS 2.3.1.4.12","The Contractor shall design, supply, deliver, install, test and commission of all low voltage power and control cabling including earthing.","Sum",1]
["51","SS 2.3.1.5.1","The Contractor shall design and supply all Automation design requirements and quality documents including, but not limited to all the items as mentioned in Section 6.3.","Sum",1]
["52","SS 2.3.1.5.2.1","The Contractor shall put into operation one (1) ultrasonic level sensor and transmitter for Roodepoort Reservoir-1 level measurement as shown on the BWD Telemetry Automation network layout drawing RA_39497.","Sum",1]
["53","SS 2.3.1.5.2.2","The Contractor shall put into operation one (1) radar level sensor and transmitter for Roodepoort Reservoir-1 level measurement as shown on the BWD Telemetry Automation network layout drawing RA_39497.","Sum",1]
["54","SS 2.3.1.5.3","The Contractor shall put into operation the wireless network for linking the wireless level transmitters and wireless radio receiver as shown on the BWD Telemetry Automation network layout drawing RA_39497.","Sum",1]
["55","SS 2.3.1.5.4","The Contractor shall put into operation the Ethernet network system as shown on the BWD Telemetry Automation network layout drawing RA_39497.","Sum",1]
["56","SS 2.3.1.5.5","The Contractor shall put into operation one wireless GPRS/GSM modem for transmitting data to Central Depot Control Room and Roodepoort Pumping Station Control Room as shown on the BWD Telemetry Automation network layout drawing RA_39497.","Sum",1]
["57","SS 2.3.1.5.6","The Contractor shall put into operation the SCADA system at Central Depot Control Room and Roodepoort Pumping Station Control Room as shown on the BWD Telemetry Automation network layout drawing RA_39497.","Sum",1]
["58","SS 2.3.1.5.7","The Contractor shall put into operation one (1) BWD Telemetry Communication Panel with all components as shown on the BWD Telemetry Communication Panel General Arrangement drawing RA_39498 and BWD Telemetry Building Site Plan RA_39634.","Sum",1]
["59","SS 2.3.1.5.8","The Contractor shall put into operation one (1) BWD Junction Box with all components for Roodepoort Reservoir-1 as shown on the BWD Reservoir Junction Box drawing RA_39500.","Sum",1]
["60","SS 2.3.1.5.9","The Contractor shall put into operation one (1) BWD Reservoir Automation Kiosk for the level transmitters for Roodepoort Reservoir-1 as shown on the BWD Reservoir Automation Kiosk General Arrangement Drawing RA_29317-001.","Sum",1]
["61","SS 2.3.1.5.10","The Contractor shall put into operation two (2) power supplies as shown on the BWD Telemetry Communication Panel drawing RA_39498.","Sum",1]
["62","SS 2.3.1.5.11","The Contractor shall put into operation the din-railed uninterrupted power supply (UPS) as shown on the BWD Telemetry Automation network layout drawing RA_39497.","Sum",1]
["63","SS 2.3.1.5.12","The Contractor shall design, supply, deliver, install, test and commission of all low voltage power and control cabling including earthing.","Sum",1]
["64","SS 2.3.1.6.1","The Contractor shall design and supply all Automation design requirements and quality documents including, but not limited to all the items as mentioned in Section 6.3.","Sum",1]
["65","SS 2.3.1.6.2","The Contractor shall put into operation the Ethernet network system as shown on the BWD Telemetry Automation network layout drawing RA_39497.","Sum",1]
["66","SS 2.3.1.6.3","The Contractor shall put into operation one wireless GPRS/GSM modem for receiving data from the Roodepoort Reservoir site as shown on the BWD Telemetry Automation network layout drawing RA_39497 and BWD Overall Regional Reservoirs Automation network layout drawing RO_39638.","Sum",1]
["67","SS 2.3.1.6.4","The Contractor shall put into operation the SCADA system at Roodepoort Pumping Station Control Room as shown on the BWD Telemetry Automation network layout drawing RA_39497.","Sum",1]
["68","SS 2.3.1.6.5","The Contractor shall put into operation one (1) BWD Telemetry Communication Panel with all components as shown on the BWD Telemetry Communication Panel General Arrangement drawing RA_39498.","Sum",1]
["69","SS 2.3.1.6.6","The Contractor shall put into operation two (2) power supplies as shown on the BWD Telemetry Communication Panel drawing RA_39498.","Sum",1]
["70","SS 2.3.1.6.7","The Contractor shall put into operation the din-railed uninterrupted power supply (UPS) as shown on the BWD Telemetry Automation network layout drawing RA_39497.","Sum",1]
["71","SS 2.3.1.6.8","The Contractor shall design, supply, deliver, install, test and commission of all low voltage power and control cabling including earthing.","Sum",1]
["72","SS 2.3.1.6.9","The Contractor shall supply, deliver, install, test and commission the SCADA PC at Roodepoort Pumping Station Control Room as shown on the BWD Telemetry Automation network layout drawing RA_39497.","Sum",1]
["73","SS 2.3.1.7.1","The Contractor shall design and supply all Automation design requirements and quality documents including, but not limited to all the items as mentioned in Section 6.3.","Sum",1]
["74","SS 2.3.1.7.2.1","The Contractor shall put into operation three (3) ultrasonic level sensors and transmitters for Krugersdorp Depot Reservoir-2, Resevoir-3 and Reservoir-4 level measurement as shown on the BWD Telemetry Automation network layout drawing RA_39497.","Sum",1]
["75","SS 2.3.1.7.2.2","The Contractor shall put into operation three (3) radar level sensors and transmitters for Krugersdorp Depot Reservoir-2, Resevoir-3 and Reservoir-4 level measurement as shown on the BWD Telemetry Automation network layout drawing RA_39497.","Sum",1]
["76","SS 2.3.1.7.3","The Contractor shall put into operation the wireless network for linking the wireless level transmitters and wireless radio receiver as shown on the BWD Telemetry Automation network layout drawing RA_39497.","Sum",1]
["77","SS 2.3.1.7.4","The Contractor shall put into operation the Ethernet network system as shown on the BWD Telemetry Automation network layout drawing RA_39497.","Sum",1]
["78","SS 2.3.1.7.5.1","The Contractor shall put into operation one wireless GPRS/GSM modem for transmitting data to Central Depot Control Room and Krugersdorp Depot Control Room as shown on the BWD Telemetry Automation network layout drawing RA_39497.","Sum",1]
["79","SS 2.3.1.7.5.2","The Contractor shall put into operation one wireless GPRS/GSM modem for receiving data from the Krugersdorp Depot, Waterkloof, Barnardsvlei and Buffelshoek Reservoir sites as shown on the BWD Telemetry Automation network layout drawing RA_39497 and BWD Overall Regional Reservoirs Automation network layout drawing RO_39638.","Sum",1]
["80","SS 2.3.1.7.6","The Contractor shall put into operation the SCADA system at Central Depot Control Room and Krugersdorp Depot Control Room as shown on the BWD Telemetry Automation network layout drawing RA_39497.","Sum",1]
["81","SS 2.3.1.7.7","The Contractor shall put into operation one (1) BWD Telemetry Communication Panel with all components as shown on the BWD Telemetry Communication Panel General Arrangement drawing RA_39498 and BWD Telemetry Building Site Plan RA_39634.","Sum",1]
["82","SS 2.3.1.7.8","The Contractor shall put into operation three (3) BWD Junction Boxes with all components for Krugersdorp Depot Reservoir-2, Resevoir-3 and Reservoir-4 as shown on the BWD Reservoir Junction Box drawing RA_39500.","Sum",1]
["83","SS 2.3.1.7.9","The Contractor shall put into operation three (3) BWD Reservoir Automation Kiosks for the level transmitters for Krugersdorp Depot Reservoir-2, Resevoir-3 and Reservoir-4 as shown on the BWD Reservoir Automation Kiosk General Arrangement Drawing RA_29317-001.","Sum",1]
["84","SS 2.3.1.7.10","The Contractor shall put into operation two (2) power supplies as shown on the BWD Telemetry Communication Panel drawing RA_39498.","Sum",1]
["85","SS 2.3.1.7.11","The Contractor shall put into operation the din-railed uninterrupted power supply (UPS) as shown on the BWD Telemetry Automation network layout drawing RA_39497.","Sum",1]
["86","SS 2.3.1.7.12","The Contractor shall design, supply, deliver, install, test and commission of all low voltage power and control cabling including earthing.","Sum",1]
["87","SS 2.3.1.7.13","The Contractor shall supply, deliver, install, test and commission the SCADA PC at Krugersdorp Depot Control Room as shown on the BWD Telemetry Automation network layout drawing RA_39497.","Sum",1]
["88","SS 2.3.1.7.14","The Contractor shall put into operation the 316L Stainless Steel Manhole Cover on top of the Krugersdorp Reservoir-3 and Reservoir-4 respectively.","Sum",1]
["89","SS 2.3.1.8.1","The Contractor shall design and supply all Automation design requirements and quality documents including, but not limited to all the items as mentioned in Section 6.3.","Sum",1]
["90","SS 2.3.1.8.2.1","The Contractor shall put into operation two (2) ultrasonic level sensors and transmitters for Waterkloof Reservoir-1 and Resevoir-2 level measurement as shown on the BWD Telemetry Automation network layout drawing RA_39497.","Sum",1]
["91","SS 2.3.1.8.2.2","The Contractor shall put into operation two (2) radar level sensors and transmitters for Waterkloof Reservoir-1 and Resevoir-2 level measurement as shown on the BWD Telemetry Automation network layout drawing RA_39497.","Sum",1]
["92","SS 2.3.1.8.3","The Contractor shall put into operation the wireless network for linking the wireless level transmitters and wireless radio receiver as shown on the BWD Telemetry Automation network layout drawing RA_39497.","Sum",1]
["93","SS 2.3.1.8.4","The Contractor shall put into operation the Ethernet network system as shown on the BWD Telemetry Automation network layout drawing RA_39497.","Sum",1]
["94","SS 2.3.1.8.5","The Contractor shall put into operation one wireless GPRS/GSM modem for transmitting data to Central Depot Control Room and Krugersdorp Depot Control Room as shown on the BWD Telemetry Automation network layout drawing RA_39497.","Sum",1]
["95","SS 2.3.1.8.6","The Contractor shall put into operation the SCADA system at Central Depot Control Room and Krugersdorp Depot Control Room as shown on the BWD Telemetry Automation network layout drawing RA_39497.","Sum",1]
["96","SS 2.3.1.8.7","The Contractor shall put into operation one (1) BWD Telemetry Communication Panel with all components as shown on the BWD Telemetry Communication Panel General Arrangement drawing RA_39498 and BWD Telemetry Building Site Plan RA_39634.","Sum",1]
["97","SS 2.3.1.8.8","The Contractor shall put into operation two (2) BWD Junction Boxes with all components for Waterkloof Reservoir-1 and Resevoir-2 as shown on the BWD Reservoir Junction Box drawing RA_39500.","Sum",1]
["98","SS 2.3.1.8.9","The Contractor shall put into operation two (2) BWD Reservoir Automation Kiosks for the level transmitters for Waterkloof Reservoir-1 and Resevoir-2 as shown on the BWD Reservoir Automation Kiosk General Arrangement Drawing RA_29317-001.","Sum",1]
["99","SS 2.3.1.8.10","The Contractor shall put into operation two (2) power supplies as shown on the BWD Telemetry Communication Panel drawing RA_39498.","Sum",1]
["100","SS 2.3.1.8.11","The Contractor shall put into operation the din-railed uninterrupted power supply (UPS) as shown on the BWD Telemetry Automation network layout drawing RA_39497.","Sum",1]
["101","SS 2.3.1.8.12","The Contractor shall design, supply, deliver, install, test and commission of all low voltage power and control cabling including earthing.","Sum",1]
["102","SS 2.3.1.9.1","The Contractor shall design and supply all Automation design requirements and quality documents including, but not limited to all the items as mentioned in Section 6.3.","Sum",1]
["103","SS 2.3.1.9.2.1","The Contractor shall put into operation one (1) ultrasonic level sensor and transmitter for Barnardsvlei Reservoir-1 level measurement as shown on the BWD Telemetry Automation network layout drawing RA_39497.","Sum",1]
["104","SS 2.3.1.9.2.2","The Contractor shall put into operation one (1) radar level sensor and transmitter for Barnardsvlei Reservoir-1 level measurement as shown on the BWD Telemetry Automation network layout drawing RA_39497.","Sum",1]
["105","SS 2.3.1.9.3","The Contractor shall put into operation the wireless network for linking the wireless level transmitters and wireless radio receiver as shown on the BWD Telemetry Automation network layout drawing RA_39497.","Sum",1]
["106","SS 2.3.1.9.4","The Contractor shall put into operation the Ethernet network system as shown on the BWD Telemetry Automation network layout drawing RA_39497.","Sum",1]
["107","SS 2.3.1.9.5","The Contractor shall put into operation one wireless GPRS/GSM modem for transmitting data to Central Depot Control Room and Krugersdorp Depot Control Room as shown on the BWD Telemetry Automation network layout drawing RA_39497.","Sum",1]
["108","SS 2.3.1.9.6","The Contractor shall put into operation the SCADA system at Central Depot Control Room and Krugersdorp Depot Control Room as shown on the BWD Telemetry Automation network layout drawing RA_39497.","Sum",1]
["109","SS 2.3.1.9.7","The Contractor shall put into operation one (1) BWD Telemetry Communication Panel with all components as shown on the BWD Telemetry Communication Panel General Arrangement drawing RA_39498 and BWD Telemetry Building Site Plan RA_39634.","Sum",1]
["110","SS 2.3.1.9.8","The Contractor shall put into operation one (1) BWD Junction Box with all components for Barnardsvlei Reservoir-1 as shown on the BWD Reservoir Junction Box drawing RA_39500.","Sum",1]
["111","SS 2.3.1.9.9","The Contractor shall put into operation one (1) BWD Reservoir Automation Kiosk for the level transmitters for Barnardsvlei Reservoir-1 as shown on the BWD Reservoir Automation Kiosk General Arrangement Drawing RA_29317-001.","Sum",1]
["112","SS 2.3.1.9.10","The Contractor shall put into operation two (2) power supplies as shown on the BWD Telemetry Communication Panel drawing RA_39498.","Sum",1]
["113","SS 2.3.1.9.11","The Contractor shall put into operation the din-railed uninterrupted power supply (UPS) as shown on the BWD Telemetry Automation network layout drawing RA_39497.","Sum",1]
["114","SS 2.3.1.9.12","The Contractor shall design, supply, deliver, install, test and commission of all low voltage power and control cabling including earthing.","Sum",1]
["115","SS 2.3.1.10.1","The Contractor shall design and supply all Automation design requirements and quality documents including, but not limited to all the items as mentioned in Section 6.3.","Sum",1]
["116","SS 2.3.1.10.2.1","The Contractor shall put into operation two (2) ultrasonic level sensors and transmitters for Buffelshoek Reservoir-1 and Resevoir-2 level measurement as shown on the BWD Telemetry Automation network layout drawing RA_39497.","Sum",1]
["117","SS 2.3.1.10.2.2","The Contractor shall put into operation two (2) radar level sensors and transmitters for Buffelshoek Reservoir-1 and Resevoir-2 level measurement as shown on the BWD Telemetry Automation network layout drawing RA_39497.","Sum",1]
["118","SS 2.3.1.10.3","The Contractor shall put into operation the wireless network for linking the wireless level transmitters and wireless radio receiver as shown on the BWD Telemetry Automation network layout drawing RA_39497.","Sum",1]
["119","SS 2.3.1.10.4","The Contractor shall put into operation the Ethernet network system as shown on the BWD Telemetry Automation network layout drawing RA_39497.","Sum",1]
["120","SS 2.3.1.10.5","The Contractor shall put into operation one wireless GPRS/GSM modem for transmitting data to Central Depot Control Room and Krugersdorp Depot Control Room as shown on the BWD Telemetry Automation network layout drawing RA_39497.","Sum",1]
["121","SS 2.3.1.10.6","The Contractor shall put into operation the SCADA system at Central Depot Control Room and Krugersdorp Depot Control Room as shown on the BWD Telemetry Automation network layout drawing RA_39497.","Sum",1]
["122","SS 2.3.1.10.7","The Contractor shall put into operation one (1) BWD Telemetry Communication Panel with all components as shown on the BWD Telemetry Communication Panel General Arrangement drawing RA_39498 and BWD Telemetry Building Site Plan RA_39634.","Sum",1]
["123","SS 2.3.1.10.8","The Contractor shall put into operation two (2) BWD Junction Boxes with all components for Buffelshoek Reservoir-1 and Resevoir-2 as shown on the BWD Reservoir Junction Box drawing RA_39500.","Sum",1]
["124","SS 2.3.1.10.9","The Contractor shall put into operation two (2) BWD Reservoir Automation Kiosks for the level transmitters for Buffelshoek Reservoir-1 and Resevoir-2 as shown on the BWD Reservoir Automation Kiosk General Arrangement Drawing RA_29317-001.","Sum",1]
["125","SS 2.3.1.10.10","The Contractor shall put into operation two (2) power supplies as shown on the BWD Telemetry Communication Panel drawing RA_39498.","Sum",1]
["126","SS 2.3.1.10.11","The Contractor shall put into operation the din-railed uninterrupted power supply (UPS) as shown on the BWD Telemetry Automation network layout drawing RA_39497.","Sum",1]
["127","SS 2.3.1.10.12","The Contractor shall design, supply, deliver, install, test and commission of all low voltage power and control cabling including earthing.","Sum",1]
["128","SS 2.3.1.11.1","The Contractor shall design and supply all Automation design requirements and quality documents including, but not limited to all the items as mentioned in Section 6.3.","Sum",1]
["129","SS 2.3.1.11.2","The Contractor shall put into operation the Ethernet network system as shown on the BWD Telemetry Automation network layout drawing RA_39497.","Sum",1]
["130","SS 2.3.1.11.3","The Contractor shall put into operation one wireless GPRS/GSM modem for receiving data from the Witpoortie Reservoir site as shown on the BWD Telemetry Automation network layout drawing RA_39497 and BWD Overall Regional Reservoirs Automation network layout drawing RO_39638.","Sum",1]
["131","SS 2.3.1.11.4","The Contractor shall put into operation the SCADA system at Zuurbekom Depot Control Room as shown on the BWD Telemetry Automation network layout drawing RA_39497.","Sum",1]
["132","SS 2.3.1.11.5","The Contractor shall put into operation one (1) BWD Telemetry Communication Panel with all components as shown on the BWD Telemetry Communication Panel General Arrangement drawing RA_39498.","Sum",1]
["133","SS 2.3.1.11.6","The Contractor shall put into operation two (2) power supplies as shown on the BWD Telemetry Communication Panel drawing RA_39498.","Sum",1]
["134","SS 2.3.1.11.7","The Contractor shall put into operation the din-railed uninterrupted power supply (UPS) as shown on the BWD Telemetry Automation network layout drawing RA_39497.","Sum",1]
["135","SS 2.3.1.11.8","The Contractor shall design, supply, deliver, install, test and commission of all low voltage power and control cabling including earthing.","Sum",1]
["136","SS 2.3.1.11.9","The Contractor shall supply, deliver, install, test and commission the SCADA PC at Zuurberkom Control Room as shown on the BWD Telemetry Automation network layout drawing RA_39497.","Sum",1]
["137","SS 2.3.1.12.1","The Contractor shall design and supply all Automation design requirements and quality documents including, but not limited to all the items as mentioned in Section 6.3.","Sum",1]
["138","SS 2.3.1.12.2.1","The Contractor shall put into operation two (2) ultrasonic level sensors and transmitters for Witpoortjie Reservoir-1 and Resevoir-2 level measurement as shown on the BWD Telemetry Automation network layout drawing RA_39497.","Sum",1]
["139","SS 2.3.1.12.2.2","The Contractor shall put into operation two (2) radar level sensors and transmitters for Witpoortjie Reservoir-1 and Resevoir-2 level measurement as shown on the BWD Telemetry Automation network layout drawing RA_39497.","Sum",1]
["140","SS 2.3.1.12.3","The Contractor shall put into operation the wireless network for linking the wireless level transmitters and wireless radio receiver as shown on the BWD Telemetry Automation network layout drawing RA_39497.","Sum",1]
["141","SS 2.3.1.12.4","The Contractor shall put into operation the Ethernet network system as shown on the BWD Telemetry Automation network layout drawing RA_39497.","Sum",1]
["142","SS 2.3.1.12.5","The Contractor shall put into operation one wireless GPRS/GSM modem for transmitting data to Central Depot Control Room and Zuurbekom Depot Control Room as shown on the BWD Telemetry Automation network layout drawing RA_39497.","Sum",1]
["143","SS 2.3.1.12.6","The Contractor shall put into operation the SCADA system at Central Depot Control Room and Zuurbekom Depot Control Room as shown on the BWD Telemetry Automation network layout drawing RA_39497.","Sum",1]
["144","SS 2.3.1.12.7","The Contractor shall put into operation one (1) BWD Telemetry Communication Panel with all components as shown on the BWD Telemetry Communication Panel General Arrangement drawing RA_39498 and BWD Telemetry Building Site Plan RA_39634.","Sum",1]
["145","SS 2.3.1.12.8","The Contractor shall put into operation two (2) BWD Junction Boxes with all components for Witpoortjie Reservoir-1 and Resevoir-2 as shown on the BWD Reservoir Junction Box drawing RA_39500.","Sum",1]
["146","SS 2.3.1.12.9","The Contractor shall put into operation two (2) BWD Reservoir Automation Kiosks for the level transmitters for Witpoortjie Reservoir-1 and Resevoir-2 as shown on the BWD Reservoir Automation Kiosk General Arrangement Drawing RA_29317-001.","Sum",1]
["147","SS 2.3.1.12.10","The Contractor shall put into operation two (2) power supplies as shown on the BWD Telemetry Communication Panel drawing RA_39498.","Sum",1]
["148","SS 2.3.1.12.11","The Contractor shall put into operation the din-railed uninterrupted power supply (UPS) as shown on the BWD Telemetry Automation network layout drawing RA_39497.","Sum",1]
["149","SS 2.3.1.12.12","The Contractor shall design, supply, deliver, install, test and commission of all low voltage power and control cabling including earthing.","Sum",1]
["150","SS 2.3.1.12.13","The Contractor shall put into operation the 316L Stainless Steel Manhole Cover on top of the Witpoortjie Reservoir-1 and Resrvoir-2 respectively.","Sum",1]
["151","SS 2.3.1.13.1","The Contractor shall design and supply all Automation design requirements and quality documents including, but not limited to all the items as mentioned in Section 6.3.","Sum",1]
["152","SS 2.3.1.13.2.1","The Contractor shall put into operation three (3) ultrasonic level sensors and transmitters for Libanon Depot Reservoir-1, Resevoir-2 and Reservoir-3 level measurement as shown on the BWD Telemetry Automation network layout drawing RA_39497.","Sum",1]
["153","SS 2.3.1.13.2.2","The Contractor shall put into operation three (3) radar level sensors and transmitters for Libanon Depot Reservoir-1, Resevoir-2 and Reservoir-3 level measurement as shown on the BWD Telemetry Automation network layout drawing RA_39497.","Sum",1]
["154","SS 2.3.1.13.3","The Contractor shall put into operation the wireless network for linking the wireless level transmitters and wireless radio receiver as shown on the BWD Telemetry Automation network layout drawing RA_39497.","Sum",1]
["155","SS 2.3.1.13.4","The Contractor shall put into operation the Ethernet network system as shown on the BWD Telemetry Automation network layout drawing RA_39497.","Sum",1]
["156","SS 2.3.1.13.5.1","The Contractor shall put into operation one wireless GPRS/GSM modem for transmitting data to Central Depot Control Room and Libanon Pumping Station Control Room as shown on the BWD Telemetry Automation network layout drawing RA_39497.","Sum",1]
["157","SS 2.3.1.13.5.2","The Contractor shall put into operation one wireless GPRS/GSM modem for receiving data from the Libanon Depot and Driehoek Reservoir sites shown on the BWD Telemetry Automation network layout drawing RA_39497 and BWD Overall Regional Reservoirs Automation network layout drawing RO_39638.","Sum",1]
["158","SS 2.3.1.13.6","The Contractor shall put into operation the SCADA system at Central Depot Control Room and Libanon Pumping Station Control Room as shown on the BWD Telemetry Automation network layout drawing RA_39497.","Sum",1]
["159","SS 2.3.1.13.7","The Contractor shall put into operation one (1) BWD Telemetry Communication Panel with all components as shown on the BWD Telemetry Communication Panel General Arrangement drawing RA_39498.","Sum",1]
["160","SS 2.3.1.13.8","The Contractor shall put into operation three (3) BWD Junction Boxes with all components for Libanon Depot Reservoir-1, Resevoir-2 and Reservoir-3 as shown on the BWD Reservoir Junction Box drawing RA_39500.","Sum",1]
["161","SS 2.3.1.13.9","The Contractor shall put into operation three (3) BWD Reservoir Automation Kiosks for the level transmitters for Libanon Depot Reservoir-1, Resevoir-2 and Reservoir-3 as shown on the BWD Reservoir Automation Kiosk General Arrangement Drawing RA_29317-001.","Sum",1]
["162","SS 2.3.1.13.10","The Contractor shall put into operation two (2) power supplies as shown on the BWD Telemetry Communication Panel drawing RA_39498.","Sum",1]
["163","SS 2.3.1.13.11","The Contractor shall put into operation the din-railed uninterrupted power supply (UPS) as shown on the BWD Telemetry Automation network layout drawing RA_39497.","Sum",1]
["164","SS 2.3.1.13.12","The Contractor shall design, supply, deliver, install, test and commission of all low voltage power and control cabling including earthing.","Sum",1]
["165","SS 2.3.1.13.13","The Contractor shall supply, deliver, install, test and commission the SCADA PC at Libanon Pumping Station Control Room as shown on the BWD Telemetry Automation network layout drawing RA_39497.","Sum",1]
["166","SS 2.3.1.14.1","The Contractor shall design and supply all Automation design requirements and quality documents including, but not limited to all the items as mentioned in Section 6.3.","Sum",1]
["167","SS 2.3.1.14.2.1","The Contractor shall put into operation one (1) ultrasonic level sensor and transmitter for Driefontein Reservoir-1 level measurement as shown on the BWD Telemetry Automation network layout drawing RA_39497.","Sum",1]
["168","SS 2.3.1.14.2.2","The Contractor shall put into operation one (1) radar level sensor and transmitter for Driefontein Reservoir-1 level measurement as shown on the BWD Telemetry Automation network layout drawing RA_39497.","Sum",1]
["169","SS 2.3.1.14.3","The Contractor shall put into operation the wireless network for linking the wireless level transmitters and wireless radio receiver as shown on the BWD Telemetry Automation network layout drawing RA_39497.","Sum",1]
["170","SS 2.3.1.14.4","The Contractor shall put into operation the Ethernet network system as shown on the BWD Telemetry Automation network layout drawing RA_39497.","Sum",1]
["171","SS 2.3.1.14.5","The Contractor shall put into operation one wireless GPRS/GSM modem for transmitting data to Central Depot Control Room and Libanon Depot Control Room as shown on the BWD Telemetry Automation network layout drawing RA_39497.","Sum",1]
["172","SS 2.3.1.14.6","The Contractor shall put into operation the SCADA system at Central Depot Control Room and Libanon Depot Control Room as shown on the BWD Telemetry Automation network layout drawing RA_39497.","Sum",1]
["173","SS 2.3.1.14.7","The Contractor shall put into operation one (1) BWD Telemetry Communication Panel with all components as shown on the BWD Telemetry Communication Panel General Arrangement drawing RA_39498 and BWD Telemetry Building Site Plan RA_39634.","Sum",1]
["174","SS 2.3.1.14.8","The Contractor shall put into operation one (1) BWD Junction Box with all components for Driefontein Reservoir-1 as shown on the BWD Reservoir Junction Box drawing RA_39500.","Sum",1]
["175","SS 2.3.1.14.9","The Contractor shall put into operation one (1) BWD Reservoir Automation Kiosk for the level transmitters for Driefontein Reservoir-1 as shown on the BWD Reservoir Automation Kiosk General Arrangement Drawing RA_29317-001.","Sum",1]
["176","SS 2.3.1.14.10","The Contractor shall put into operation two (2) power supplies as shown on the BWD Telemetry Communication Panel drawing RA_39498.","Sum",1]
["177","SS 2.3.1.14.11","The Contractor shall put into operation the din-railed uninterrupted power supply (UPS) as shown on the BWD Telemetry Automation network layout drawing RA_39497.","Sum",1]
["178","SS 2.3.1.14.12","The Contractor shall design, supply, deliver, install, test and commission of all low voltage power and control cabling including earthing.","Sum",1]
["179","SS 2.3.1.15.1","The Contractor shall design and supply all Automation design requirements and quality documents including, but not limited to all the items as mentioned in Section 6.3.","Sum",1]
["180","SS 2.3.1.15.2.1","The Contractor shall put into operation one (1) ultrasonic level sensor and transmitter for Barrage Depot Reservoir-1 level measurement as shown on the BWD Telemetry Automation network layout drawing RA_39497.","Sum",1]
["181","SS 2.3.1.15.2.2","The Contractor shall put into operation one (1) radar level sensor and transmitter for Barrage Depot Reservoir-1 level measurement as shown on the BWD Telemetry Automation network layout drawing RA_39497.","Sum",1]
["182","SS 2.3.1.15.3","The Contractor shall put into operation the wireless network for linking the wireless level transmitters and wireless radio receiver as shown on the BWD Telemetry Automation network layout drawing RA_39497.","Sum",1]
["183","SS 2.3.1.15.4","The Contractor shall put into operation the Ethernet network system as shown on the BWD Telemetry Automation network layout drawing RA_39497.","Sum",1]
["184","SS 2.3.1.15.5.1","The Contractor shall put into operation one wireless GPRS/GSM modem for transmitting data to Central Depot Control Room and Barrage Depot Control Room as shown on the BWD Telemetry Automation network layout drawing RA_39497.","Sum",1]
["185","SS 2.3.1.15.5.2","The Contractor shall put into operation one wireless GPRS/GSM modem for receiving data from the Barrage Depot, Sasolburg and Heilbron Reservoir sites as shown on the BWD Telemetry Automation network layout drawing RA_39497 and BWD Overall Regional Reservoirs Automation network layout drawing RO_39638.","Sum",1]
["186","SS 2.3.1.15.6","The Contractor shall put into operation the SCADA system at Central Depot Control Room and Barrage Depot Control Room as shown on the BWD Telemetry Automation network layout drawing RA_39497.","Sum",1]
["187","SS 2.3.1.15.7","The Contractor shall put into operation one (1) BWD Telemetry Communication Panel with all components as shown on the BWD Telemetry Communication Panel General Arrangement drawing RA_39498 and BWD Telemetry Building Site Plan RA_39634.","Sum",1]
["188","SS 2.3.1.15.8","The Contractor shall put into operation one (1) BWD Junction Box with all components for Barrage Depot Reservoir-1 as shown on the BWD Reservoir Junction Box drawing RA_39500.","Sum",1]
["189","SS 2.3.1.15.9","The Contractor shall put into operation one (1) BWD Reservoir Automation Kiosk for the level transmitters for Barrage Depot Reservoir-1 as shown on the BWD Reservoir Automation Kiosk General Arrangement Drawing RA_29317-001.","Sum",1]
["190","SS 2.3.1.15.10","The Contractor shall put into operation two (2) power supplies as shown on the BWD Telemetry Communication Panel drawing RA_39498.","Sum",1]
["191","SS 2.3.1.15.11","The Contractor shall put into operation the din-railed uninterrupted power supply (UPS) as shown on the BWD Telemetry Automation network layout drawing RA_39497.","Sum",1]
["192","SS 2.3.1.15.12","The Contractor shall design, supply, deliver, install, test and commission of all low voltage power and control cabling including earthing.","Sum",1]
["193","SS 2.3.1.15.13","The Contractor shall supply, deliver, install, test and commission the SCADA PC at Barrage Depot Control Room as shown on the BWD Telemetry Automation network layout drawing RA_39497.","Sum",1]
["194","SS 2.3.1.16.1","The Contractor shall design and supply all Automation design requirements and quality documents including, but not limited to all the items as mentioned in Section 6.3.","Sum",1]
["195","SS 2.3.1.16.2.1","The Contractor shall put into operation one (1) ultrasonic level sensor and transmitter for Sasolburg Pumping Station Reservoir-1 level measurement as shown on the BWD Telemetry Automation network layout drawing RA_39497.","Sum",1]
["196","SS 2.3.1.16.2.2","The Contractor shall put into operation one (1) radar level sensor and transmitter for Sasolburg Pumping Station Reservoir-1 level measurement as shown on the BWD Telemetry Automation network layout drawing RA_39497.","Sum",1]
["197","SS 2.3.1.16.3","The Contractor shall put into operation the wireless network for linking the wireless level transmitters and wireless radio receiver as shown on the BWD Telemetry Automation network layout drawing RA_39497.","Sum",1]
["198","SS 2.3.1.16.4","The Contractor shall put into operation the Ethernet network system as shown on the BWD Telemetry Automation network layout drawing RA_39497.","Sum",1]
["199","SS 2.3.1.16.5","The Contractor shall put into operation one wireless GPRS/GSM modem for transmitting data to Central Depot Control Room and Barrage Depot Control Room as shown on the BWD Telemetry Automation network layout drawing RA_39497.","Sum",1]
["200","SS 2.3.1.16.6","The Contractor shall put into operation the SCADA system at Central Depot Control Room and Barrage Depot Control Room as shown on the BWD Telemetry Automation network layout drawing RA_39497.","Sum",1]
["201","SS 2.3.1.16.7","The Contractor shall put into operation one (1) BWD Telemetry Communication Panel with all components as shown on the BWD Telemetry Communication Panel General Arrangement drawing RA_39498.","Sum",1]
["202","SS 2.3.1.16.8","The Contractor shall put into operation one (1) BWD Junction Box with all components for Sasolburg Pumping Station Reservoir-1 as shown on the BWD Reservoir Junction Box drawing RA_39500.","Sum",1]
["203","SS 2.3.1.16.9","The Contractor shall put into operation one (1) BWD Reservoir Automation Kiosk for the level transmitters for Sasolburg Pumping Station Reservoir-1 as shown on the BWD Reservoir Automation Kiosk General Arrangement Drawing RA_29317-001.","Sum",1]
["204","SS 2.3.1.16.10","The Contractor shall put into operation two (2) power supplies as shown on the BWD Telemetry Communication Panel drawing RA_39498.","Sum",1]
["205","SS 2.3.1.16.11","The Contractor shall put into operation the din-railed uninterrupted power supply (UPS) as shown on the BWD Telemetry Automation network layout drawing RA_39497.","Sum",1]
["206","SS 2.3.1.16.12","The Contractor shall design, supply, deliver, install, test and commission of all low voltage power and control cabling including earthing.","Sum",1]
["207","SS 2.3.1.17.1","The Contractor shall design and supply all Automation design requirements and quality documents including, but not limited to all the items as mentioned in Section 6.3.","Sum",1]
["208","SS 2.3.1.17.2","The Contractor shall put into operation the Ethernet network system as shown on the BWD Telemetry Automation network layout drawing RA_39497.","Sum",1]
["209","SS 2.3.1.17.3","The Contractor shall put into operation one wireless GPRS/GSM modem for receiving data from the Daleside, Spioenkop-1, Spioenkop-2, Orange Farm and Ennerdale Reservoir sites as shown on the BWD Telemetry Automation network layout drawing RA_39497 and BWD Overall Regional Reservoirs Automation network layout drawing RO_39638.","Sum",1]
["210","SS 2.3.1.17.4","The Contractor shall put into operation the SCADA system at Meyerton Depot Control Room as shown on the BWD Telemetry Automation network layout drawing RA_39497.","Sum",1]
["211","SS 2.3.1.17.5","The Contractor shall put into operation one (1) BWD Telemetry Communication Panel with all components as shown on the BWD Telemetry Communication Panel General Arrangement drawing RA_39498.","Sum",1]
["212","SS 2.3.1.17.6","The Contractor shall put into operation two (2) power supplies as shown on the BWD Telemetry Communication Panel drawing RA_39498.","Sum",1]
["213","SS 2.3.1.17.7","The Contractor shall put into operation the din-railed uninterrupted power supply (UPS) as shown on the BWD Telemetry Automation network layout drawing RA_39497.","Sum",1]
["214","SS 2.3.1.17.8","The Contractor shall design, supply, deliver, install, test and commission of all low voltage power and control cabling including earthing.","Sum",1]
["215","SS 2.3.1.17.9","The Contractor shall supply, deliver, install, test and commission the SCADA PC at Meyerton Control Room as shown on the BWD Telemetry Automation network layout drawing RA_39497.","Sum",1]
["216","SS 2.3.1.18.1","The Contractor shall design and supply all Automation design requirements and quality documents including, but not limited to all the items as mentioned in Section 6.3.","Sum",1]
["217","SS 2.3.1.18.2.1","The Contractor shall put into operation two (2) ultrasonic level sensors and transmitters for Daleside Pumping Station Reservoir-1 and Resevoir-2 level measurement as shown on the BWD Telemetry Automation network layout drawing RA_39497.","Sum",1]
["218","SS 2.3.1.18.2.2","The Contractor shall put into operation two (2) radar level sensors and transmitters for Daleside Pumping Station Reservoir-1 and Resevoir-2 level measurement as shown on the BWD Telemetry Automation network layout drawing RA_39497.","Sum",1]
["219","SS 2.3.1.18.3","The Contractor shall put into operation the wireless network for linking the wireless level transmitters and wireless radio receiver as shown on the BWD Telemetry Automation network layout drawing RA_39497.","Sum",1]
["220","SS 2.3.1.18.4","The Contractor shall put into operation the Ethernet network system as shown on the BWD Telemetry Automation network layout drawing RA_39497.","Sum",1]
["221","SS 2.3.1.18.5.1","The Contractor shall put into operation one wireless GPRS/GSM modem for transmitting data to Central Depot Control Room, Daleside Pumping Station Control Room and Meyerton Depot Control Room as shown on the BWD Telemetry Automation network layout drawing RA_39497.","Sum",1]
["222","SS 2.3.1.18.5.2","The Contractor shall put into operation one wireless GPRS/GSM modem for receiving data from the Daleside, Spioenkop-1, Spioenkop-2, Orange Farm and Ennerdale Reservoir sites as shown on the BWD Telemetry Automation network layout drawing RA_39497 and BWD Overall Regional Reservoirs Automation network layout drawing RO_39638.","Sum",1]
["223","SS 2.3.1.18.6","The Contractor shall put into operation the SCADA system at Central Depot Control Room, Daleside Pumping Station Control Room and Meyerton Depot Control Room as shown on the BWD Telemetry Automation network layout drawing RA_39497.","Sum",1]
["224","SS 2.3.1.18.7","The Contractor shall put into operation one (1) BWD Telemetry Communication Panel with all components as shown on the BWD Telemetry Communication Panel General Arrangement drawing RA_39498.","Sum",1]
["225","SS 2.3.1.18.8","The Contractor shall put into operation two (2) BWD Junction Boxes with all components for Daleside Pumping Station Reservoir-1 and Resevoir-2 as shown on the BWD Reservoir Junction Box drawing RA_39500.","Sum",1]
["226","SS 2.3.1.18.9","The Contractor shall put into operation two (2) BWD Reservoir Automation Kiosks for the level transmitters for Daleside Pumping Station Reservoir-1 and Resevoir-2 as shown on the BWD Reservoir Automation Kiosk General Arrangement Drawing RA_29317-001.","Sum",1]
["227","SS 2.3.1.18.10","The Contractor shall put into operation two (2) power supplies as shown on the BWD Telemetry Communication Panel drawing RA_39498.","Sum",1]
["228","SS 2.3.1.18.11","The Contractor shall put into operation the din-railed uninterrupted power supply (UPS) as shown on the BWD Telemetry Automation network layout drawing RA_39497.","Sum",1]
["229","SS 2.3.1.18.12","The Contractor shall design, supply, deliver, install, test and commission of all low voltage power and control cabling including earthing.","Sum",1]
["230","SS 2.3.1.18.13","The Contractor shall supply, deliver, install, test and commission the SCADA PC at Daleside Pumping Station Control Room as shown on the BWD Telemetry Automation network layout drawing RA_39497.","Sum",1]
["231","SS 2.3.1.19.1","The Contractor shall design and supply all Automation design requirements and quality documents including, but not limited to all the items as mentioned in Section 6.3.","Sum",1]
["232","SS 2.3.1.19.2.1","The Contractor shall put into operation one (1) ultrasonic level sensor and transmitter for Spioenkop-1 Reservoir-1 level measurement as shown on the BWD Telemetry Automation network layout drawing RA_39497.","Sum",1]
["233","SS 2.3.1.19.2.2","The Contractor shall put into operation one (1) radar level sensor and transmitter for Spioenkop-1 Reservoir-1 level measurement as shown on the BWD Telemetry Automation network layout drawing RA_39497.","Sum",1]
["234","SS 2.3.1.19.3","The Contractor shall put into operation the wireless network for linking the wireless level transmitters and wireless radio receiver as shown on the BWD Telemetry Automation network layout drawing RA_39497.","Sum",1]
["235","SS 2.3.1.19.4","The Contractor shall put into operation the Ethernet network system as shown on the BWD Telemetry Automation network layout drawing RA_39497.","Sum",1]
["236","SS 2.3.1.19.5","The Contractor shall put into operation one wireless GPRS/GSM modem for transmitting data to Central Depot Control Room, Daleside Pumping Station Control Room and Meyerton Depot Control Room as shown on the BWD Telemetry Automation network layout drawing RA_39497.","Sum",1]
["237","SS 2.3.1.19.6","The Contractor shall put into operation the SCADA system at Central Depot Control Room, Daleside Pumping Station Control Room and Meyerton Depot Control Room as shown on the BWD Telemetry Automation network layout drawing RA_39497.","Sum",1]
["238","SS 2.3.1.19.7","The Contractor shall put into operation one (1) BWD Telemetry communication panel with all components as shown on the BWD Telemetry Communication Panel General Arrangement drawing RA_39498 and BWD Telemetry Building Site Plan RA_39634.","Sum",1]
["239","SS 2.3.1.19.8","The Contractor shall put into operation one (1) BWD Junction Box with all components for Spioenkop-1 Reservoir-1 as shown on the BWD Reservoir Junction Box drawing RA_39500.","Sum",1]
["240","SS 2.3.1.19.9","The Contractor shall put into operation one (1) BWD Reservoir Automation Kiosk for the level transmitters for Spioenkop-1 Reservoir-1 shown on the BWD Reservoir Automation Kiosk General Arrangement Drawing RA_29317-001.","Sum",1]
["241","SS 2.3.1.19.10","The Contractor shall put into operation two (2) power supplies as shown on the BWD Telemetry Communication Panel drawing RA_39498.","Sum",1]
["242","SS 2.3.1.19.11","The Contractor shall put into operation the din-railed uninterrupted power supply (UPS) as shown on the BWD Telemetry Automation network layout drawing RA_39497.","Sum",1]
["243","SS 2.3.1.19.12","The Contractor shall design, supply, deliver, install, test and commission of all low voltage power and control cabling including earthing.","Sum",1]
["244","SS 2.3.1.20.1","The Contractor shall design and supply all Automation design requirements and quality documents including, but not limited to all the items as mentioned in Section 6.3.","Sum",1]
["245","SS 2.3.1.20.2.1","The Contractor shall put into operation one (1) ultrasonic level sensor and transmitter for Spioenkop-2 Reservoir-1 level measurement as shown on the BWD Telemetry Automation network layout drawing RA_39497.","Sum",1]
["246","SS 2.3.1.20.2.2","The Contractor shall put into operation one (1) radar level sensor and transmitter for Spioenkop-2 Reservoir-1 level measurement as shown on the BWD Telemetry Automation network layout drawing RA_39497.","Sum",1]
["247","SS 2.3.1.20.3","The Contractor shall put into operation the wireless network for linking the wireless level transmitters and wireless radio receiver as shown on the BWD Telemetry Automation network layout drawing RA_39497.","Sum",1]
["248","SS 2.3.1.20.4","The Contractor shall put into operation the Ethernet network system as shown on the BWD Telemetry Automation network layout drawing RA_39497.","Sum",1]
["249","SS 2.3.1.20.5","The Contractor shall put into operation one wireless GPRS/GSM modem for transmitting data to Central Depot Control Room, Daleside Pumping Station Control Room and Meyerton Depot Control Room as shown on the BWD Telemetry Automation network layout drawing RA_39497.","Sum",1]
["250","SS 2.3.1.20.6","The Contractor shall put into operation the SCADA system at Central Depot Control Room, Daleside Pumping Station Control Room and Meyerton Depot Control Room as shown on the BWD Telemetry Automation network layout drawing RA_39497.","Sum",1]
["251","SS 2.3.1.20.7","The Contractor shall put into operation one (1) BWD Telemetry communication panel with all components as shown on the BWD Telemetry Communication Panel General Arrangement drawing RA_39498.","Sum",1]
["252","SS 2.3.1.20.8","The Contractor shall put into operation one (1) BWD Junction Box with all components for Spioenkop-2 Reservoir-1 as shown on the BWD Reservoir Junction Box drawing RA_39500.","Sum",1]
["253","SS 2.3.1.20.9","The Contractor shall put into operation one (1) BWD Reservoir Automation Kiosk for the level transmitters for Spioenkop-2 Reservoir-1 as shown on the BWD Reservoir Automation Kiosk General Arrangement Drawing RA_29317-001.","Sum",1]
["254","SS 2.3.1.20.10","The Contractor shall put into operation two (2) power supplies as shown on the BWD Telemetry Communication Panel drawing RA_39498.","Sum",1]
["255","SS 2.3.1.20.11","The Contractor shall put into operation the din-railed uninterrupted power supply (UPS) as shown on the BWD Telemetry Automation network layout drawing RA_39497.","Sum",1]
["256","SS 2.3.1.20.12","The Contractor shall design, supply, deliver, install, test and commission of all low voltage power and control cabling including earthing.","Sum",1]
["257","SS 2.3.1.21.1","The Contractor shall design and supply all Automation design requirements and quality documents including, but not limited to all the items as mentioned in Section 6.3.","Sum",1]
["258","SS 2.3.1.21.2","The Contractor shall put into operation the Ethernet network system as shown on the BWD Telemetry Automation network layout drawing RA_39497.","Sum",1]
["259","SS 2.3.1.21.3","The Contractor shall put into operation one wireless GPRS/GSM modem or VSAT Satellite solution for receiving data from the Langerand Reservoir site as shown on the BWD Telemetry Automation network layout drawing RA_39497 and BWD Overall Regional Reservoirs Automation network layout drawing RO_39638.","Sum",1]
["260","SS 2.3.1.21.4","The Contractor shall put into operation the SCADA system at Amanzimtoti Pumping Station Control Room as shown on the BWD Telemetry Automation network layout drawing RA_39497.","Sum",1]
["261","SS 2.3.1.21.5","The Contractor shall put into operation one (1) BWD Telemetry Communication Panel with all components as shown on the BWD Telemetry Communication Panel General Arrangement drawing RA_39498.","Sum",1]
["262","SS 2.3.1.21.6","The Contractor shall put into operation two (2) power supplies as shown on the BWD Telemetry Communication Panel drawing RA_39498.","Sum",1]
["263","SS 2.3.1.21.7","The Contractor shall put into operation the din-railed uninterrupted power supply (UPS) as shown on the BWD Telemetry Automation network layout drawing RA_39497.","Sum",1]
["264","SS 2.3.1.21.8","The Contractor shall design, supply, deliver, install, test and commission of all low voltage power and control cabling including earthing.","Sum",1]
["265","SS 2.3.1.21.9","The Contractor shall supply, deliver, install, test and commission the SCADA PC at Amanzimtoti Pumping Station Control Room as shown on the BWD Telemetry Automation network layout drawing RA_39497.","Sum",1]
["266","SS 2.3.1.22.1","The Contractor shall design and supply all Automation design requirements and quality documents including, but not limited to all the items as mentioned in Section 6.3.","Sum",1]
["267","SS 2.3.1.22.2.1","The Contractor shall put into operation two (2) ultrasonic level sensors and transmitters for Langerand Reservoir-1 and Resevoir-2 level measurement as shown on the BWD Telemetry Automation network layout drawing RA_39497.","Sum",1]
["268","SS 2.3.1.22.2.2","The Contractor shall put into operation two (2) radar level sensors and transmitters for Langerand Reservoir-1 and Resevoir-2 level measurement as shown on the BWD Telemetry Automation network layout drawing RA_39497.","Sum",1]
["269","SS 2.3.1.22.3","The Contractor shall put into operation the wireless network for linking the wireless level transmitters and wireless radio receiver as shown on the BWD Telemetry Automation network layout drawing RA_39497.","Sum",1]
["270","SS 2.3.1.22.4","The Contractor shall put into operation the Ethernet network system as shown on the BWD Telemetry Automation network layout drawing RA_39497.","Sum",1]
["271","SS 2.3.1.22.5","The Contractor shall put into operation one wireless GPRS/GSM modem for transmitting data to Central Depot Control Room and Amanzimtoti Pumping Station Control Room as shown on the BWD Telemetry Automation network layout drawing RA_39497.","Sum",1]
["272","SS 2.3.1.22.6","The Contractor shall put into operation the SCADA system at Central Depot Control Room and Amanzimtoti Pumping Station Control Room as shown on the BWD Telemetry Automation network layout drawing RA_39497.","Sum",1]
["273","SS 2.3.1.22.7","The Contractor shall put into operation one (1) BWD Telemetry communication panel with all components as shown on the BWD Telemetry Communication Panel General Arrangement drawing RA_39498 and BWD Telemetry Building Site Plan RA_39634.","Sum",1]
["274","SS 2.3.1.22.8","The Contractor shall put into operation two (2) BWD Junction Boxes with all components for Langerand Reservoir-1 and Resevoir-2 as shown on the BWD Reservoir Junction Box drawing RA_39500 and BWD Reservoir Automation Kiosk Building Site Plan Drawing RA_39640.","Sum",1]
["275","SS 2.3.1.22.9","The Contractor shall put into operation one (1) BWD Reservoir Automation Kiosk for the level transmitters for Langerand Reservoir-1 as shown on the BWD Reservoir Automation Kiosk General Arrangement Drawing RA_29317-001.","Sum",1]
["276","SS 2.3.1.22.10","The Contractor shall put into operation two (2) power supplies as shown on the BWD Telemetry Communication Panel drawing RA_39498.","Sum",1]
["277","SS 2.3.1.22.11","The Contractor shall put into operation the din-railed uninterrupted power supply (UPS) as shown on the BWD Telemetry Automation network layout drawing RA_39497.","Sum",1]
["278","SS 2.3.1.22.12","The Contractor shall design, supply, deliver, install, test and commission of all low voltage power and control cabling including earthing.","Sum",1]
["279","SS 2.3.1.23.1","The Contractor shall design and supply all Automation design requirements and quality documents including, but not limited to all the items as mentioned in Section 6.3.","Sum",1]
["280","SS 2.3.1.23.2.1","The Contractor shall put into operation three (3) ultrasonic level sensors and transmitters for Brakpan Depot Reservoir-1, Resevoir-2 and Reservoir-3 level measurement as shown on the BWD Telemetry Automation network layout drawing RA_39497.","Sum",1]
["281","SS 2.3.1.23.2.2","The Contractor shall put into operation three (3) radar level sensors and transmitters for Brakpan Depot Reservoir-1, Resevoir-2 and Reservoir-3 level measurement as shown on the BWD Telemetry Automation network layout drawing RA_39497.","Sum",1]
["282","SS 2.3.1.23.3","The Contractor shall put into operation the wireless network for linking the wireless level transmitters and wireless radio receiver as shown on the BWD Telemetry Automation network layout drawing RA_39497.","Sum",1]
["283","SS 2.3.1.23.4","The Contractor shall put into operation the Ethernet network system as shown on the BWD Telemetry Automation network layout drawing RA_39497.","Sum",1]
["284","SS 2.3.1.23.5.1","The Contractor shall put into operation one wireless GPRS/GSM modem for transmitting data to Central Depot Control Room and Brakpan Depot Control Room as shown on the BWD Telemetry Automation network layout drawing RA_39497.","Sum",1]
["285","SS 2.3.1.23.5.2","The Contractor shall put into operation one wireless GPRS/GSM modem for receiving data from the Brakpan Depot and Selcourt Reservoir sites as shown on the BWD Telemetry Automation network layout drawing RA_39497 and BWD Overall Regional Reservoirs Automation network layout drawing RO_39638.","Sum",1]
["286","SS 2.3.1.23.6","The Contractor shall put into operation the SCADA system at Central Depot Control Room and Brakpan Depot Control Room as shown on the BWD Telemetry Automation network layout drawing RA_39497.","Sum",1]
["287","SS 2.3.1.23.7","The Contractor shall put into operation one (1) BWD Telemetry communication panel with all components as shown on the BWD Telemetry Communication Panel General Arrangement drawing RA_39498 and BWD Telemetry Building Site Plan RA_39634.","Sum",1]
["288","SS 2.3.1.23.8","The Contractor shall put into operation three (3) BWD Junction Boxes with all components for Brakpan Depot Reservoir-1, Resevoir-2 and Reservoir-3 as shown on the BWD Reservoir Junction Box drawing RA_39500.","Sum",1]
["289","SS 2.3.1.23.9","The Contractor shall put into operation three (3) BWD Reservoir Automation Kiosks for the level transmitters for Brakpan Depot Reservoir-1, Resevoir-2 and Reservoir-3 as shown on the BWD Reservoir Automation Kiosk General Arrangement Drawing RA_29317-001.","Sum",1]
["290","SS 2.3.1.23.10","The Contractor shall put into operation two (2) power supplies as shown on the BWD Telemetry Communication Panel drawing RA_39498.","Sum",1]
["291","SS 2.3.1.23.11","The Contractor shall put into operation the din-railed uninterrupted power supply (UPS) as shown on the BWD Telemetry Automation network layout drawing RA_39497.","Sum",1]
["292","SS 2.3.1.23.12","The Contractor shall design, supply, deliver, install, test and commission of all low voltage power and control cabling including earthing.","Sum",1]
["293","SS 2.3.1.23.13","The Contractor shall supply, deliver, install, test and commission the SCADA PC at Brakpan Depot Control Room as shown on the BWD Telemetry Automation network layout drawing RA_39497.","Sum",1]
["294","SS 2.3.1.23.14","The Contractor shall put into operation the 316L Stainless Steel Manhole Cover on top of the Brakpan Reservoir-1 respectively.","Sum",1]
["295","SS 2.3.1.24.1","The Contractor shall design and supply all Automation design requirements and quality documents including, but not limited to all the items as mentioned in Section 6.3.","Sum",1]
["296","SS 2.3.1.24.2.1","The Contractor shall put into operation one (1) ultrasonic level sensor and transmitter for Selcourt Reservoir-1 level measurement as shown on the BWD Telemetry Automation network layout drawing RA_39497.","Sum",1]
["297","SS 2.3.1.24.2.2","The Contractor shall put into operation one (1) radar level sensor and transmitter for Selcourt Reservoir-1 level measurement as shown on the BWD Telemetry Automation network layout drawing RA_39497.","Sum",1]
["298","SS 2.3.1.24.3","The Contractor shall put into operation the wireless network for linking the wireless level transmitters and wireless radio receiver as shown on the BWD Telemetry Automation network layout drawing RA_39497.","Sum",1]
["299","SS 2.3.1.24.4","The Contractor shall put into operation the Ethernet network system as shown on the BWD Telemetry Automation network layout drawing RA_39497.","Sum",1]
["300","SS 2.3.1.24.5","The Contractor shall put into operation one wireless GPRS/GSM modem for transmitting data to Central Depot Control Room and Brakpan Depot Control Room as shown on the BWD Telemetry Automation network layout drawing RA_39497.","Sum",1]
["301","SS 2.3.1.24.6","The Contractor shall put into operation the SCADA system at Central Depot Control Room and Brakpan Depot Control Room as shown on the BWD Telemetry Automation network layout drawing RA_39497.","Sum",1]
["302","SS 2.3.1.24.7","The Contractor shall put into operation one (1) BWD Telemetry communication panel with all components as shown on the BWD Telemetry Communication Panel General Arrangement drawing RA_39498 and BWD Telemetry Building Site Plan RA_39634.","Sum",1]
["303","SS 2.3.1.24.8","The Contractor shall put into operation one (1) BWD Junction Box with all components for Selcourt Reservoir-1 as shown on the BWD Reservoir Junction Box drawing RA_39500.","Sum",1]
["304","SS 2.3.1.24.9","The Contractor shall put into operation one (1) BWD Reservoir Automation Kiosk for the level transmitters for Selcourt Reservoir-1 as shown on the BWD Reservoir Automation Kiosk General Arrangement Drawing RA_29317-001.","Sum",1]
["305","SS 2.3.1.24.10","The Contractor shall put into operation two (2) power supplies as shown on the BWD Telemetry Communication Panel drawing RA_39498.","Sum",1]
["306","SS 2.3.1.24.11","The Contractor shall put into operation the din-railed uninterrupted power supply (UPS) as shown on the BWD Telemetry Automation network layout drawing RA_39497.","Sum",1]
["307","SS 2.3.1.24.12","The Contractor shall design, supply, deliver, install, test and commission of all low voltage power and control cabling including earthing.","Sum",1]
["308","SS 2.3.1.24.13","The Contractor shall put into operation the 316L Stainless Steel Manhole Cover on top of the Selcourt Reservoir-1 respectively.","Sum",1]
["309","SS 2.3.1.25.1","The Contractor shall design and supply all Automation design requirements and quality documents including, but not limited to all the items as mentioned in Section 6.3.","Sum",1]
["310","SS 2.3.1.25.2","The Contractor shall put into operation the Ethernet network system as shown on the BWD Telemetry Automation network layout drawing RA_39497.","Sum",1]
["311","SS 2.3.1.25.3","The Contractor shall put into operation one wireless GPRS/GSM or VSAT Satellite solution modem for receiving data from the Delmas, Stompiesfontein, Wildebeestfontein and Bethal 4.5ML Reservoir sites as shown on the BWD Telemetry Automation network layout drawing RA_39497 and BWD Overall Regional Reservoirs Automation network layout drawing RO_39638.","Sum",1]
["312","SS 2.3.1.25.4","The Contractor shall put into operation the SCADA system at Bloemendal Pumping Station Control Room as shown on the BWD Telemetry Automation network layout drawing RA_39497.","Sum",1]
["313","SS 2.3.1.25.5","The Contractor shall put into operation one (1) BWD Telemetry Communication Panel with all components as shown on the BWD Telemetry Communication Panel General Arrangement drawing RA_39498.","Sum",1]
["314","SS 2.3.1.25.6","The Contractor shall put into operation two (2) power supplies as shown on the BWD Telemetry Communication Panel drawing RA_39498.","Sum",1]
["315","SS 2.3.1.25.7","The Contractor shall put into operation the din-railed uninterrupted power supply (UPS) as shown on the BWD Telemetry Automation network layout drawing RA_39497.","Sum",1]
["316","SS 2.3.1.25.8","The Contractor shall design, supply, deliver, install, test and commission of all low voltage power and control cabling including earthing.","Sum",1]
["317","SS 2.3.1.25.9","The Contractor shall supply, deliver, install, test and commission the SCADA PC at Bloemendal Pumping Station Control Room as shown on the BWD Telemetry Automation network layout drawing RA_39497.","Sum",1]
["318","SS 2.3.1.26.1","The Contractor shall design and supply all Automation design requirements and quality documents including, but not limited to all the items as mentioned in Section 6.3.","Sum",1]
["319","SS 2.3.1.26.2.1","The Contractor shall put into operation one (1) ultrasonic level sensor and transmitter for Stompiesfontein Reservoir-1 level measurement as shown on the BWD Telemetry Automation network layout drawing RA_39497.","Sum",1]
["320","SS 2.3.1.26.2.2","The Contractor shall put into operation one (1) radar level sensor and transmitter for Stompiesfontein Reservoir-1 level measurement as shown on the BWD Telemetry Automation network layout drawing RA_39497.","Sum",1]
["321","SS 2.3.1.26.3","The Contractor shall put into operation the wireless network for linking the wireless level transmitters and wireless radio receiver as shown on the BWD Telemetry Automation network layout drawing RA_39497.","Sum",1]
["322","SS 2.3.1.26.4","The Contractor shall put into operation the Ethernet network system as shown on the BWD Telemetry Automation network layout drawing RA_39497.","Sum",1]
["323","SS 2.3.1.26.5","The Contractor shall put into operation one wireless GPRS/GSM modem for transmitting data to Central Depot Control Room and Bloemendal Pumping Station Control Room as shown on the BWD Telemetry Automation network layout drawing RA_39497.","Sum",1]
["324","SS 2.3.1.26.6","The Contractor shall put into operation the SCADA system at Central Depot Control Room and Bloemendal Pumping Station Control Room as shown on the BWD Telemetry Automation network layout drawing RA_39497.","Sum",1]
["325","SS 2.3.1.26.7","The Contractor shall put into operation one (1) BWD Telemetry communication panel with all components as shown on the BWD Telemetry Communication Panel General Arrangement drawing RA_39498 and BWD Telemetry Building Site Plan RA_39634.","Sum",1]
["326","SS 2.3.1.26.8","The Contractor shall put into operation one (1) BWD Junction Box with all components for Stompiesfontein Reservoir-1 as shown on the BWD Reservoir Junction Box drawing RA_39500.","Sum",1]
["327","SS 2.3.1.26.9","The Contractor shall put into operation one (1) BWD Reservoir Automation Kiosk for the level transmitters for Stompiesfontein Reservoir-1 as shown on the BWD Reservoir Automation Kiosk General Arrangement Drawing RA_29317-001.","Sum",1]
["328","SS 2.3.1.26.10","The Contractor shall put into operation two (2) power supplies as shown on the BWD Telemetry Communication Panel drawing RA_39498.","Sum",1]
["329","SS 2.3.1.26.11","The Contractor shall put into operation the din-railed uninterrupted power supply (UPS) as shown on the BWD Telemetry Automation network layout drawing RA_39497.","Sum",1]
["330","SS 2.3.1.26.12","The Contractor shall design, supply, deliver, install, test and commission of all low voltage power and control cabling including earthing.","Sum",1]
["331","SS 2.3.1.27.1","The Contractor shall design and supply all Automation design requirements and quality documents including, but not limited to all the items as mentioned in Section 6.3.","Sum",1]
["332","SS 2.3.1.27.2.1","The Contractor shall put into operation three (3) ultrasonic level sensors and transmitters for Wildebeestfontein Reservoir-1, Resevoir-2 and Reservoir-3 level measurement as shown on the BWD Telemetry Automation network layout drawing RA_39497.","Sum",1]
["333","SS 2.3.1.27.2.2","The Contractor shall put into operation three (3) radar level sensors and transmitters for Wildebeestfontein Reservoir-1, Resevoir-2 and Reservoir-3 level measurement as shown on the BWD Telemetry Automation network layout drawing RA_39497.","Sum",1]
["334","SS 2.3.1.27.3","The Contractor shall put into operation the wireless network for linking the wireless level transmitters and wireless radio receiver as shown on the BWD Telemetry Automation network layout drawing RA_39497.","Sum",1]
["335","SS 2.3.1.27.4","The Contractor shall put into operation the Ethernet network system as shown on the BWD Telemetry Automation network layout drawing RA_39497.","Sum",1]
["336","SS 2.3.1.27.5","The Contractor shall put into operation one wireless GPRS/GSM modem for transmitting data to Central Depot Control Room and Bloemendal Pumping Station Control Room as shown on the BWD Telemetry Automation network layout drawing RA_39497.","Sum",1]
["337","SS 2.3.1.27.6","The Contractor shall put into operation the SCADA system at Central Depot Control Room and Bloemendal Pumping Station Control Room as shown on the BWD Telemetry Automation network layout drawing RA_39497.","Sum",1]
["338","SS 2.3.1.27.7","The Contractor shall put into operation one (1) BWD Telemetry communication panel with all components as shown on the BWD Telemetry Communication Panel General Arrangement drawing RA_39498 and BWD Telemetry Building Site Plan RA_39634.","Sum",1]
["339","SS 2.3.1.27.8","The Contractor shall put into operation three (3) BWD Junction Boxes with all components for Wildebeestfontein Reservoir-1, Resevoir-2 and Reservoir-3 as shown on the BWD Reservoir Junction Box drawing RA_39500.","Sum",1]
["340","SS 2.3.1.27.9","The Contractor shall put into operation three (3) BWD Reservoir Automation Kiosks for the level transmitters for Wildebeestfontein Reservoir-1, Resevoir-2 and Reservoir-3 as shown on the BWD Reservoir Automation Kiosk General Arrangement Drawing RA_29317-001.","Sum",1]
["341","SS 2.3.1.27.10","The Contractor shall put into operation two (2) power supplies as shown on the BWD Telemetry Communication Panel drawing RA_39498.","Sum",1]
["342","SS 2.3.1.27.11","The Contractor shall put into operation the din-railed uninterrupted power supply (UPS) as shown on the BWD Telemetry Automation network layout drawing RA_39497.","Sum",1]
["343","SS 2.3.1.27.12","The Contractor shall design, supply, deliver, install, test and commission of all low voltage power and control cabling including earthing.","Sum",1]
["344","SS 2.3.1.28.1","The Contractor shall design and supply all Automation design requirements and quality documents including, but not limited to all the items as mentioned in Section 6.3.","Sum",1]
["345","SS 2.3.1.28.2","The Contractor shall put into operation the Ethernet network system as shown on the BWD Telemetry Automation network layout drawing RA_39497.","Sum",1]
["346","SS 2.3.1.28.3","The Contractor shall put into operation one wireless GPRS/GSM modem or VSAT Satellite solution for receiving data from the Bethal 4.5ML Reservoir site as shown on the BWD Telemetry Automation network layout drawing RA_39497 and BWD Overall Regional Reservoirs Automation network layout drawing RO_39638.","Sum",1]
["347","SS 2.3.1.28.4","The Contractor shall put into operation the SCADA system at Trichardt Pumping Station Control Room as shown on the BWD Telemetry Automation network layout drawing RA_39497.","Sum",1]
["348","SS 2.3.1.28.5","The Contractor shall put into operation one (1) BWD Telemetry Communication Panel with all components as shown on the BWD Telemetry Communication Panel General Arrangement drawing RA_39498.","Sum",1]
["349","SS 2.3.1.28.6","The Contractor shall put into operation two (2) power supplies as shown on the BWD Telemetry Communication Panel drawing RA_39498.","Sum",1]
["350","SS 2.3.1.28.7","The Contractor shall put into operation the din-railed uninterrupted power supply (UPS) as shown on the BWD Telemetry Automation network layout drawing RA_39497.","Sum",1]
["351","SS 2.3.1.28.8","The Contractor shall design, supply, deliver, install, test and commission of all low voltage power and control cabling including earthing.","Sum",1]
["352","SS 2.3.1.28.9","The Contractor shall supply, deliver, install, test and commission the SCADA PC at Trichardt Pumping Station Control Room as shown on the BWD Telemetry Automation network layout drawing RA_39497.","Sum",1]
["353","SS 2.3.1.29.1","The Contractor shall design and supply all Automation design requirements and quality documents including, but not limited to all the items as mentioned in Section 6.3.","Sum",1]
["354","SS 2.3.1.29.2.1","The Contractor shall put into operation two (2) ultrasonic level sensors and transmitters for Benoni Depot Reservoir-1 and Resevoir-2 level measurement as shown on the BWD Telemetry Automation network layout drawing RA_39497.","Sum",1]
["355","SS 2.3.1.29.2.2","The Contractor shall put into operation two (2) radar level sensors and transmitters for Benoni Depot Reservoir-1 and Resevoir-2 level measurement as shown on the BWD Telemetry Automation network layout drawing RA_39497.","Sum",1]
["356","SS 2.3.1.29.3","The Contractor shall put into operation the wireless network for linking the wireless level transmitters and wireless radio receiver as shown on the BWD Telemetry Automation network layout drawing RA_39497.","Sum",1]
["357","SS 2.3.1.29.4","The Contractor shall put into operation the Ethernet network system as shown on the BWD Telemetry Automation network layout drawing RA_39497.","Sum",1]
["358","SS 2.3.1.29.5.1","The Contractor shall put into operation one wireless GPRS/GSM modem for transmitting data to Central Depot Control Room and Benoni Depot Control Room as shown on the BWD Telemetry Automation network layout drawing RA_39497 and BWD Overall Regional Reservoirs Automation network layout drawing RO_39638.","Sum",1]
["359","SS 2.3.1.29.5.2","The Contractor shall put into operation one wireless GPRS/GSM modem for receiving data from the Benoni Depot, Vlakfontein, Bronberge and Modder East Reservoir sites as shown on the BWD Telemetry Automation network layout drawing RA_39497 and BWD Overall Regional Reservoirs Automation network layout drawing RO_39638.","Sum",1]
["360","SS 2.3.1.29.6","The Contractor shall put into operation the SCADA system at Central Depot Control Room and Benoni Depot Control Room as shown on the BWD Telemetry Automation network layout drawing RA_39497.","Sum",1]
["361","SS 2.3.1.29.7","The Contractor shall put into operation one (1) BWD Telemetry communication panel with all components as shown on the BWD Telemetry Communication Panel General Arrangement drawing RA_39498 and BWD Telemetry Building Site Plan RA_39634.","Sum",1]
["362","SS 2.3.1.29.8","The Contractor shall put into operation two (2) BWD Junction Boxes with all components for Benoni Depot Reservoir-2 and Resevoir-3 as shown on the BWD Reservoir Junction Box drawing RA_39500.","Sum",1]
["363","SS 2.3.1.29.9","The Contractor shall put into operation two (2) BWD Reservoir Automation Kiosks for the level transmitters for Benoni Depot Reservoir-2 and Resevoir-3 as shown on the BWD Reservoir Automation Kiosk General Arrangement Drawing RA_29317-001.","Sum",1]
["364","SS 2.3.1.29.10","The Contractor shall put into operation two (2) power supplies as shown on the BWD Telemetry Communication Panel drawing RA_39498.","Sum",1]
["365","SS 2.3.1.29.11","The Contractor shall put into operation the din-railed uninterrupted power supply (UPS) as shown on the BWD Telemetry Automation network layout drawing RA_39497.","Sum",1]
["366","SS 2.3.1.29.12","The Contractor shall design, supply, deliver, install, test and commission of all low voltage power and control cabling including earthing.","Sum",1]
["367","SS 2.3.1.29.13","The Contractor shall supply, deliver, install, test and commission the SCADA PC at Benoni Depot Control Room as shown on the BWD Telemetry Automation network layout drawing RA_39497.","Sum",1]
["368","SS 2.3.1.29.14","The Contractor shall put into operation the 316L Stainless Steel Manhole Cover on top of the Benoni Reservoir-2 and Resrvoir-3 respectively.","Sum",1]
["369","SS 2.3.1.30.1","The Contractor shall design and supply all Automation design requirements and quality documents including, but not limited to all the items as mentioned in Section 6.3.","Sum",1]
["370","SS 2.3.1.30.2.1","The Contractor shall put into operation two (2) ultrasonic level sensors and transmitters for Vlakfontein Reservoir-1 and Resevoir-2 level measurement as shown on the BWD Telemetry Automation network layout drawing RA_39497.","Sum",1]
["371","SS 2.3.1.30.2.2","The Contractor shall put into operation two (2) radar level sensors and transmitters for Vlakfontein Reservoir-1 and Resevoir-2 level measurement as shown on the BWD Telemetry Automation network layout drawing RA_39497.","Sum",1]
["372","SS 2.3.1.30.3","The Contractor shall put into operation the wireless network for linking the wireless level transmitters and wireless radio receiver as shown on the BWD Telemetry Automation network layout drawing RA_39497.","Sum",1]
["373","SS 2.3.1.30.4","The Contractor shall put into operation the Ethernet network system as shown on the BWD Telemetry Automation network layout drawing RA_39497.","Sum",1]
["374","SS 2.3.1.30.5","The Contractor shall put into operation one wireless GPRS/GSM modem for transmitting data to Central Depot Control Room and Benoni Depot Control Room as shown on the BWD Telemetry Automation network layout drawing RA_39497.","Sum",1]
["375","SS 2.3.1.30.6","The Contractor shall put into operation the SCADA system at Central Depot Control Room and Benoni Depot Control Room as shown on the BWD Telemetry Automation network layout drawing RA_39497.","Sum",1]
["376","SS 2.3.1.30.7","The Contractor shall put into operation one (1) BWD Telemetry communication panel with all components as shown on the BWD Telemetry Communication Panel General Arrangement drawing RA_39498 and BWD Telemetry Building Site Plan RA_39634.","Sum",1]
["377","SS 2.3.1.30.8","The Contractor shall put into operation two (2) BWD Junction Boxes with all components for Vlakfontein Reservoir-1 and Resevoir-2 as shown on the BWD Reservoir Junction Box drawing RA_39500.","Sum",1]
["378","SS 2.3.1.30.9","The Contractor shall put into operation two (2) BWD Reservoir Automation Kiosks for the level transmitters for Vlakfontein Reservoir-1 and Resevoir-2 as shown on the BWD Reservoir Automation Kiosk General Arrangement Drawing RA_29317-001.","Sum",1]
["379","SS 2.3.1.30.10","The Contractor shall put into operation two (2) power supplies as shown on the BWD Telemetry Communication Panel drawing RA_39498.","Sum",1]
["380","SS 2.3.1.30.11","The Contractor shall put into operation the din-railed uninterrupted power supply (UPS) as shown on the BWD Telemetry Automation network layout drawing RA_39497.","Sum",1]
["381","SS 2.3.1.30.12","The Contractor shall design, supply, deliver, install, test and commission of all low voltage power and control cabling including earthing.","Sum",1]
["382","SS 2.3.1.31.1","The Contractor shall design and supply all Automation design requirements and quality documents including, but not limited to all the items as mentioned in Section 6.3.","Sum",1]
["383","SS 2.3.1.31.2.1","The Contractor shall put into operation one (1) ultrasonic level sensor and transmitter for Bronberge Reservoir-1 level measurement as shown on the BWD Telemetry Automation network layout drawing RA_39497.","Sum",1]
["384","SS 2.3.1.31.2.2","The Contractor shall put into operation one (1) radar level sensor and transmitter for Bronberge Reservoir-1 level measurement as shown on the BWD Telemetry Automation network layout drawing RA_39497.","Sum",1]
["385","SS 2.3.1.31.3","The Contractor shall put into operation the wireless network for linking the wireless level transmitters and wireless radio receiver as shown on the BWD Telemetry Automation network layout drawing RA_39497.","Sum",1]
["386","SS 2.3.1.31.4","The Contractor shall put into operation the Ethernet network system as shown on the BWD Telemetry Automation network layout drawing RA_39497.","Sum",1]
["387","SS 2.3.1.31.5","The Contractor shall put into operation one wireless GPRS/GSM modem for transmitting data to Central Depot Control Room and Benoni Depot Control Room as shown on the BWD Telemetry Automation network layout drawing RA_39497.","Sum",1]
["388","SS 2.3.1.31.6","The Contractor shall put into operation the SCADA system at Central Depot Control Room and Benoni Depot Control Room as shown on the BWD Telemetry Automation network layout drawing RA_39497.","Sum",1]
["389","SS 2.3.1.31.7","The Contractor shall put into operation one (1) BWD Telemetry communication panel with all components as shown on the BWD Telemetry Communication Panel General Arrangement drawing RA_39498 and BWD Telemetry Building Site Plan RA_39634.","Sum",1]
["390","SS 2.3.1.31.8","The Contractor shall put into operation one (1) BWD Junction Box with all components for Bronberge Reservoir-1 as shown on the BWD Reservoir Junction Box drawing RA_39500.","Sum",1]
["391","SS 2.3.1.31.9","The Contractor shall put into operation one (1) BWD Reservoir Automation Kiosk for the level transmitters for Bronberge Reservoir-1 as shown on the BWD Reservoir Automation Kiosk General Arrangement Drawing RA_29317-001.","Sum",1]
["392","SS 2.3.1.31.10","The Contractor shall put into operation two (2) power supplies as shown on the BWD Telemetry Communication Panel drawing RA_39498.","Sum",1]
["393","SS 2.3.1.31.11","The Contractor shall put into operation the din-railed uninterrupted power supply (UPS) as shown on the BWD Telemetry Automation network layout drawing RA_39497.","Sum",1]
["394","SS 2.3.1.31.12","The Contractor shall design, supply, deliver, install, test and commission of all low voltage power and control cabling including earthing.","Sum",1]
["395","SS 2.3.1.32.1","The Contractor shall design and supply all Automation design requirements and quality documents including, but not limited to all the items as mentioned in Section 6.3.","Sum",1]
["396","SS 2.3.1.32.2.1","The Contractor shall put into operation one (1) ultrasonic level sensor and transmitter for Modder East Reservoir-1 level measurement as shown on the BWD Telemetry Automation network layout drawing RA_39497.","Sum",1]
["397","SS 2.3.1.32.2.2","The Contractor shall put into operation one (1) radar level sensor and transmitter for Modder East Reservoir-1 level measurement as shown on the BWD Telemetry Automation network layout drawing RA_39497.","Sum",1]
["398","SS 2.3.1.32.3","The Contractor shall put into operation the wireless network for linking the wireless level transmitters and wireless radio receiver as shown on the BWD Telemetry Automation network layout drawing RA_39497.","Sum",1]
["399","SS 2.3.1.32.4","The Contractor shall put into operation the Ethernet network system as shown on the BWD Telemetry Automation network layout drawing RA_39497.","Sum",1]
["400","SS 2.3.1.32.5","The Contractor shall put into operation one wireless GPRS/GSM modem for transmitting data to Central Depot Control Room and Benoni Depot Control Room as shown on the BWD Telemetry Automation network layout drawing RA_39497.","Sum",1]
["401","SS 2.3.1.32.6","The Contractor shall put into operation the SCADA system at Central Depot Control Room and Benoni Depot Control Room as shown on the BWD Telemetry Automation network layout drawing RA_39497.","Sum",1]
["402","SS 2.3.1.32.7","The Contractor shall put into operation one (1) BWD Telemetry communication panel with all components as shown on the BWD Telemetry Communication Panel General Arrangement drawing RA_39498 and BWD Telemetry Building Site Plan RA_39634.","Sum",1]
["403","SS 2.3.1.32.8","The Contractor shall put into operation one (1) BWD Junction Box with all components for Modder East Reservoir-1 as shown on the BWD Reservoir Junction Box drawing RA_39500.","Sum",1]
["404","SS 2.3.1.32.9","The Contractor shall put into operation one (1) BWD Reservoir Automation Kiosk for the level transmitters for Modder East Reservoir-1 as shown on the BWD Reservoir Automation Kiosk General Arrangement Drawing RA_29317-001.","Sum",1]
["405","SS 2.3.1.32.10","The Contractor shall put into operation two (2) power supplies as shown on the BWD Telemetry Communication Panel drawing RA_39498.","Sum",1]
["406","SS 2.3.1.32.11","The Contractor shall put into operation the din-railed uninterrupted power supply (UPS) as shown on the BWD Telemetry Automation network layout drawing RA_39497.","Sum",1]
["407","SS 2.3.1.32.12","The Contractor shall design, supply, deliver, install, test and commission of all low voltage power and control cabling including earthing.","Sum",1]
["408","SS 2.3.1.32.13","The Contractor shall put into operation the 316L Stainless Steel Manhole Cover on top of the Brakpan Reservoir-1 respectively.","Sum",1]
["409","SS 2.3.1.33.1","The Contractor shall design and supply all Automation design requirements and quality documents including, but not limited to all the items as mentioned in Section 6.3.","Sum",1]
["410","SS 2.3.1.33.2","The Contractor shall put into operation the Ethernet network system as shown on the BWD Telemetry Automation network layout drawing RA_39497.","Sum",1]
["411","SS 2.3.1.33.3","The Contractor shall put into operation one wireless GPRS/GSM modem for receiving data from the reservoir sites as shown on the BWD Telemetry Automation network layout drawing RA_39497.","Sum",1]
["412","SS 2.3.1.33.4","The Contractor shall put into operation the SCADA system at Mamelodi Pumping Station Control Room as shown on the BWD Telemetry Automation network layout drawing RA_39497.","Sum",1]
["413","SS 2.3.1.33.5","The Contractor shall supply, deliver, install, test and commission the SCADA PC at Mamelodi Pumping Station Control Room as shown on the BWD Telemetry Automation network layout drawing RA_39497.","Sum",1]
["414","SS 2.3.1.34.1","The Contractor shall design and supply all Automation design requirements and quality documents including, but not limited to all the items as mentioned in Section 6.3.","Sum",1]
["415","SS 2.3.1.34.2","The Contractor shall put into operation the Ethernet network system as shown on the BWD Telemetry Automation network layout drawing RA_39497.","Sum",1]
["416","SS 2.3.1.34.3","The Contractor shall put into operation one wireless GPRS/GSM modem or VSAT Satellite solution for receiving data from the reservoir sites as shown on the BWD Telemetry Automation network layout drawing RA_39497.","Sum",1]
["417","SS 2.3.1.34.4","The Contractor shall put into operation the SCADA system at Cullinan Pumping Station Control Room as shown on the BWD Telemetry Automation network layout drawing RA_39497.","Sum",1]
["418","SS 2.3.1.34.5","The Contractor shall supply, deliver, install, test and commission the SCADA PC at Cullinan Pumping Station Control Room as shown on the BWD Telemetry Automation network layout drawing RA_39497.","Sum",1]
["419","SS 2.3.1.35.1","The Contractor shall design and supply all Automation design requirements and quality documents including, but not limited to all the items as mentioned in Section 6.3.","Sum",1]
["420","SS 2.3.1.35.2.1","The Contractor shall put into operation one (1) ultrasonic level sensor and transmitter for Germiston Reservoir-1 level measurement as shown on the BWD Telemetry Automation network layout drawing RA_39497.","Sum",1]
["421","SS 2.3.1.35.2.2","The Contractor shall put into operation one (1) radar level sensor and transmitter for Germiston Reservoir-1 level measurement as shown on the BWD Telemetry Automation network layout drawing RA_39497.","Sum",1]
["422","SS 2.3.1.35.3","The Contractor shall put into operation the wireless network for linking the wireless level transmitters and wireless radio receiver as shown on the BWD Telemetry Automation network layout drawing RA_39497.","Sum",1]
["423","SS 2.3.1.35.4","The Contractor shall put into operation the Ethernet network system as shown on the BWD Telemetry Automation network layout drawing RA_39497.","Sum",1]
["424","SS 2.3.1.35.5.1","The Contractor shall put into operation one wireless GPRS/GSM modem for transmitting data to Central Depot Control Room and Germiston Depot Control Room as shown on the BWD Telemetry Automation network layout drawing RA_39497.","Sum",1]
["425","SS 2.3.1.35.5.2","The Contractor shall put into operation one wireless GPRS/GSM modem for receiving data from the Germiston Depot, Northridge and Airfield Reservoir sites as shown on the BWD Telemetry Automation network layout drawing RA_39497.","Sum",1]
["426","SS 2.3.1.35.6","The Contractor shall put into operation the SCADA system at Central Depot Control Room and Germiston Depot Control Room as shown on the BWD Telemetry Automation network layout drawing RA_39497.","Sum",1]
["427","SS 2.3.1.35.7","The Contractor shall put into operation one (1) BWD Telemetry communication panel with all components as shown on the BWD Telemetry Communication Panel General Arrangement drawing RA_39498 and BWD Telemetry Building Site Plan RA_39634.","Sum",1]
["428","SS 2.3.1.35.8","The Contractor shall put into operation one (1) BWD Junction Box with all components for Germiston Reservoir-1 as shown on the BWD Reservoir Junction Box drawing RA_39500.","Sum",1]
["429","SS 2.3.1.35.9","The Contractor shall put into operation one (1) BWD Reservoir Automation Kiosk for the level transmitters for Germiston Reservoir-1 as shown on the BWD Reservoir Automation Kiosk General Arrangement Drawing RA_29317-001.","Sum",1]
["430","SS 2.3.1.35.10","The Contractor shall put into operation two (2) power supplies as shown on the BWD Telemetry Communication Panel drawing RA_39498.","Sum",1]
["431","SS 2.3.1.35.11","The Contractor shall put into operation the din-railed uninterrupted power supply (UPS) as shown on the BWD Telemetry Automation network layout drawing RA_39497.","Sum",1]
["432","SS 2.3.1.35.12","The Contractor shall design, supply, deliver, install, test and commission of all low voltage power and control cabling including earthing.","Sum",1]
["433","SS 2.3.1.35.13","The Contractor shall supply, deliver, install, test and commission the SCADA PC at Germiston Depot Control Room as shown on the BWD Telemetry Automation network layout drawing RA_39497.","Sum",1]
["434","SS 2.3.1.35.14","The Contractor shall put into operation the 316L Stainless Steel Manhole Cover on top of the Germiston Reservoir-1 respectively.","Sum",1]
["435","SS 2.3.1.36.1","The Contractor shall design and supply all Automation design requirements and quality documents including, but not limited to all the items as mentioned in Section 6.3.","Sum",1]
["436","SS 2.3.1.36.2.1","The Contractor shall put into operation one (1) ultrasonic level sensor and transmitter for Northridge Reservoir-1 level measurement as shown on the BWD Telemetry Automation network layout drawing RA_39497.","Sum",1]
["437","SS 2.3.1.36.2.2","The Contractor shall put into operation one (1) radar level sensor and transmitter for Northridge Reservoir-1 level measurement as shown on the BWD Telemetry Automation network layout drawing RA_39497.","Sum",1]
["438","SS 2.3.1.36.3","The Contractor shall put into operation the wireless network for linking the wireless level transmitters and wireless radio receiver as shown on the BWD Telemetry Automation network layout drawing RA_39497.","Sum",1]
["439","SS 2.3.1.36.4","The Contractor shall put into operation the Ethernet network system as shown on the BWD Telemetry Automation network layout drawing RA_39497.","Sum",1]
["440","SS 2.3.1.36.5","The Contractor shall put into operation one wireless GPRS/GSM modem for transmitting data to Central Depot Control Room and Germiston Depot Control Room as shown on the BWD Telemetry Automation network layout drawing RA_39497.","Sum",1]
["441","SS 2.3.1.36.6","The Contractor shall put into operation the SCADA system at Central Depot Control Room and Germiston Depot Control Room as shown on the BWD Telemetry Automation network layout drawing RA_39497.","Sum",1]
["442","SS 2.3.1.36.7","The Contractor shall put into operation one (1) BWD Telemetry communication panel with all components as shown on the BWD Telemetry Communication Panel General Arrangement drawing RA_39498 and BWD Telemetry Building Site Plan RA_39634.","Sum",1]
["443","SS 2.3.1.36.8","The Contractor shall put into operation one (1) BWD Junction Box with all components for Northridge Reservoir-1 as shown on the BWD Reservoir Junction Box drawing RA_39500.","Sum",1]
["444","SS 2.3.1.36.9","The Contractor shall put into operation one (1) BWD Reservoir Automation Kiosk for the level transmitters for Northridge Reservoir-1 as shown on the BWD Reservoir Automation Kiosk General Arrangement Drawing RA_29317-001.","Sum",1]
["445","SS 2.3.1.36.10","The Contractor shall put into operation two (2) power supplies as shown on the BWD Telemetry Communication Panel drawing RA_39498.","Sum",1]
["446","SS 2.3.1.36.11","The Contractor shall put into operation the din-railed uninterrupted power supply (UPS) as shown on the BWD Telemetry Automation network layout drawing RA_39497.","Sum",1]
["447","SS 2.3.1.36.12","The Contractor shall design, supply, deliver, install, test and commission of all low voltage power and control cabling including earthing.","Sum",1]
["448","SS 2.3.1.36.13","The Contractor shall put into operation the 316L Stainless Steel Manhole Cover on top of the Northridge Reservoir-1 respectively.","Sum",1]
["449","SS 2.3.1.37.1","The Contractor shall design and supply all Automation design requirements and quality documents including, but not limited to all the items as mentioned in Section 6.3.","Sum",1]
["450","SS 2.3.1.37.2.1","The Contractor shall put into operation two (2) ultrasonic level sensors and transmitters for Airfield Reservoir-1 and Resevoir-2 level measurement as shown on the BWD Telemetry Automation network layout drawing RA_39497.","Sum",1]
["451","SS 2.3.1.37.2.2","The Contractor shall put into operation two (2) radar level sensors and transmitters for Airfield Reservoir-1 and Resevoir-2 level measurement as shown on the BWD Telemetry Automation network layout drawing RA_39497.","Sum",1]
["452","SS 2.3.1.37.3","The Contractor shall put into operation the wireless network for linking the wireless level transmitters and wireless radio receiver as shown on the BWD Telemetry Automation network layout drawing RA_39497.","Sum",1]
["453","SS 2.3.1.37.4","The Contractor shall put into operation the Ethernet network system as shown on the BWD Telemetry Automation network layout drawing RA_39497.","Sum",1]
["454","SS 2.3.1.37.5","The Contractor shall put into operation one wireless GPRS/GSM modem for transmitting data to Central Depot Control Room and Germiston Depot Control Room as shown on the BWD Telemetry Automation network layout drawing RA_39497.","Sum",1]
["455","SS 2.3.1.37.6","The Contractor shall put into operation the SCADA system at Central Depot Control Room and Germiston Depot Control Room as shown on the BWD Telemetry Automation network layout drawing RA_39497.","Sum",1]
["456","SS 2.3.1.37.7","The Contractor shall put into operation one (1) BWD Telemetry communication panel with all components as shown on the BWD Telemetry Communication Panel General Arrangement drawing RA_39498 and BWD Telemetry Building Site Plan RA_39634.","Sum",1]
["457","SS 2.3.1.37.8","The Contractor shall put into operation two (2) BWD Junction Boxes with all components for Airfield Reservoir-1 and Resevoir-2 as shown on the BWD Reservoir Junction Box drawing RA_39500.","Sum",1]
["458","SS 2.3.1.37.9","The Contractor shall put into operation two (2) BWD Reservoir Automation Kiosks for the level transmitters for Airfield Reservoir-1 and Resevoir-2 as shown on the BWD Reservoir Automation Kiosk General Arrangement Drawing RA_29317-001.","Sum",1]
["459","SS 2.3.1.37.10","The Contractor shall put into operation two (2) power supplies as shown on the BWD Telemetry Communication Panel drawing RA_39498.","Sum",1]
["460","SS 2.3.1.37.11","The Contractor shall put into operation the din-railed uninterrupted power supply (UPS) as shown on the BWD Telemetry Automation network layout drawing RA_39497.","Sum",1]
["461","SS 2.3.1.37.12","The Contractor shall design, supply, deliver, install, test and commission of all low voltage power and control cabling including earthing.","Sum",1]
["462","SS 2.3.1.38.1","The Contractor shall design and supply all Automation design requirements and quality documents including, but not limited to all the items as mentioned in Section 6.3.","Sum",1]
["463","SS 2.3.1.38.2.1","The Contractor shall put into operation two (2) ultrasonic level sensors and transmitters for Forest Hill Depot Reservoir-1 and Resevoir-3 level measurement as shown on the BWD Telemetry Automation network layout drawing RA_39497.","Sum",1]
["464","SS 2.3.1.38.2.2","The Contractor shall put into operation two (2) radar level sensors and transmitters for Forest Hill Depot Reservoir-1 and Resevoir-3 level measurement as shown on the BWD Telemetry Automation network layout drawing RA_39497.","Sum",1]
["465","SS 2.3.1.38.3","The Contractor shall put into operation the wireless network for linking the wireless level transmitters and wireless radio receiver as shown on the BWD Telemetry Automation network layout drawing RA_39497.","Sum",1]
["466","SS 2.3.1.38.4","The Contractor shall put into operation the Ethernet network system as shown on the BWD Telemetry Automation network layout drawing RA_39497.","Sum",1]
["467","SS 2.3.1.38.5.1","The Contractor shall put into operation one wireless GPRS/GSM modem for transmitting data to Central Depot Control Room and Forest Hill Depot Control Room as shown on the BWD Telemetry Automation network layout drawing RA_39497.","Sum",1]
["468","SS 2.3.1.38.5.2","The Contractor shall put into operation one wireless GPRS/GSM modem for receiving data from the Forest Hill Depot, Klipriviersberg, Meredale, Yeoville and Meyershill Reservoir sites as shown on the BWD Telemetry Automation network layout drawing RA_39497 and BWD Overall Regional Reservoirs Automation network layout drawing RO_39638.","Sum",1]
["469","SS 2.3.1.38.6","The Contractor shall put into operation the SCADA system at Central Depot Control Room and Forest Hill Depot Control Room as shown on the BWD Telemetry Automation network layout drawing RA_39497.","Sum",1]
["470","SS 2.3.1.38.7","The Contractor shall put into operation one (1) BWD Telemetry communication panel with all components as shown on the BWD Telemetry Communication Panel General Arrangement drawing RA_39498 and BWD Telemetry Building Site Plan RA_39634.","Sum",1]
["471","SS 2.3.1.38.8","The Contractor shall put into operation two (2) BWD Junction Boxes with all components for Forest Hill Depot Reservoir-1 and Resevoir-3 as shown on the BWD Reservoir Junction Box drawing RA_39500.","Sum",1]
["472","SS 2.3.1.38.9","The Contractor shall put into operation two (2) BWD Reservoir Automation Kiosks for the level transmitters for Forest Hill Depot Reservoir-1 and Resevoir-3 as shown on the BWD Reservoir Automation Kiosk General Arrangement Drawing RA_29317-001.","Sum",1]
["473","SS 2.3.1.38.10","The Contractor shall put into operation two (2) power supplies as shown on the BWD Telemetry Communication Panel drawing RA_39498.","Sum",1]
["474","SS 2.3.1.38.11","The Contractor shall put into operation the din-railed uninterrupted power supply (UPS) as shown on the BWD Telemetry Automation network layout drawing RA_39497.","Sum",1]
["475","SS 2.3.1.38.12","The Contractor shall design, supply, deliver, install, test and commission of all low voltage power and control cabling including earthing.","Sum",1]
["476","SS 2.3.1.38.13","The Contractor shall supply, deliver, install, test and commission the SCADA PC at Forest Hill Depot Control Room as shown on the BWD Telemetry Automation network layout drawing RA_39497.","Sum",1]
["477","SS 2.3.1.39.1","The Contractor shall design and supply all Automation design requirements and quality documents including, but not limited to all the items as mentioned in Section 6.3.","Sum",1]
["478","SS 2.3.1.39.2.1","The Contractor shall put into operation one (1) ultrasonic level sensor and transmitter for Forest Hill Depot Reservoir-2 level measurement as shown on the BWD Telemetry Automation network layout drawing RA_39497.","Sum",1]
["479","SS 2.3.1.39.2.2","The Contractor shall put into operation one (1) radar level sensor and transmitter for Forest Hill Depot Reservoir-2 level measurement as shown on the BWD Telemetry Automation network layout drawing RA_39497.","Sum",1]
["480","SS 2.3.1.39.3","The Contractor shall put into operation the wireless network for linking the wireless level transmitters and wireless radio receiver as shown on the BWD Telemetry Automation network layout drawing RA_39497.","Sum",1]
["481","SS 2.3.1.39.4","The Contractor shall put into operation the Ethernet network system as shown on the BWD Telemetry Automation network layout drawing RA_39497.","Sum",1]
["482","SS 2.3.1.39.5","The Contractor shall put into operation one wireless GPRS/GSM modem for transmitting data to Central Depot Control Room and Forest Hill Depot Control Room as shown on the BWD Telemetry Automation network layout drawing RA_39497.","Sum",1]
["483","SS 2.3.1.39.6","The Contractor shall put into operation the SCADA system at Central Depot Control Room and Forest Hill Depot Control Room as shown on the BWD Telemetry Automation network layout drawing RA_39497.","Sum",1]
["484","SS 2.3.1.39.7","The Contractor shall put into operation one (1) BWD Telemetry communication panel with all components as shown on the BWD Telemetry Communication Panel General Arrangement drawing RA_39498 and BWD Telemetry Building Site Plan RA_39634.","Sum",1]
["485","SS 2.3.1.39.8","The Contractor shall put into operation one (1) BWD Junction Box with all components for Forest Hill Depot Reservoir-2 as shown on the BWD Reservoir Junction Box drawing RA_39500.","Sum",1]
["486","SS 2.3.1.39.9","The Contractor shall put into operation one (1) BWD Reservoir Automation Kiosk for the level transmitters for Forest Hill Depot Reservoir-2 as shown on the BWD Reservoir Automation Kiosk General Arrangement Drawing RA_29317-001.","Sum",1]
["487","SS 2.3.1.39.10","The Contractor shall put into operation two (2) power supplies as shown on the BWD Telemetry Communication Panel drawing RA_39498.","Sum",1]
["488","SS 2.3.1.39.11","The Contractor shall put into operation the din-railed uninterrupted power supply (UPS) as shown on the BWD Telemetry Automation network layout drawing RA_39497.","Sum",1]
["489","SS 2.3.1.39.12","The Contractor shall design, supply, deliver, install, test and commission of all low voltage power and control cabling including earthing.","Sum",1]
["490","SS 2.3.1.40.1","The Contractor shall design and supply all Automation design requirements and quality documents including, but not limited to all the items as mentioned in Section 6.3.","Sum",1]
["491","SS 2.3.1.40.2.1","The Contractor shall put into operation two (2) ultrasonic level sensors and transmitters for Klipriviersberg Reservoir-1 and Resevoir-2 level measurement as shown on the BWD Telemetry Automation network layout drawing RA_39497.","Sum",1]
["492","SS 2.3.1.40.2.2","The Contractor shall put into operation two (2) radar level sensors and transmitters for Klipriviersberg Reservoir-1 and Resevoir-2 level measurement as shown on the BWD Telemetry Automation network layout drawing RA_39497.","Sum",1]
["493","SS 2.3.1.40.3","The Contractor shall put into operation the wireless network for linking the wireless level transmitters and wireless radio receiver as shown on the BWD Telemetry Automation network layout drawing RA_39497.","Sum",1]
["494","SS 2.3.1.40.4","The Contractor shall put into operation the Ethernet network system as shown on the BWD Telemetry Automation network layout drawing RA_39497.","Sum",1]
["495","SS 2.3.1.40.5","The Contractor shall put into operation one wireless GPRS/GSM modem for transmitting data to Central Depot Control Room and Forest Hill Depot Control Room as shown on the BWD Telemetry Automation network layout drawing RA_39497.","Sum",1]
["496","SS 2.3.1.40.6","The Contractor shall put into operation the SCADA system at Central Depot Control Room and Forest Hill Depot Control Room as shown on the BWD Telemetry Automation network layout drawing RA_39497.","Sum",1]
["497","SS 2.3.1.40.7","The Contractor shall put into operation one (1) BWD Telemetry communication panel with all components as shown on the BWD Telemetry Communication Panel General Arrangement drawing RA_39498 and BWD Telemetry Building Site Plan RA_39634.","Sum",1]
["498","SS 2.3.1.40.8","The Contractor shall put into operation two (2) BWD Junction Boxes with all components for Klipriviersberg Reservoir-1 and Resevoir-2 as shown on the BWD Reservoir Junction Box drawing RA_39500.","Sum",1]
["499","SS 2.3.1.40.9","The Contractor shall put into operation two (2) BWD Reservoir Automation Kiosks for the level transmitters for Klipriviersberg Reservoir-1 and Resevoir-2 as shown on the BWD Reservoir Automation Kiosk General Arrangement Drawing RA_29317-001.","Sum",1]
["500","SS 2.3.1.40.10","The Contractor shall put into operation two (2) power supplies as shown on the BWD Telemetry Communication Panel drawing RA_39498.","Sum",1]
["501","SS 2.3.1.40.11","The Contractor shall put into operation the din-railed uninterrupted power supply (UPS) as shown on the BWD Telemetry Automation network layout drawing RA_39497.","Sum",1]
["502","SS 2.3.1.40.12","The Contractor shall design, supply, deliver, install, test and commission of all low voltage power and control cabling including earthing.","Sum",1]
["503","SS 2.3.1.40.13","The Contractor shall put into operation the 316L Stainless Steel Manhole Cover on top of the Klipriviersberg Reservoir-1 respectively.","Sum",1]
["504","SS 2.3.1.41.1","The Contractor shall design and supply all Automation design requirements and quality documents including, but not limited to all the items as mentioned in Section 6.3.","Sum",1]
["505","SS 2.3.1.41.2.1","The Contractor shall put into operation one (1) ultrasonic level sensor and transmitter for Meyershill Reservoir-1 level measurement as shown on the BWD Telemetry Automation network layout drawing RA_39497.","Sum",1]
["506","SS 2.3.1.41.2.2","The Contractor shall put into operation one (1) radar level sensor and transmitter for Meyershill Reservoir-1 level measurement as shown on the BWD Telemetry Automation network layout drawing RA_39497.","Sum",1]
["507","SS 2.3.1.41.3","The Contractor shall put into operation the wireless network for linking the wireless level transmitters and wireless radio receiver as shown on the BWD Telemetry Automation network layout drawing RA_39497.","Sum",1]
["508","SS 2.3.1.41.4","The Contractor shall put into operation the Ethernet network system as shown on the BWD Telemetry Automation network layout drawing RA_39497.","Sum",1]
["509","SS 2.3.1.41.5","The Contractor shall put into operation one wireless GPRS/GSM modem for transmitting data to Central Depot Control Room and Forest Hill Depot Control Room as shown on the BWD Telemetry Automation network layout drawing RA_39497.","Sum",1]
["510","SS 2.3.1.41.6","The Contractor shall put into operation the SCADA system at Central Depot Control Room and Forest Hill Depot Control Room as shown on the BWD Telemetry Automation network layout drawing RA_39497.","Sum",1]
["511","SS 2.3.1.41.7","The Contractor shall put into operation one (1) BWD Telemetry communication panel with all components as shown on the BWD Telemetry Communication Panel General Arrangement drawing RA_39498 and BWD Telemetry Building Site Plan RA_39634.","Sum",1]
["512","SS 2.3.1.41.8","The Contractor shall put into operation one (1) BWD Junction Box with all components for Meyershill Reservoir-1 as shown on the BWD Reservoir Junction Box drawing RA_39500.","Sum",1]
["513","SS 2.3.1.41.9","The Contractor shall put into operation one (1) BWD Reservoir Automation Kiosk for the level transmitters for Meyershill Reservoir-1 shown on the BWD Reservoir Automation Kiosk General Arrangement Drawing RA_29317-001.","Sum",1]
["514","SS 2.3.1.41.10","The Contractor shall put into operation two (2) power supplies as shown on the BWD Telemetry Communication Panel drawing RA_39498.","Sum",1]
["515","SS 2.3.1.41.11","The Contractor shall put into operation the din-railed uninterrupted power supply (UPS) as shown on the BWD Telemetry Automation network layout drawing RA_39497.","Sum",1]
["516","SS 2.3.1.41.12","The Contractor shall design, supply, deliver, install, test and commission of all low voltage power and control cabling including earthing.","Sum",1]
["517","SS 2.3.1.41.13","The Contractor shall put into operation the 316L Stainless Steel Manhole Cover on top of the Meyershill Reservoir-1 respectively.","Sum",1]
["518","SS 2.3.1.42.1","The Contractor shall design and supply all Automation design requirements and quality documents including, but not limited to all the items as mentioned in Section 6.3.","Sum",1]
["519","SS 2.3.1.42.2.1","The Contractor shall put into operation two (2) ultrasonic level sensors and transmitters for Meredale Reservoir-1 and Resevoir-2 level measurement as shown on the BWD Telemetry Automation network layout drawing RA_39497.","Sum",1]
["520","SS 2.3.1.42.2.2","The Contractor shall put into operation two (2) radar level sensors and transmitters for Meredale Reservoir-1 and Resevoir-2 level measurement as shown on the BWD Telemetry Automation network layout drawing RA_39497.","Sum",1]
["521","SS 2.3.1.42.3","The Contractor shall put into operation the wireless network for linking the wireless level transmitters and wireless radio receiver as shown on the BWD Telemetry Automation network layout drawing RA_39497.","Sum",1]
["522","SS 2.3.1.42.4","The Contractor shall put into operation the Ethernet network system as shown on the BWD Telemetry Automation network layout drawing RA_39497.","Sum",1]
["523","SS 2.3.1.42.5","The Contractor shall put into operation one wireless GPRS/GSM modem for transmitting data to Central Depot Control Room and Forest Hill Depot Control Room as shown on the BWD Telemetry Automation network layout drawing RA_39497.","Sum",1]
["524","SS 2.3.1.42.6","The Contractor shall put into operation the SCADA system at Central Depot Control Room and Forest Hill Depot Control Room as shown on the BWD Telemetry Automation network layout drawing RA_39497.","Sum",1]
["525","SS 2.3.1.42.7","The Contractor shall put into operation one (1) BWD Telemetry communication panel with all components as shown on the BWD Telemetry Communication Panel General Arrangement drawing RA_39498 and BWD Telemetry Building Site Plan RA_39634.","Sum",1]
["526","SS 2.3.1.42.8","The Contractor shall put into operation two (2) BWD Junction Boxes with all components for Meredale Reservoir-1 and Resevoir-2 as shown on the BWD Reservoir Junction Box drawing RA_39500.","Sum",1]
["527","SS 2.3.1.42.9","The Contractor shall put into operation two (2) BWD Reservoir Automation Kiosks for the level transmitters for Meredale Reservoir-1 and Resevoir-2 as shown on the BWD Reservoir Automation Kiosk General Arrangement Drawing RA_29317-001.","Sum",1]
["528","SS 2.3.1.42.10","The Contractor shall put into operation two (2) power supplies as shown on the BWD Telemetry Communication Panel drawing RA_39498.","Sum",1]
["529","SS 2.3.1.42.11","The Contractor shall put into operation the din-railed uninterrupted power supply (UPS) as shown on the BWD Telemetry Automation network layout drawing RA_39497.","Sum",1]
["530","SS 2.3.1.42.12","The Contractor shall design, supply, deliver, install, test and commission of all low voltage power and control cabling including earthing.","Sum",1]
["531","SS 2.3.1.42.13","The Contractor shall put into operation the 316L Stainless Steel Manhole Cover on top of the Meredale Reservoir-1 respectively.","Sum",1]
["532","SS 2.3.1.43.1","The Contractor shall design and supply all Automation design requirements and quality documents including, but not limited to all the items as mentioned in Section 6.3.","Sum",1]
["533","SS 2.3.1.43.2","The Contractor shall put into operation the Ethernet network system as shown on the BWD Telemetry Automation network layout drawing RA_39497.","Sum",1]
["534","SS 2.3.1.43.3","The Contractor shall put into operation one wireless GPRS/GSM modem or VSAT Satellite solution for receiving data from the Brakfontein, Hartebeesthoek and Klipfontein Reservoir sites as shown on the BWD Telemetry Automation network layout drawing RA_39497 and BWD Overall Regional Reservoirs Automation network layout drawing RO_39638.","Sum",1]
["535","SS 2.3.1.43.4","The Contractor shall put into operation the SCADA system at Esselen Park Depot Control Room as shown on the BWD Telemetry Automation network layout drawing RA_39497.","Sum",1]
["536","SS 2.3.1.43.5","The Contractor shall put into operation one (1) BWD Telemetry Communication Panel with all components as shown on the BWD Telemetry Communication Panel General Arrangement drawing RA_39498.","Sum",1]
["537","SS 2.3.1.43.6","The Contractor shall put into operation two (2) power supplies as shown on the BWD Telemetry Communication Panel drawing RA_39498.","Sum",1]
["538","SS 2.3.1.43.7","The Contractor shall put into operation the din-railed uninterrupted power supply (UPS) as shown on the BWD Telemetry Automation network layout drawing RA_39497.","Sum",1]
["539","SS 2.3.1.43.8","The Contractor shall design, supply, deliver, install, test and commission of all low voltage power and control cabling including earthing.","Sum",1]
["540","SS 2.3.1.43.9","The Contractor shall supply, deliver, install, test and commission the SCADA PC at Esselen Park Depot Control Room as shown on the BWD Telemetry Automation network layout drawing RA_39497.","Sum",1]
["541","SS 2.3.1.44.1","The Contractor shall design and supply all Automation design requirements and quality documents including, but not limited to all the items as mentioned in Section 6.3.","Sum",1]
["542","SS 2.3.1.44.2.1","The Contractor shall put into operation one (1) ultrasonic level sensor and transmitter for Brakfontein Reservoir-1 level measurement as shown on the BWD Telemetry Automation network layout drawing RA_39497.","Sum",1]
["543","SS 2.3.1.44.2.2","The Contractor shall put into operation one (1) radar level sensor and transmitter for Brakfontein Reservoir-1 level measurement as shown on the BWD Telemetry Automation network layout drawing RA_39497.","Sum",1]
["544","SS 2.3.1.44.3","The Contractor shall put into operation the wireless network for linking the wireless level transmitters and wireless radio receiver as shown on the BWD Telemetry Automation network layout drawing RA_39497.","Sum",1]
["545","SS 2.3.1.44.4","The Contractor shall put into operation the Ethernet network system as shown on the BWD Telemetry Automation network layout drawing RA_39497.","Sum",1]
["546","SS 2.3.1.44.5","The Contractor shall put into operation one wireless GPRS/GSM modem for transmitting data to Central Depot Control Room and Esselen Park Depot Control Room as shown on the BWD Telemetry Automation network layout drawing RA_39497.","Sum",1]
["547","SS 2.3.1.44.6","The Contractor shall put into operation the SCADA system at Central Depot Control Room and Esselen Park Depot Control Room as shown on the BWD Telemetry Automation network layout drawing RA_39497.","Sum",1]
["548","SS 2.3.1.44.7","The Contractor shall put into operation one (1) BWD Telemetry communication panel with all components as shown on the BWD Telemetry Communication Panel General Arrangement drawing RA_39498 and BWD Telemetry Building Site Plan RA_39634.","Sum",1]
["549","SS 2.3.1.44.8","The Contractor shall put into operation one (1) BWD Junction Box with all components for Brakfontein Reservoir-1 as shown on the BWD Reservoir Junction Box drawing RA_39500.","Sum",1]
["550","SS 2.3.1.44.9","The Contractor shall put into operation one (1) BWD Reservoir Automation Kiosk for the level transmitters for Brakfontein Reservoir-1 as shown on the BWD Reservoir Automation Kiosk General Arrangement Drawing RA_29317-001.","Sum",1]
["551","SS 2.3.1.44.10","The Contractor shall put into operation two (2) power supplies as shown on the BWD Telemetry Communication Panel drawing RA_39498.","Sum",1]
["552","SS 2.3.1.44.11","The Contractor shall put into operation the din-railed uninterrupted power supply (UPS) as shown on the BWD Telemetry Automation network layout drawing RA_39497.","Sum",1]
["553","SS 2.3.1.44.12","The Contractor shall design, supply, deliver, install, test and commission of all low voltage power and control cabling including earthing.","Sum",1]
["554","SS 2.3.1.45.1","The Contractor shall design and supply all Automation design requirements and quality documents including, but not limited to all the items as mentioned in Section 6.3.","Sum",1]
["555","SS 2.3.1.45.2.1","The Contractor shall put into operation one (1) ultrasonic level sensor and transmitter for Hartebeesthoek Reservoir-1 level measurement as shown on the BWD Telemetry Automation network layout drawing RA_39497.","Sum",1]
["556","SS 2.3.1.45.2.2","The Contractor shall put into operation one (1) radar level sensor and transmitter for Hartebeesthoek Reservoir-1 level measurement as shown on the BWD Telemetry Automation network layout drawing RA_39497.","Sum",1]
["557","SS 2.3.1.45.3","The Contractor shall put into operation the wireless network for linking the wireless level transmitters and wireless radio receiver as shown on the BWD Telemetry Automation network layout drawing RA_39497.","Sum",1]
["558","SS 2.3.1.45.4","The Contractor shall put into operation the Ethernet network system as shown on the BWD Telemetry Automation network layout drawing RA_39497.","Sum",1]
["559","SS 2.3.1.45.5","The Contractor shall put into operation one wireless GPRS/GSM modem for transmitting data to Central Depot Control Room and Esselen Park Depot Control Room as shown on the BWD Telemetry Automation network layout drawing RA_39497.","Sum",1]
["560","SS 2.3.1.45.6","The Contractor shall put into operation the SCADA system at Central Depot Control Room and Esselen Park Depot Control Room as shown on the BWD Telemetry Automation network layout drawing RA_39497.","Sum",1]
["561","SS 2.3.1.45.7","The Contractor shall put into operation one (1) BWD Telemetry communication panel with all components as shown on the BWD Telemetry Communication Panel General Arrangement drawing RA_39498 and BWD Telemetry Building Site Plan RA_39634.","Sum",1]
["562","SS 2.3.1.45.8","The Contractor shall put into operation one (1) BWD Junction Box with all components for Hartebeesthoek Reservoir-1 as shown on the BWD Reservoir Junction Box drawing RA_39500.","Sum",1]
["563","SS 2.3.1.45.9","The Contractor shall put into operation one (1) BWD Reservoir Automation Kiosk for the level transmitters for Hartebeesthoek Reservoir-1 as shown on the BWD Reservoir Automation Kiosk General Arrangement Drawing RA_29317-001.","Sum",1]
["564","SS 2.3.1.45.10","The Contractor shall put into operation two (2) power supplies as shown on the BWD Telemetry Communication Panel drawing RA_39498.","Sum",1]
["565","SS 2.3.1.45.11","The Contractor shall put into operation the din-railed uninterrupted power supply (UPS) as shown on the BWD Telemetry Automation network layout drawing RA_39497.","Sum",1]
["566","SS 2.3.1.45.12","The Contractor shall design, supply, deliver, install, test and commission of all low voltage power and control cabling including earthing.","Sum",1]
["567","SS 2.3.1.46.1","The Contractor shall design and supply all Automation design requirements and quality documents including, but not limited to all the items as mentioned in Section 6.3.","Sum",1]
["568","SS 2.3.1.46.2.1","The Contractor shall put into operation two (2) ultrasonic level sensors and transmitters for Klipfontein Reservoir-1 and Resevoir-2 level measurement as shown on the BWD Telemetry Automation network layout drawing RA_39497.","Sum",1]
["569","SS 2.3.1.46.2.2","The Contractor shall put into operation two (2) radar level sensors and transmitters for Klipfontein Reservoir-1 and Resevoir-2 level measurement as shown on the BWD Telemetry Automation network layout drawing RA_39497.","Sum",1]
["570","SS 2.3.1.46.3","The Contractor shall put into operation the wireless network for linking the wireless level transmitters and wireless radio receiver as shown on the BWD Telemetry Automation network layout drawing RA_39497.","Sum",1]
["571","SS 2.3.1.46.4","The Contractor shall put into operation the Ethernet network system as shown on the BWD Telemetry Automation network layout drawing RA_39497.","Sum",1]
["572","SS 2.3.1.46.5","The Contractor shall put into operation one wireless GPRS/GSM modem for transmitting data to Central Depot Control Room and Esselen Park Depot Control Room as shown on the BWD Telemetry Automation network layout drawing RA_39497.","Sum",1]
["573","SS 2.3.1.46.6","The Contractor shall put into operation the SCADA system at Central Depot Control Room and Esselen Park Depot Control Room as shown on the BWD Telemetry Automation network layout drawing RA_39497.","Sum",1]
["574","SS 2.3.1.46.7","The Contractor shall put into operation one (1) BWD Telemetry communication panel with all components as shown on the BWD Telemetry Communication Panel General Arrangement drawing RA_39498 and BWD Telemetry Building Site Plan RA_39634.","Sum",1]
["575","SS 2.3.1.46.8","The Contractor shall put into operation two (2) BWD Junction Boxes with all components for Klipfontein Reservoir-1 and Resevoir-2 as shown on the BWD Reservoir Junction Box drawing RA_39500.","Sum",1]
["576","SS 2.3.1.46.9","The Contractor shall put into operation two (2) BWD Reservoir Automation Kiosks for the level transmitters for Klipfontein Reservoir-1 and Resevoir-2 as shown on the BWD Reservoir Automation Kiosk General Arrangement Drawing RA_29317-001.","Sum",1]
["577","SS 2.3.1.46.10","The Contractor shall put into operation two (2) power supplies as shown on the BWD Telemetry Communication Panel drawing RA_39498.","Sum",1]
["578","SS 2.3.1.46.11","The Contractor shall put into operation the din-railed uninterrupted power supply (UPS) as shown on the BWD Telemetry Automation network layout drawing RA_39497.","Sum",1]
["579","SS 2.3.1.46.12","The Contractor shall design, supply, deliver, install, test and commission of all low voltage power and control cabling including earthing.","Sum",1]
["580","SS 2.3.1.47.1","The Contractor shall design and supply all Automation design requirements and quality documents including, but not limited to all the items as mentioned in Section 6.3.","Sum",1]
["581","SS 2.3.1.47.2","The Contractor shall put into operation the Ethernet network system as shown on the BWD Telemetry Automation network layout drawing RA_39497 and BWD Overall Regional Reservoirs Automation network layout drawing RO_39638.","Sum",1]
["582","SS 2.3.1.47.3","The Contractor shall put into operation one wireless GPRS/GSM modem or VSAT Satellite solution for receiving data from the reservoir sites as shown on the BWD Telemetry Automation network layout drawing RA_39497 and BWD Overall Regional Reservoirs Automation network layout drawing RO_39638.","Sum",1]
["583","SS 2.3.1.47.4","The Contractor shall put into operation the SCADA system at Central Depot Control Room as shown on the Overall Regional Reservoirs Automation network layout drawing RO_39638.","Sum",1]
["584","SS 2.3.1.47.5","The Contractor shall put into operation one (1) BWD Telemetry Communication Panel with all components as shown on the BWD Telemetry Communication Panel General Arrangement drawing RA_39498.","Sum",1]
["585","SS 2.3.1.47.6","The Contractor shall put into operation two (2) power supplies as shown on the BWD Telemetry Communication Panel drawing RA_39498.","Sum",1]
["586","SS 2.3.1.47.7","The Contractor shall put into operation the din-railed uninterrupted power supply (UPS) as shown on the BWD Telemetry Automation network layout drawing RA_39497.","Sum",1]
["587","SS 2.3.1.47.8","The Contractor shall design, supply, deliver, install, test and commission of all low voltage power and control cabling including earthing.","Sum",1]
["588","SS 2.3.1.47.9","The Contractor shall supply and deliver the server machine according to the applicable IT server standard specification (HPE ProLiant DL360 Generation9) or latest.","Sum",1]
["589","SS 2.3.2.1.1","The Contractor shall design and supply all Automation design requirements and quality documents including, but not limited to all the items as mentioned in Section 6.3.","Sum",1]
["590","SS 2.3.2.1.2.1","The Contractor shall put into operation one (1) ultrasonic level sensor and transmitter for Thlabane Reservoir-1 level measurement as shown on the BWD Telemetry Automation network layout drawing RA_39497.","Sum",1]
["591","SS 2.3.2.1.2.2","The Contractor shall put into operation one (1) radar level sensor and transmitter for Thlabane Reservoir-1 level measurement as shown on the BWD Telemetry Automation network layout drawing RA_39497.","Sum",1]
["592","SS 2.3.2.1.3","The Contractor shall put into operation the wireless network for linking the wireless level transmitters and wireless radio receiver as shown on the BWD Telemetry Automation network layout drawing RA_39497.","Sum",1]
["593","SS 2.3.2.1.4","The Contractor shall put into operation the Ethernet network system as shown on the BWD Telemetry Automation network layout drawing RA_39497.","Sum",1]
["594","SS 2.3.2.1.5","The Contractor shall put into operation one wireless GPRS/GSM modem for transmitting data to Central Depot Control Room and Townlands Pumping Station Control Room as shown on the BWD Telemetry Automation network layout drawing RA_39497.","Sum",1]
["595","SS 2.3.2.1.6","The Contractor shall put into operation the SCADA system at Central Depot Control Room and Townlands Pumping Station Control Room as shown on the BWD Telemetry Automation network layout drawing RA_39497.","Sum",1]
["596","SS 2.3.2.1.7","The Contractor shall put into operation one (1) BWD Telemetry communication panel with all components as shown on the BWD Telemetry Communication Panel General Arrangement drawing RA_39498 and BWD Telemetry Building Site Plan RA_39634.","Sum",1]
["597","SS 2.3.2.1.8","The Contractor shall put into operation one (1) BWD Junction Box with all components for Thlabane Reservoir-1 as shown on the BWD Reservoir Junction Box drawing RA_39500.","Sum",1]
["598","SS 2.3.2.1.9","The Contractor shall put into operation one (1) BWD Reservoir Automation Kiosk for the level transmitters for Thlabane Reservoir-1 as shown on the BWD Reservoir Automation Kiosk General Arrangement Drawing RA_29317-001.","Sum",1]
["599","SS 2.3.2.1.10","The Contractor shall put into operation two (2) power supplies as shown on the BWD Telemetry Communication Panel drawing RA_39498.","Sum",1]
["600","SS 2.3.2.1.11","The Contractor shall put into operation the din-railed uninterrupted power supply (UPS) as shown on the BWD Telemetry Automation network layout drawing RA_39497.","Sum",1]
["601","SS 2.3.2.1.12","The Contractor shall design, supply, deliver, install, test and commission of all low voltage power and control cabling including earthing.","Sum",1]
["602","SS 2.3.2.2.1","The Contractor shall design and supply all Automation design requirements and quality documents including, but not limited to all the items as mentioned in Section 6.3.","Sum",1]
["603","SS 2.3.2.2.2.1","The Contractor shall put into operation two (2) ultrasonic level sensors and transmitters for Bospoort Reservoir-1 and Resevoir-2 level measurement as shown on the BWD Telemetry Automation network layout drawing RA_39497.","Sum",1]
["604","SS 2.3.2.2.2.2","The Contractor shall put into operation two (2) radar level sensors and transmitters for Bospoort Reservoir-1 and Resevoir-2 level measurement as shown on the BWD Telemetry Automation network layout drawing RA_39497.","Sum",1]
["605","SS 2.3.2.2.3","The Contractor shall put into operation the wireless network for linking the wireless level transmitters and wireless radio receiver as shown on the BWD Telemetry Automation network layout drawing RA_39497.","Sum",1]
["606","SS 2.3.2.2.4","The Contractor shall put into operation the Ethernet network system as shown on the BWD Telemetry Automation network layout drawing RA_39497.","Sum",1]
["607","SS 2.3.2.2.5","The Contractor shall put into operation one wireless GPRS/GSM modem for transmitting data to Central Depot Control Room and Townlands Pumping Station Control Room as shown on the BWD Telemetry Automation network layout drawing RA_39497.","Sum",1]
["608","SS 2.3.2.2.6","The Contractor shall put into operation the SCADA system at Central Depot Control Room and Townlands Pumping Station Control Room as shown on the BWD Telemetry Automation network layout drawing RA_39497.","Sum",1]
["609","SS 2.3.2.2.7","The Contractor shall put into operation one (1) BWD Telemetry communication panel with all components as shown on the BWD Telemetry Communication Panel General Arrangement drawing RA_39498 and BWD Telemetry Building Site Plan RA_39634.","Sum",1]
["610","SS 2.3.2.2.8","The Contractor shall put into operation two (2) BWD Junction Boxes with all components for Bospoort Reservoir-1 and Resevoir-2 as shown on the BWD Reservoir Junction Box drawing RA_39500.","Sum",1]
["611","SS 2.3.2.2.9","The Contractor shall put into operation two (2) BWD Reservoir Automation Kiosks for the level transmitters for Bospoort Reservoir-1 and Resevoir-2 as shown on the BWD Reservoir Automation Kiosk General Arrangement Drawing RA_29317-001.","Sum",1]
["612","SS 2.3.2.2.10","The Contractor shall put into operation two (2) power supplies as shown on the BWD Telemetry Communication Panel drawing RA_39498.","Sum",1]
["613","SS 2.3.2.2.11","The Contractor shall put into operation the din-railed uninterrupted power supply (UPS) as shown on the BWD Telemetry Automation network layout drawing RA_39497.","Sum",1]
["614","SS 2.3.2.2.12","The Contractor shall design, supply, deliver, install, test and commission of all low voltage power and control cabling including earthing.","Sum",1]
["615","SS 2.3.2.3.1","The Contractor shall design and supply all Automation design requirements and quality documents including, but not limited to all the items as mentioned in Section 6.3.","Sum",1]
["616","SS 2.3.2.3.2.1","The Contractor shall put into operation two (2) ultrasonic level sensors and transmitters for Heilbron Reservoir-1 and Resevoir-2 level measurement as shown on the BWD Telemetry Automation network layout drawing RA_39497.","Sum",1]
["617","SS 2.3.2.3.2.2","The Contractor shall put into operation two (2) radar level sensors and transmitters for Heilbron Reservoir-1 and Resevoir-2 level measurement as shown on the BWD Telemetry Automation network layout drawing RA_39497.","Sum",1]
["618","SS 2.3.2.3.3","The Contractor shall put into operation the wireless network for linking the wireless level transmitters and wireless radio receiver as shown on the BWD Telemetry Automation network layout drawing RA_39497.","Sum",1]
["619","SS 2.3.2.3.4","The Contractor shall put into operation the Ethernet network system as shown on the BWD Telemetry Automation network layout drawing RA_39497.","Sum",1]
["620","SS 2.3.2.3.5","The Contractor shall put into operation one wireless GPRS/GSM modem for transmitting data to Central Depot Control Room and Barrage Depot Control Room as shown on the BWD Telemetry Automation network layout drawing RA_39497.","Sum",1]
["621","SS 2.3.2.3.6","The Contractor shall put into operation the SCADA system at Central Depot Control Room and Barrage Depot Control Room as shown on the BWD Telemetry Automation network layout drawing RA_39497.","Sum",1]
["622","SS 2.3.2.3.7","The Contractor shall put into operation one (1) BWD Telemetry communication panel with all components as shown on the BWD Telemetry Communication Panel General Arrangement drawing RA_39498 and BWD Telemetry Building Site Plan RA_39634.","Sum",1]
["623","SS 2.3.2.3.8","The Contractor shall put into operation two (2) BWD Junction Boxes with all components for Heilbron Reservoir-1 and Resevoir-2 as shown on the BWD Reservoir Junction Box drawing RA_39500.","Sum",1]
["624","SS 2.3.2.3.9","The Contractor shall put into operation two (2) BWD Reservoir Automation Kiosks for the level transmitters for Heilbron Reservoir-1 and Resevoir-2 as shown on the BWD Reservoir Automation Kiosk General Arrangement Drawing RA_29317-001.","Sum",1]
["625","SS 2.3.2.3.10","The Contractor shall put into operation two (2) power supplies as shown on the BWD Telemetry Communication Panel drawing RA_39498.","Sum",1]
["626","SS 2.3.2.3.11","The Contractor shall put into operation the din-railed uninterrupted power supply (UPS) as shown on the BWD Telemetry Automation network layout drawing RA_39497.","Sum",1]
["627","SS 2.3.2.3.12","The Contractor shall design, supply, deliver, install, test and commission of all low voltage power and control cabling including earthing.","Sum",1]
["628","SS 2.3.2.4.1","The Contractor shall design and supply all Automation design requirements and quality documents including, but not limited to all the items as mentioned in Section 6.3.","Sum",1]
["629","SS 2.3.2.4.2.1","The Contractor shall put into operation two (2) ultrasonic level sensors and transmitters for Orange Farm Reservoir-1 and Resevoir-2 level measurement as shown on the BWD Telemetry Automation network layout drawing RA_39497.","Sum",1]
["630","SS 2.3.2.4.2.2","The Contractor shall put into operation two (2) radar level sensors and transmitters for Orange Farm Reservoir-1 and Resevoir-2 level measurement as shown on the BWD Telemetry Automation network layout drawing RA_39497.","Sum",1]
["631","SS 2.3.2.4.3","The Contractor shall put into operation the wireless network for linking the wireless level transmitters and wireless radio receiver as shown on the BWD Telemetry Automation network layout drawing RA_39497.","Sum",1]
["632","SS 2.3.2.4.4","The Contractor shall put into operation the Ethernet network system as shown on the BWD Telemetry Automation network layout drawing RA_39497.","Sum",1]
["633","SS 2.3.2.4.5","The Contractor shall put into operation one wireless GPRS/GSM modem for transmitting data to Central Depot Control Room, Daleside Pumping Station Control Room and Meyerton Depot Control Room as shown on the BWD Telemetry Automation network layout drawing RA_39497.","Sum",1]
["634","SS 2.3.2.4.6","The Contractor shall put into operation the SCADA system at Central Depot Control Room, Daleside Pumping Station Control Room and Meyerton Depot Control Room as shown on the BWD Telemetry Automation network layout drawing RA_39497.","Sum",1]
["635","SS 2.3.2.4.7","The Contractor shall put into operation one (1) BWD Telemetry communication panel with all components as shown on the BWD Telemetry Communication Panel General Arrangement drawing RA_39498 and BWD Telemetry Building Site Plan RA_39634.","Sum",1]
["636","SS 2.3.2.4.8","The Contractor shall put into operation two (2) BWD Junction Boxes with all components for Orange Farm Reservoir-1 and Resevoir-2 as shown on the BWD Reservoir Junction Box drawing RA_39500.","Sum",1]
["637","SS 2.3.2.4.9","The Contractor shall put into operation two (2) BWD Reservoir Automation Kiosks for the level transmitters for Orange Farm Reservoir-1 and Resevoir-2 as shown on the BWD Reservoir Automation Kiosk General Arrangement Drawing RA_29317-001.","Sum",1]
["638","SS 2.3.2.4.10","The Contractor shall put into operation two (2) power supplies as shown on the BWD Telemetry Communication Panel drawing RA_39498.","Sum",1]
["639","SS 2.3.2.4.11","The Contractor shall put into operation the din-railed uninterrupted power supply (UPS) as shown on the BWD Telemetry Automation network layout drawing RA_39497.","Sum",1]
["640","SS 2.3.2.4.12","The Contractor shall design, supply, deliver, install, test and commission of all low voltage power and control cabling including earthing.","Sum",1]
["641","SS 2.3.2.5.1","The Contractor shall design and supply all Automation design requirements and quality documents including, but not limited to all the items as mentioned in Section 6.3.","Sum",1]
["642","SS 2.3.2.5.2.1","The Contractor shall put into operation two (2) ultrasonic level sensors and transmitters for Ennerdale Reservoir-1 and Resevoir-2 level measurement as shown on the BWD Telemetry Automation network layout drawing RA_39497.","Sum",1]
["643","SS 2.3.2.5.2.2","The Contractor shall put into operation two (2) radar level sensors and transmitters for Bospoort Reservoir-1 and Resevoir-2 level measurement as shown on the BWD Telemetry Automation network layout drawing RA_39497.","Sum",1]
["644","SS 2.3.2.5.3","The Contractor shall put into operation one (1) 800mm Diameter Electromagnetic Flow sensor and transmitter for Ennerdale Reservoir-1 and Resevoir-2 flow measurement on T5 Inlet pipeline as show on the as BWD Telemetry Automation network layout drawing RA_39497 and RO 26452/14/4 800mm Diameter Inline Valve Details drawing.","Sum",1]
["645","SS 2.3.2.5.4","The Contractor shall put into operation the wireless network for linking the wireless level transmitters and wireless radio receiver as shown on the BWD Telemetry Automation network layout drawing RA_39497.","Sum",1]
["646","SS 2.3.2.5.5","The Contractor shall put into operation the Ethernet network system as shown on the BWD Telemetry Automation network layout drawing RA_39497.","Sum",1]
["647","SS 2.3.2.5.6","The Contractor shall put into operation one wireless GPRS/GSM modem for transmitting data to Central Depot Control Room, Daleside Pumping Station Control Room and Meyerton Depot Control Room as shown on the BWD Telemetry Automation network layout drawing RA_39497.","Sum",1]
["648","SS 2.3.2.5.7","The Contractor shall put into operation the SCADA system at Central Depot Control Room, Daleside Pumping Station Control Room and Meyerton Depot Control Room as shown on the BWD Telemetry Automation network layout drawing RA_39497.","Sum",1]
["649","SS 2.3.2.5.8","The Contractor shall put into operation one (1) BWD Telemetry communication panel with all components as shown on the BWD Telemetry Communication Panel General Arrangement drawing RA_39498 and BWD Telemetry Building Site Plan RA_39634.","Sum",1]
["650","SS 2.3.2.5.9","The Contractor shall put into operation two (2) BWD Junction Boxes with all components for Ennerdale Reservoir-1 and Resevoir-2 as shown on the BWD Reservoir Junction Box drawing RA_39500.","Sum",1]
["651","SS 2.3.2.5.10","The Contractor shall put into operation two (2) BWD Reservoir Automation Kiosks for the level transmitters for Ennerdale Reservoir-1 and Resevoir-2 as shown on the BWD Reservoir Automation Kiosk General Arrangement Drawing RA_29317-001.","Sum",1]
["652","SS 2.3.2.5.11","The Contractor shall put into operation two (2) power supplies as shown on the BWD Telemetry Communication Panel drawing RA_39498.","Sum",1]
["653","SS 2.3.2.5.12","The Contractor shall put into operation the din-railed uninterrupted power supply (UPS) as shown on the BWD Telemetry Automation network layout drawing RA_39497.","Sum",1]
["654","SS 2.3.2.5.13","The Contractor shall design, supply, deliver, install, test and commission of all low voltage power and control cabling including earthing.","Sum",1]
["655","SS 2.3.2.6.1","The Contractor shall design and supply all Automation design requirements and quality documents including, but not limited to all the items as mentioned in Section 6.3.","Sum",1]
["656","SS 2.3.2.6.2.1","The Contractor shall put into operation one (1) ultrasonic level sensor and transmitter for Delmas Reservoir-1 level measurement as shown on the BWD Telemetry Automation network layout drawing RA_39497.","Sum",1]
["657","SS 2.3.2.6.2.2","The Contractor shall put into operation one (1) radar level sensor and transmitter for Delmas Reservoir-1 level measurement as shown on the BWD Telemetry Automation network layout drawing RA_39497.","Sum",1]
["658","SS 2.3.2.6.3","The Contractor shall put into operation the wireless network for linking the wireless level transmitters and wireless radio receiver as shown on the BWD Telemetry Automation network layout drawing RA_39497.","Sum",1]
["659","SS 2.3.2.6.4","The Contractor shall put into operation the Ethernet network system as shown on the BWD Telemetry Automation network layout drawing RA_39497.","Sum",1]
["660","SS 2.3.2.6.5","The Contractor shall put into operation one wireless GPRS/GSM modem for transmitting data to Central Depot Control Room and Bloemendal Pumping Station Control Room as shown on the BWD Telemetry Automation network layout drawing RA_39497.","Sum",1]
["661","SS 2.3.2.6.6","The Contractor shall put into operation the SCADA system at Central Depot Control Room and Bloemendal Pumping Station Control Room as shown on the BWD Telemetry Automation network layout drawing RA_39497.","Sum",1]
["662","SS 2.3.2.6.7","The Contractor shall put into operation one (1) BWD Telemetry communication panel with all components as shown on the BWD Telemetry Communication Panel General Arrangement drawing RA_39498 and BWD Telemetry Building Site Plan RA_39634.","Sum",1]
["663","SS 2.3.2.6.8","The Contractor shall put into operation one (1) BWD Junction Box with all components for Delmas Reservoir-1 as shown on the BWD Reservoir Junction Box drawing RA_39500.","Sum",1]
["664","SS 2.3.2.6.9","The Contractor shall put into operation one (1) BWD Reservoir Automation Kiosk for the level transmitters for Delmas Reservoir-1 as shown on the BWD Reservoir Automation Kiosk General Arrangement Drawing RA_29317-001.","Sum",1]
["665","SS 2.3.2.6.10","The Contractor shall put into operation two (2) power supplies as shown on the BWD Telemetry Communication Panel drawing RA_39498.","Sum",1]
["666","SS 2.3.2.6.11","The Contractor shall put into operation the din-railed uninterrupted power supply (UPS) as shown on the BWD Telemetry Automation network layout drawing RA_39497.","Sum",1]
["667","SS 2.3.2.6.12","The Contractor shall design, supply, deliver, install, test and commission of all low voltage power and control cabling including earthing.","Sum",1]
["668","SS 2.3.2.7.1","The Contractor shall design and supply all Automation design requirements and quality documents including, but not limited to all the items as mentioned in Section 6.3.","Sum",1]
["669","SS 2.3.2.7.2.1","The Contractor shall put into operation one (1) ultrasonic level sensor and transmitter for Bethal 4.5ML Reservoir-1 level measurement as shown on the BWD Telemetry Automation network layout drawing RA_39497.","Sum",1]
["670","SS 2.3.2.7.2.2","The Contractor shall put into operation one (1) radar level sensor and transmitter for Bethal 4.5ML Reservoir-1 level measurement as shown on the BWD Telemetry Automation network layout drawing RA_39497.","Sum",1]
["671","SS 2.3.2.7.3","The Contractor shall put into operation the wireless network for linking the wireless level transmitters and wireless radio receiver as shown on the BWD Telemetry Automation network layout drawing RA_39497.","Sum",1]
["672","SS 2.3.2.7.4","The Contractor shall put into operation the Ethernet network system as shown on the BWD Telemetry Automation network layout drawing RA_39497.","Sum",1]
["673","SS 2.3.2.7.5","The Contractor shall put into operation one wireless GPRS/GSM modem for transmitting data to Central Depot Control Room, Bloemendal Pumping Station Control Room and Trichardt Pumping Station Control Room as shown on the BWD Telemetry Automation network layout drawing RA_39497.","Sum",1]
["674","SS 2.3.2.7.6","The Contractor shall put into operation the SCADA system at Central Depot Control Room, Bloemendal Pumping Station Control Room and Trichardt Pumping Station Control Room as shown on the BWD Telemetry Automation network layout drawing RA_39497.","Sum",1]
["675","SS 2.3.2.7.7","The Contractor shall put into operation one (1) BWD Telemetry communication panel with all components as shown on the BWD Telemetry Communication Panel General Arrangement drawing RA_39498 and BWD Telemetry Building Site Plan RA_39634.","Sum",1]
["676","SS 2.3.2.7.8","The Contractor shall put into operation one (1) BWD Junction Box with all components for Bethal 4.5ML Reservoir-1 as shown on the BWD Reservoir Junction Box drawing RA_39500.","Sum",1]
["677","SS 2.3.2.7.9","The Contractor shall put into operation one (1) BWD Reservoir Automation Kiosk for the level transmitters for Bethal 4.5ML Reservoir-1 as shown on the BWD Reservoir Automation Kiosk General Arrangement Drawing RA_29317-001.","Sum",1]
["678","SS 2.3.2.7.10","The Contractor shall put into operation two (2) power supplies as shown on the BWD Telemetry Communication Panel drawing RA_39498.","Sum",1]
["679","SS 2.3.2.7.11","The Contractor shall put into operation the din-railed uninterrupted power supply (UPS) as shown on the BWD Telemetry Automation network layout drawing RA_39497.","Sum",1]
["680","SS 2.3.2.7.12","The Contractor shall design, supply, deliver, install, test and commission of all low voltage power and control cabling including earthing.","Sum",1]
["681","SS 2.3.2.8.1","The Contractor shall design and supply all Automation design requirements and quality documents including, but not limited to all the items as mentioned in Section 6.3.","Sum",1]
["682","SS 2.3.2.8.2.1","The Contractor shall put into operation one (1) ultrasonic level sensor and transmitter for Yeoville Reservoir-1 level measurement as shown on the BWD Telemetry Automation network layout drawing RA_39497.","Sum",1]
["683","SS 2.3.2.8.2.2","The Contractor shall put into operation one (1) radar level sensor and transmitter for Yeoville Reservoir-1 level measurement as shown on the BWD Telemetry Automation network layout drawing RA_39497.","Sum",1]
["684","SS 2.3.2.8.3","The Contractor shall put into operation the wireless network for linking the wireless level transmitters and wireless radio receiver as shown on the BWD Telemetry Automation network layout drawing RA_39497.","Sum",1]
["685","SS 2.3.2.8.4","The Contractor shall put into operation the Ethernet network system as shown on the BWD Telemetry Automation network layout drawing RA_39497.","Sum",1]
["686","SS 2.3.2.8.5","The Contractor shall put into operation one wireless GPRS/GSM modem for transmitting data to Central Depot Control Room and Forest Hill Depot Control Room as shown on the BWD Telemetry Automation network layout drawing RA_39497.","Sum",1]
["687","SS 2.3.2.8.6","The Contractor shall put into operation the SCADA system at Central Depot Control Room and Forest Hill Depot Control Room as shown on the BWD Telemetry Automation network layout drawing RA_39497.","Sum",1]
["688","SS 2.3.2.8.7","The Contractor shall put into operation one (1) BWD Telemetry communication panel with all components as shown on the BWD Telemetry Communication Panel General Arrangement drawing RA_39498 and BWD Telemetry Building Site Plan RA_39634.","Sum",1]
["689","SS 2.3.2.8.8","The Contractor shall put into operation one (1) BWD Junction Box with all components for Yeoville Reservoir-1 as shown on the BWD Reservoir Junction Box drawing RA_39500.","Sum",1]
["690","SS 2.3.2.8.9","The Contractor shall put into operation one (1) BWD Reservoir Automation Kiosk for the level transmitters for Yeoville Reservoir-1 as shown on the BWD Reservoir Automation Kiosk General Arrangement Drawing RA_29317-001.","Sum",1]
["691","SS 2.3.2.8.10","The Contractor shall put into operation two (2) power supplies as shown on the BWD Telemetry Communication Panel drawing RA_39498.","Sum",1]
["692","SS 2.3.2.8.11","The Contractor shall put into operation the din-railed uninterrupted power supply (UPS) as shown on the BWD Telemetry Automation network layout drawing RA_39497.","Sum",1]
["693","SS 2.3.2.8.12","The Contractor shall design, supply, deliver, install, test and commission of all low voltage power and control cabling including earthing.","Sum",1]
["694"]
["695",null,"Schedule B Carried Forward"]
["696"]
["697"]
["698"]
["699",null,"Schedule B Brought Forward to Summary"]
["700"]

{"sheet":"Schedule C - Electrical","index":2,"n_rows":478,"n_cols":11,"rows_kept":478,"merged":[[1,1,1,10],[2,13,2,15],[3,9,3,10],[3,13,3,15],[5,0,6,0],[5,1,6,1],[5,5,6,5],[5,6,6,6],[5,7,6,7],[5,8,6,8],[5,9,6,9],[477,2,477,9]]}
[]
[null,{"$f":"'[4]Schedule A - P&G'!B2:I2","v":"TENDER FOR THE DESIGN, MANUFACTURE, SUPPLY, DELIVERY, INSTALLATION, CONSTRUCTION, CONFIGURATION, TESTING AND COMMISSSIONING OF TELEMETRY SYSTEMS AND BUILDINGS FOR ALL RAND WATER BWD RESERVOIRS SITES  AND MUNICIPALITIES RESERVOIRS"}]
[]
[{"$nulls":9},"Schedule C: Electrical"]
[]
["Item   No.","Payment Refers","Description","Unit","Qty","Detail Design","Manufacture,  Supply & Test ","Delivery of Equipment","Installation and Construction","Putting into service & Commissioning","Total Amount"]
[]
[null,null,"Electrical Equipment and Works. Contractor to review all system specifications and drawings in order to provide pricing. Contractor shall ensure all equipment and works required for a complete and working installation are allowed for in the pricing schedule"]
["C.1",null,"Waterkloof Reservoir( two Reservoirs but only one Telemetry building and one Guard house)"]
["C1.1",null,"Telemetry building small power and lighting works","Sum",1]
["C1.2",null,"Telemetry building vandal resistant photovoltaic system","Each",1]
["C1.3",null,"Telemetry building intruder alarm system","Each",1]
["C1.4",null,"Telemetry building earthing and lightning protection","Each",1]
["C1.5",null,"Photovoltaic system earthing and lightning protection","Each",1]
["C1.6",null,"Cables, cable vandal protection systems, cable supports and excavations between photovoltaic system and telemetry building. Allow for 30 meters of cable","Sum",1]
["C1.7",null,"Guardhouse building small power and lighting works","Sum",1]
["C1.8",null,"Guardhouse building vandal resistant photovoltaic system","Each",1]
["C1.9",null,"Guardhouse building earthing and lightning protection","Each",1]
["C1.10",null,"Cables, cable vandal protection systems, cable supports and excavations between photovoltaic system and the building. Allow for 30 meters of cable","Sum",1]
["C1.11",null,"Earthing and lightning protection for the two automation kiosks on top of the reservoir","Each",2]
["C1.12",null,"Provision for all documentation as listed in clause 11 of the electrical system specification document","Sum",1]
["C1.13",null,"Provide the details of any additional equipment or installation work that might be required. If no details are provided below, the contractor shall not be allowed any claims on this item                                1.                                                                2.                                                                3.                                                                        4.                                                                       5.                                                               6.","Sum",1]
["C2",null,"Rustenburg South Reservoir(one reservoir)"]
["C2.1",null,"Telemetry building small power and lighting works","Sum",1]
["C2.2",null,"Telemetry building vandal resistant photovoltaic system","Each",1]
["C2.3",null,"Telemetry building intruder alarm system","Each",1]
["C2.4",null,"Telemetry building earthing and lightning protection","Each",1]
["C2.5",null,"Photovoltaic system earthing and lightning protection","Each",1]
["C2.6",null,"Cables, cable vandal protection systems, cable supports and excavations between photovoltaic system and telemetry building. Allow for 30 meters of cable","Sum",1]
["C2.7",null,"Guardhouse building small power and lighting","Sum",1]
["C2.8",null,"Guardhouse building vandal resistant photovoltaic system","Each",1]
["C2.9",null,"Guardhouse building earthing and lightning protection","Each",1]
["C2.10",null,"Cables, cable vandal protection systems, cable supports and excavations between photovoltaic system and the building. Allow for 30 meters of cable","Sum",1]
["C2.11",null,"Earthing and lightning protection for the  automation kiosk on top of the reservoir","Each",1]
["C2.12",null,"Provision for all documentation as listed in clause 11 of the electrical system specification document","Sum",1]
["C2.13",null,"Provide the details of any additional equipment or installation work that might be required. If no details are provided below, the contractor shall not be allowed any claims on this item                                1.                                                                2.                                                                3.                                                                        4.                                                                       5.                                                               6.","Sum",1]
["C3",null,"Barnardsvlei Reservoir(one reservoir)"]
["C3.1",null,"Telemetry building small power and lighting works","Sum",1]
["C3.2",null,"Telemetry building vandal resistant photovoltaic system","Each",1]
["C3.3",null,"Telemetry building intruder alarm system","Each",1]
["C3.4",null,"Telemetry building earthing and lightning protection","Each",1]
["C3.5",null,"Photovoltaic system earthing and lightning protection","Each",1]
["C3.6",null,"Cables,  cable vandal protection systems, cable supports and excavations between photovoltaic system and telemetry building. Allow for 40 meters of cable","Sum",1]
["C3.7",null,"Earthing and lightning protection for the  automation kiosk on top of the reservoir","Each",1]
["C3.8",null,"Provision for all documentation as listed in clause 11 of the electrical system specification document","Sum",1]
["C3.9",null,"Provide the details of any additional equipment or installation work that might be required. If no details are provided below, the contractor shall not be allowed any claims on this item                                1.                                                                2.                                                                3.                                                                        4.                                                                       5.                                                               6.","Sum",1]
["C4",null,"Daleside Station   (two reservoirs)                                                  The existing 400 Volt MCC will be used to house the DC battery back up power unit                                                            "]
["C4.1",null,"DC battery backup power system","Each",1]
["C4.2",null,"Cables, cable vandal protection systems and cable supports  between the DC Battery power backup system and the power source at the 400 Volt MCC.Allow for 30 meters of cable","Sum",1]
["C4.3",null,"Earthing and lightning protection for the two automation kiosks on top of the reservoirs","Each",2]
["C4.4",null,"Provision for all documentation as listed in clause 11 of the electrical system specification document","Sum",1]
["C4.5",null,"Provide the details of any additional equipment or installation work that might be required. If no details are provided below, the contractor shall not be allowed any claims on this item                                1.                                                                2.                                                                3.                                                                        4.                                                                       5.                                                               6.","Sum",1]
["C5",null,"Sasolburg Station (one reservoir)                                               On this site the DC battery backup unit shall be installed inside an existing room                                            "]
["C5.1",null,"DC battery backup power system","Each",1]
["C5.2",null,"Earthing and lightning protection for the  automation kiosk on top of the reservoir","Each",1]
["C5.3",null,"Cables, cable vandal protection systems, and cable supports  between the DC Battery power backup system and the power source at the 400 Volt MCC. Allow for 30 meters of cable","Sum",1]
["C5.4",null,"Provision for all documentation as listed in clause 11 of the electrical system specification document","Sum",1]
["C5.5",null,"Provide the details of any additional equipment or installation work that might be required. If no details are provided below, the contractor shall not be allowed any claims on this item                                1.                                                                2.                                                                3.                                                                        4.                                                                       5.                                                               6.","Sum",1]
["C6",null,"Barrage Station                                                   "]
["C6.1",null,"Telemetry building small power and lighting works","Sum",1]
["C6.2",null,"DC battery backup power system","Each",1]
["C6.3",null,"Telemetry building intruder alarm system","Each",1]
["C6.4",null,"Telemetry building earthing and lightning protection","Each",1]
["C6.5",null,"Cables,  cable vandal protection systems, cable supports and excavations between telemetry building and the power source on site. Allow for 30 meters of cable","Sum",1]
["C6.6",null,"Provision for all documentation as listed in clause 11 of the electrical system specification document","Sum",1]
["C6.7",null,"Provide the details of any additional equipment or installation work that might be required. If no details are provided below, the contractor shall not be allowed any claims on this item                                1.                                                                2.                                                                3.                                                                        4.                                                                       5.                                                               6.","Sum",1]
["C7",null,"Amanzimtoti Station                                               On this site the DC battery backup power system shall be installed inside the existing building"]
["C7.1",null,"DC battery backup power system","Each",1]
["C7.2",null,"Cables, cable vandal protection systems, and cable supports  between the DC Battery power backup system and the power source at the 400 Volt MCC. Allow for 30 meters of cable","Sum",1]
["C7.3",null,"Provision for all documentation as listed in clause 11 of the electrical system specification document","Sum",1]
["C7.4",null,"Provide the details of any additional equipment or installation work that might be required. If no details are provided below, the contractor shall not be allowed any claims on this item                                1.                                                                2.                                                                3.                                                                        4.                                                                       5.                                                               6.","Sum",1]
["C8",null,"Langerand Reservoir(two reservoirs but only one Telemetry building and one Guardhouse)"]
["C8.1",null,"Telemetry building small power and lighting works","Sum",1]
["C8.2",null,"Telemetry building vandal resistant photovoltaic system","Each",1]
["C8.3",null,"Telemetry building intruder alarm system","Each",1]
["C8.4",null,"Telemetry building earthing and lightning protection","Each",1]
["C8.5",null,"Photovoltaic system earthing and lightning protection","Each",1]
["C8.6",null,"Cables, cable vandal protection systems, cable supports and excavations between photovoltaic system and telemetry building. Allow for 30 meters of cable","Sum",1]
["C8.7",null,"Guardhouse building small power and lighting works","Sum",1]
["C8.8",null,"Guardhouse building vandal resistant photovoltaic system","Each",1]
["C8.9",null,"Guardhouse building earthing and lightning protection","Each",1]
["C8.10",null,"Guardhouse cabling, cable vandal protection systems, cable supports and excavations between photovoltaic system and building. Allow for 30 meters of cable","Sum",1]
["C8.11",null,"Earthing and lightning protection for the two automation kiosks on top of the reservoirs","Each",2]
["C8.12",null,"Provision for all documentation as listed in clause 11 of the electrical system specification document","Sum",1]
["C8.13",null,"Provide the details of any additional equipment or installation work that might be required. If no details are provided below, the contractor shall not be allowed any claims on this item                                1.                                                                2.                                                                3.                                                                        4.                                                                       5.                                                               6.","Sum",1]
["C9",null,"Spioenkop No.1(one reservoir)"]
["C9.1",null,"Telemetry building small power and lighting works","Sum",1]
["C9.2",null,"DC battery backup power system","Each",1]
["C9.3",null,"Telemetry building intruder alarm system","Each",1]
["C9.4",null,"Telemetry building earthing and lightning protection","Each",1]
["C9.5",null,"Cables,  cable vandal protection systems, cable supports and excavations between telemetry building and the power kiosk on site. Allow for 40 meters of cable","Sum",1]
["C9.6",null,"Guardhouse building small power and lighting works","Sum",1]
["C9.7",null,"Guardhouse building earthing and lightning protection","Each",1]
["C9.8",null,"Guardhouse cabling, cable vandal protection systems, cable supports and excavations between  building and power distribution kiosk. Allow for 70 meters of cable ","Sum",1]
["C9.9",null,"Earthing and lightning protection for the  automation kiosk on top of the reservoir","Each",1]
["C9.10",null,"Provision for a vandal resistant power distribution kiosk","Each",1]
["C9.11",null,"Provision for the repairs and reinstatement of the low voltage overhead bundle conductor line terminations complete with cabling to the distribution kiosk","Sum",1]
["C9.12",null,"Provision for coordination and works required with the supply authority for the isolation and reinstatement of power as dictated in clause 9 of the electrical system specifications document","Sum",1]
["C9.13",null,"Provision for all documentation as listed in clause 11 of the electrical system specification document","Sum",1]
["C9.14",null,"Provide the details of any additional equipment or installation work that might be required. If no details are provided below, the contractor shall not be allowed any claims on this item                                1.                                                                2.                                                                3.                                                                        4.                                                                       5.                                                               6.","Sum",1]
["C10",null,"Spioenkop No.2 (one reservoir)                                                   On this site the existing pump room shall be utilized to install the DC battery power backup system"]
["C10.1",null,"DC battery backup power system","Each",1]
["C10.2",null,"Cables , cable vandal protection systems, and cable supports  between the DC Battery power backup system and the power source at the 400 Volt MCC. Allow for 20 meters of cable","Sum",1]
["C10.3",null,"Earthing and lightning protection for the  automation kiosk on top of the reservoir","Each",1]
["C10.4",null,"Provision for all documentation as listed in clause 11 of the electrical system specification document","Sum",1]
["C10.5",null,"Provide the details of any additional equipment or installation work that might be required. If no details are provided below, the contractor shall not be allowed any claims on this item                                1.                                                                2.                                                                3.                                                                        4.                                                                       5.                                                               6.","Sum",1]
["C11",null,"Libanon Station(three reservoirs)                                                    On this site the existing building shall be used to install the DC battery power backup system"]
["C11.1",null,"DC battery backup power system","Each",1]
["C11.2",null,"Cables , cable vandal protection systems, and cable supports  between the DC Battery power backup system and the power source at the 400 Volt MCC. Allow for 30 meters of cable","Sum",1]
["C11.3",null,"Earthing and lightning protection for the three automation kiosks on top of the reservoirs","Each",3]
["C11.4",null,"Provision for all documentation as listed in clause 11 of the electrical system specification document","Sum",1]
["C11.5",null,"Provide the details of any additional equipment or installation work that might be required. If no details are provided below, the contractor shall not be allowed any claims on this item                                1.                                                                2.                                                                3.                                                                        4.                                                                       5.                                                               6.","Sum",1]
["C12",null,"Driefontein Reservoir(one reservoir)"]
["C12.1",null,"Telemetry building small power and lighting works","Sum",1]
["C12.2",null,"DC battery backup power system","Each",1]
["C12.3",null,"Telemetry building intruder alarm system","Each",1]
["C12.4",null,"Telemetry building earthing and lightning protection","Each",1]
["C12.5",null,"Cables, cable vandal protection systems, cable supports and excavations between telemetry building and the existing guardhouse on site. Allow for 40 meters of cable","Sum",1]
["C12.6",null,"Earthing and lightning protection for the  automation kiosk on top of the reservoir","Each",1]
["C12.7",null,"Provision for all documentation as listed in clause 11 of the electrical system specification document","Sum",1]
["C12.8",null,"Provide the details of any additional equipment or installation work that might be required. If no details are provided below, the contractor shall not be allowed any claims on this item                                1.                                                                2.                                                                3.                                                                        4.                                                                       5.                                                               6.","Sum",1]
["C13",null,"Meredale Reservoir(two reservoirs but only one Telemetry building)"]
["C13.1",null,"Telemetry building small power and lighting works","Sum",1]
["C13.2",null,"DC battery backup power system","Each",1]
["C13.3",null,"Telemetry building intruder alarm system","Each",1]
["C13.4",null,"Telemetry building earthing and lightning protection","Each",1]
["C13.5",null,"Provision for a vandal resistant power distribution kiosk","Each",1]
["C13.6",null,"Cables, cable vandal protection systems, cable supports and excavations between telemetry building and the new distribution kiosk on site. Allow for 30 meters of cable","Sum",1]
["C13.7",null,"Earthing and lightning protection for the two automation kiosks on top of the reservoirs","Each",2]
["C13.8",null,"Provision for all documentation as listed in clause 11 of the electrical system specification document","Sum",1]
["C13.9",null,"Provide the details of any additional equipment or installation work that might be required. If no details are provided below, the contractor shall not be allowed any claims on this item                                1.                                                                2.                                                                3.                                                                        4.                                                                       5.                                                               6.","Sum",1]
["C14",null,"Foresthill Site and Reservoirs 1 & 3(but only one Telemetry building)"]
["C14.1",null,"Telemetry building small power and lighting works","Sum",1]
["C14.2",null,"DC battery backup power system","Each",1]
["C14.3",null,"Telemetry building intruder alarm system","Each",1]
["C14.4",null,"Telemetry building earthing and lightning protection","Each",1]
["C14.5",null,"Cables, cable vandal protection systems, cable supports and excavations between telemetry building and the power source on site. Allow for 70 meters of cable","Sum",1]
["C14.6",null,"Earthing and lightning protection for the two automation kiosks on top of the reservoirs","Each",2]
["C14.7",null,"Provision for all documentation as listed in clause 11 of the electrical system specification document","Sum",1]
["C14.8",null,"Provide the details of any additional equipment or installation work that might be required. If no details are provided below, the contractor shall not be allowed any claims on this item                                1.                                                                2.                                                                3.                                                                        4.                                                                       5.                                                               6.","Sum",1]
["C15",null,"Foresthill Site and Reservoir No. 2"]
["C15.1",null,"Telemetry building small power and lighting works","Sum",1]
["C15.2",null,"DC battery backup power system","Each",1]
["C15.3",null,"Telemetry building intruder alarm system","Each",1]
["C15.4",null,"Telemetry building earthing and lightning protection","Each",1]
["C15.5",null,"Cables, cable vandal protection systems, cable supports and excavations between telemetry building and the power source on site. Allow for 50 meters of cable","Sum",1]
["C15.6",null,"Earthing and lightning protection for the  automation kiosk on top of the reservoir","Each",1]
["C15.7",null,"Provision for all documentation as listed in clause 11 of the electrical system specification document","Sum",1]
["C15.8",null,"Provide the details of any additional equipment or installation work that might be required. If no details are provided below, the contractor shall not be allowed any claims on this item                                1.                                                                2.                                                                3.                                                                        4.                                                                       5.                                                               6.","Sum",1]
["C16",null,"Meyershill Reservoir(one reservoir)"]
["C16.1",null,"Telemetry building small power and lighting works","Sum",1]
["C16.2",null,"DC battery backup power system","Each",1]
["C16.3",null,"Telemetry building intruder alarm system","Each",1]
["C16.4",null,"Telemetry building earthing and lightning protection","Each",1]
["C16.5",null,"Cables, cable vandal protection systems, cable supports and excavations between telemetry building and the existing guardhouse on site. Allow for 40 meters of cable","Sum",1]
["C16.6",null,"Earthing and lightning protection for the  automation kiosk on top of the reservoir","Each",1]
["C16.7",null,"Provision for all documentation as listed in clause 11 of the electrical system specification document","Sum",1]
["C16.8",null,"Provide the details of any additional equipment or installation work that might be required. If no details are provided below, the contractor shall not be allowed any claims on this item                                1.                                                                2.                                                                3.                                                                        4.                                                                       5.                                                               6.","Sum",1]
["C17",null,"Klipriviersberg Reservoir(two reservoirs, but only one Telemetry building)"]
["C17.1",null,"Telemetry building small power and lighting works","Sum",1]
["C17.2",null,"Telemetry building vandal resistant photovoltaic system","Each",1]
["C17.3",null,"Telemetry building intruder alarm system","Each",1]
["C17.4",null,"Telemetry building earthing and lightning protection","Each",1]
["C17.5",null,"Photovoltaic system earthing and lightning protection","Each",1]
["C17.6",null,"Cables, cable vandal protection systems, cable supports and excavations between photovoltaic system and telemetry building. Allow for 50 meters of cable","Sum",1]
["C17.7",null,"Earthing and lightning protection for the two automation kiosks on top of the reservoirs","Each",2]
["C17.8",null,"Provision for all documentation as listed in clause 11 of the electrical system specification document","Sum",1]
["C17.9",null,"Provide the details of any additional equipment or installation work that might be required. If no details are provided below, the contractor shall not be allowed any claims on this item                                1.                                                                2.                                                                3.                                                                        4.                                                                       5.                                                               6.","Sum",1]
["C18",null,"Waterval Reservoir(two reservoirs, but only one Telemetry building)"]
["C18.1",null,"Telemetry building small power and lighting works","Sum",1]
["C18.2",null,"DC battery backup power system","Each",1]
["C18.3",null,"Telemetry building intruder alarm system","Each",1]
["C18.4",null,"Telemetry building earthing and lightning protection","Each",1]
["C18.5",null,"Cables, cable vandal protection systems, cable supports and excavations between telemetry building and the power source on site. Allow for 100 meters of cable","Sum",1]
["C18.6",null,"Earthing and lightning protection for the two automation kiosks on top of the reservoirs","Each",2]
["C18.7",null,"Provision for all documentation as listed in clause 11 of the electrical system specification document","Sum",1]
["C18.8",null,"Provide the details of any additional equipment or installation work that might be required. If no details are provided below, the contractor shall not be allowed any claims on this item                                1.                                                                2.                                                                3.                                                                        4.                                                                       5.                                                               6.","Sum",1]
["C19",null,"Weltevreden Reservoir(one reservoir)"]
["C19.1",null,"Telemetry building small power and lighting works","Sum",1]
["C19.2",null,"DC battery backup power system","Each",1]
["C19.3",null,"Telemetry building intruder alarm system","Each",1]
["C19.4",null,"Telemetry building earthing and lightning protection","Each",1]
["C19.5",null,"Cables, cable vandal protection systems, cable supports and excavations between telemetry building and the power source on site. Allow for 40 meters of cable","Sum",1]
["C19.6",null,"Earthing and lightning protection for the  automation kiosk on top of the reservoir","Each",1]
["C19.7",null,"Provision for all documentation as listed in clause 11 of the electrical system specification document","Sum",1]
["C19.8",null,"Provide the details of any additional equipment or installation work that might be required. If no details are provided below, the contractor shall not be allowed any claims on this item                                1.                                                                2.                                                                3.                                                                        4.                                                                       5.                                                               6.","Sum",1]
["C20",null,"Roodepoort Reservoir(one reservoir)"]
["C20.1",null,"Telemetry building small power and lighting works","Sum",1]
["C20.2",null,"DC battery backup power system","Each",1]
["C20.3",null,"Telemetry building intruder alarm system","Each",1]
["C20.4",null,"Telemetry building earthing and lightning protection","Each",1]
["C20.5",null,"Cables, cable vandal protection systems, cable supports and excavations between telemetry building and the power source on site. Allow for 50 meters of cable","Sum",1]
["C20.6",null,"Guardhouse building small power and lighting works","Sum",1]
["C20.7",null,"Guardhouse building earthing and lightning protection","Each",1]
["C20.8",null,"Guardhouse cabling, cable vandal protection systems, cable supports and excavations between  building and power source on site. Allow for 130 meters of cable ","Sum",1]
["C20.9",null,"Earthing and lightning protection for the  automation kiosk on top of the reservoir","Each",1]
["C20.10",null,"Provision for all documentation as listed in clause 11 of the electrical system specification document","Sum",1]
["C20.11",null,"Provide the details of any additional equipment or installation work that might be required. If no details are provided below, the contractor shall not be allowed any claims on this item                                1.                                                                2.                                                                3.                                                                        4.                                                                       5.                                                               6.","Sum",1]
["C21",null,"Krugersdorp Site and Reservoirs(three reservoirs, but only one Telemetry building)"]
["C21.1",null,"Telemetry building small power and lighting works","Sum",1]
["C21.2",null,"DC battery backup power system","Each",1]
["C21.3",null,"Telemetry building intruder alarm system","Each",1]
["C21.4",null,"Telemetry building earthing and lightning protection","Each",1]
["C21.5",null,"Cables, cable vandal protection systems, cable supports and excavations between telemetry building and the power source on site. Allow for 60 meters of cable","Sum",1]
["C21.6",null,"Earthing and lightning protection for the three automation kiosks on top of the reservoirs","Each",3]
["C21.7",null,"Provision for all documentation as listed in clause 11 of the electrical system specification document","Sum",1]
["C21.8",null,"Provide the details of any additional equipment or installation work that might be required. If no details are provided below, the contractor shall not be allowed any claims on this item                                1.                                                                2.                                                                3.                                                                        4.                                                                       5.                                                               6.","Sum",1]
["C22",null,"Witpoortjie Reservoir(two reservoirs, but only one Telemetry building and one Guard house)"]
["C22.1",null,"Telemetry building small power and lighting works","Sum",1]
["C22.2",null,"DC battery backup power system","Each",1]
["C22.3",null,"Telemetry building intruder alarm system","Each",1]
["C22.4",null,"Telemetry building earthing and lightning protection","Each",1]
["C22.5",null,"Cables, cable vandal protection systems, cable supports and excavations between telemetry building and the new power kiosk on site. Allow for 40 meters of cable","Sum",1]
["C22.6",null,"Guardhouse building small power and lighting works","Sum",1]
["C22.7",null,"Guardhouse building earthing and lightning protection","Each",1]
["C22.8",null,"Guardhouse cabling, cable vandal protection systems, cable supports and excavations between  building and new power kiosk on site. Allow for 120 meters of cable ","Sum",1]
["C22.9",null,"Earthing and lightning protection for the two automation kiosks on top of the reservoirs","Each",2]
["C22.10",null,"Provision for a vandal resistant power distribution kiosk to replace the existing 200 Amp meter box on site ","Each",1]
["C22.11",null,"Provision for coordination and works required with the supply authority for the isolation and reinstatement of power as dictated in clause 9 of the electrical system specifications document","Sum",1]
["C22.12",null,"Provision for all documentation as listed in clause 11 of the electrical system specification document","Sum",1]
["C22.13",null,"Provide the details of any additional equipment or installation work that might be required. If no details are provided below, the contractor shall not be allowed any claims on this item                                1.                                                                2.                                                                3.                                                                        4.                                                                       5.                                                               6.","Sum",1]
["C23",null,"Hartebeeshoek Reservoir(one reservoir)"]
["C23.1",null,"Telemetry building small power and lighting works","Sum",1]
["C23.2",null,"DC battery backup power system","Each",1]
["C23.3",null,"Telemetry building intruder alarm system","Each",1]
["C23.4",null,"Telemetry building earthing and lightning protection","Each",1]
["C23.5",null,"Cables, cable vandal protection systems, cable supports and excavations between telemetry building and the power source on site. Allow for 70 meters of cable","Sum",1]
["C23.6",null,"Earthing and lightning protection for the  automation kiosk on top of the reservoir","Each",1]
["C23.7",null,"Provision for all documentation as listed in clause 11 of the electrical system specification document","Sum",1]
["C23.8",null,"Provide the details of any additional equipment or installation work that might be required. If no details are provided below, the contractor shall not be allowed any claims on this item                                1.                                                                2.                                                                3.                                                                        4.                                                                       5.                                                               6.","Sum",1]
["C24",null,"Bronberg Reservoir(one reservoir)"]
["C24.1",null,"Telemetry building small power and lighting works","Sum",1]
["C24.2",null,"DC battery backup power system","Each",1]
["C24.3",null,"Telemetry building intruder alarm system","Each",1]
["C24.4",null,"Telemetry building earthing and lightning protection","Each",1]
["C24.5",null,"Cables, cable vandal protection systems, cable supports and excavations between telemetry building and the power source on site. Allow for 120 meters of cable","Sum",1]
["C24.6",null,"Guardhouse building small power and lighting works","Sum",1]
["C24.7",null,"Guardhouse building earthing and lightning protection","Each",1]
["C24.8",null,"Guardhouse cabling, cable vandal protection systems, cable supports and excavations between  building and power source on site. Allow for 130 meters of cable ","Sum",1]
["C24.9",null,"Earthing and lightning protection for the  automation kiosk on top of the reservoir","Each",1]
["C24.10",null,"Provision for all documentation as listed in clause 11 of the electrical system specification document","Sum",1]
["C24.11",null,"Provide the details of any additional equipment or installation work that might be required. If no details are provided below, the contractor shall not be allowed any claims on this item                                1.                                                                2.                                                                3.                                                                        4.                                                                       5.                                                               6.","Sum",1]
["C25",null,"Stompiesfontein Reservoir(one reservoir)"]
["C25.1",null,"Telemetry building small power and lighting works","Sum",1]
["C25.2",null,"DC battery backup power system","Each",1]
["C25.3",null,"Telemetry building intruder alarm system","Each",1]
["C25.4",null,"Telemetry building earthing and lightning protection","Each",1]
["C25.5",null,"Cables, cable vandal protection systems, cable supports and excavations between telemetry building and the power source on site. Allow for 30 meters of cable","Sum",1]
["C25.6",null,"Guardhouse building small power and lighting works","Sum",1]
["C25.7",null,"Guardhouse building earthing and lightning protection","Each",1]
["C25.8",null,"Guardhouse cabling, cable vandal protection systems, cable supports and excavations between  building and power source on site. Allow for 50 meters of cable","Sum",1]
["C25.9",null,"Earthing and lightning protection for the  automation kiosk on top of the reservoir","Each",1]
["C25.10",null,"Provision for all documentation as listed in clause 11 of the electrical system specification document","Sum",1]
["C25.11",null,"Provide the details of any additional equipment or installation work that might be required. If no details are provided below, the contractor shall not be allowed any claims on this item                                1.                                                                2.                                                                3.                                                                        4.                                                                       5.                                                               6.","Sum",1]
["C26",null,"Wildebeestfontein Reservoir(three reservoirs, but only one Telemetry building and one Guard house)"]
["C26.1",null,"Telemetry building small power and lighting works","Sum",1]
["C26.2",null,"DC battery backup power system","Each",1]
["C26.3",null,"Telemetry building intruder alarm system","Each",1]
["C26.4",null,"Telemetry building earthing and lightning protection","Each",1]
["C26.5",null,"Cables, cable vandal protection systems, cable supports and excavations between telemetry building and the power source on site. Allow for 80 meters of cable","Sum",1]
["C26.6",null,"Guardhouse building small power and lighting works","Sum",1]
["C26.7",null,"Guardhouse building earthing and lightning protection","Each",1]
["C26.8",null,"Guardhouse cabling, cable vandal protection systems, cable supports and excavations between  building and power source on site. Allow for 80 meters of cable ","Sum",1]
["C26.9",null,"Earthing and lightning protection for the three automation kiosks on top of the reservoirs","Each",3]
["C26.10",null,"Provision for all documentation as listed in clause 11 of the electrical system specification document","Sum",1]
["C26.11",null,"Provide the details of any additional equipment or installation work that might be required. If no details are provided below, the contractor shall not be allowed any claims on this item                                1.                                                                2.                                                                3.                                                                        4.                                                                       5.                                                               6.","Sum",1]
["C27",null,"Brakfontein Reservoir(one reservoir)"]
["C27.1",null,"Telemetry building small power and lighting works","Sum",1]
["C27.2",null,"DC battery backup power system","Each",1]
["C27.3",null,"Telemetry building intruder alarm system","Each",1]
["C27.4",null,"Telemetry building earthing and lightning protection","Each",1]
["C27.5",null,"Cables, cable vandal protection systems, cable supports and excavations between telemetry building and the existing power source on site. Allow for 100 meters of cable","Sum",1]
["C27.6",null,"Earthing and lightning protection for the  automation kiosk on top of the reservoir","Each",1]
["C27.7",null,"Provision for all documentation as listed in clause 11 of the electrical system specification document","Sum",1]
["C27.8",null,"Provide the details of any additional equipment or installation work that might be required. If no details are provided below, the contractor shall not be allowed any claims on this item                                1.                                                                2.                                                                3.                                                                        4.                                                                       5.                                                               6.","Sum",1]
["C28",null,"Klipfontein Reservoir(two reservoirs, but only one Telemetry building)"]
["C28.1",null,"Telemetry building small power and lighting works","Sum",1]
["C28.2",null,"DC battery backup power system","Each",1]
["C28.3",null,"Telemetry building intruder alarm system","Each",1]
["C28.4",null,"Telemetry building earthing and lightning protection","Each",1]
["C28.5",null,"Cables, cable vandal protection systems, cable supports and excavations between telemetry building and the existing power source on site. Allow for 50 meters of cable","Sum",1]
["C28.6",null,"Earthing and lightning protection for the two automation kiosks on top of the reservoirs","Each",2]
["C28.7",null,"Provision for all documentation as listed in clause 11 of the electrical system specification document","Sum",1]
["C28.8",null,"Provide the details of any additional equipment or installation work that might be required. If no details are provided below, the contractor shall not be allowed any claims on this item                                1.                                                                2.                                                                3.                                                                        4.                                                                       5.                                                               6.","Sum",1]
["C29",null,"Esselenpark Station"]
["C29.1",null,"Telemetry building small power and lighting works","Sum",1]
["C29.2",null,"DC battery backup power system","Each",1]
["C29.3",null,"Telemetry building intruder alarm system","Each",1]
["C29.4",null,"Telemetry building earthing and lightning protection","Each",1]
["C29.5",null,"Cables, cable vandal protection systems, cable supports and excavations between telemetry building and the existing power source on site. Allow for 50 meters of cable","Sum",1]
["C29.6",null,"Earthing and lightning protection for each of the automation kiosks on top of reservoirs","Each",1]
["C29.7",null,"Provision for all documentation as listed in clause 11 of the electrical system specification document","Sum",1]
["C29.8",null,"Provide the details of any additional equipment or installation work that might be required. If no details are provided below, the contractor shall not be allowed any claims on this item                                1.                                                                2.                                                                3.                                                                        4.                                                                       5.                                                               6.","Sum",1]
["C30",null,"Airfield Reservoir(two reservoirs, but only one Telemetry building and one Guard house)"]
["C30.1",null,"Telemetry building small power and lighting works","Sum",1]
["C30.2",null,"DC battery backup power system","Each",1]
["C30.3",null,"Telemetry building intruder alarm system","Each",1]
["C30.4",null,"Telemetry building earthing and lightning protection","Each",1]
["C30.5",null,"Cables, cable vandal protection systems, cable supports and excavations between telemetry building and the new power kiosk on site. Allow for 30 meters of cable","Sum",1]
["C30.6",null,"Guardhouse building small power and lighting works","Sum",1]
["C30.7",null,"Guardhouse building earthing and lightning protection","Each",1]
["C30.8",null,"Guardhouse cabling, cable vandal protection systems, cable supports and excavations between  building and new power kiosk on site. Allow for 70 meters of cable ","Sum",1]
["C30.9",null,"Earthing and lightning protection for the two automation kiosks on top of the reservoirs","Each",2]
["C30.10",null,"Provision for a vandal resistant power distribution kiosk to accommodate the power reticulation on site ","Each",1]
["C30.11",null,"Provision for coordination and works required with the supply authority for the isolation and reinstatement of power as dictated in clause 9 of the electrical system specifications document","Sum",1]
["C30.12",null,"Provision for finding the existing power cable and join,    reroute and terminate to new distribution kiosk next to guardhouse","Sum",1]
["C30.13",null,"Provision for all documentation as listed in clause 11 of the electrical system specification document","Sum",1]
["C30.14",null,"Provide the details of any additional equipment or installation work that might be required. If no details are provided below, the contractor shall not be allowed any claims on this item                                1.                                                                2.                                                                3.                                                                        4.                                                                       5.                                                               6.","Sum",1]
["C31",null,"Germiston Depot(one reservoir)"]
["C31.1",null,"Telemetry building small power and lighting works","Sum",1]
["C31.2",null,"DC battery backup power system","Each",1]
["C31.3",null,"Telemetry building intruder alarm system","Each",1]
["C31.4",null,"Telemetry building earthing and lightning protection","Each",1]
["C31.5",null,"Cables, cable vandal protection systems, cable supports and excavations between telemetry building and the existing power source on site. Allow for 130 meters of cable","Sum",1]
["C31.6",null,"Earthing and lightning protection for the  automation kiosk on top of the reservoir","Each",1]
["C31.7",null,"Provision for all documentation as listed in clause 11 of the electrical system specification document","Sum",1]
["C31.8",null,"Provide the details of any additional equipment or installation work that might be required. If no details are provided below, the contractor shall not be allowed any claims on this item                                1.                                                                2.                                                                3.                                                                        4.                                                                       5.                                                               6.","Sum",1]
["C32",null,"Northridge Reservoir(one reservoir)"]
["C32.1",null,"Telemetry building small power and lighting works","Sum",1]
["C32.2",null,"DC battery backup power system","Each",1]
["C32.3",null,"Telemetry building intruder alarm system","Each",1]
["C32.4",null,"Telemetry building earthing and lightning protection","Each",1]
["C32.5",null,"Cables, cable vandal protection systems, cable supports and excavations between telemetry building and the new power kiosk on site. Allow for 30 meters of cable","Sum",1]
["C32.6",null,"Guardhouse building small power and lighting works","Sum",1]
["C32.7",null,"Guardhouse building earthing and lightning protection","Each",1]
["C32.8",null,"Guardhouse cabling, cable vandal protection systems, cable supports and excavations between  building and new power kiosk on site. Allow for 100 meters of cable ","Sum",1]
["C32.9",null,"Earthing and lightning protection for the  automation kiosk on top of the reservoir","Each",1]
["C32.10",null,"Provision for a vandal resistant power distribution kiosk to accommodate the power reticulation on site ","Each",1]
["C32.11",null,"Provision for coordination and works required with the supply authority for the isolation and reinstatement of power as dictated in clause 9 of the electrical system specifications document","Sum",1]
["C32.12",null,"Provision for finding the existing power cable and join,    reroute and terminate to new distribution kiosk next to guardhouse","Sum",1]
["C32.13",null,"Provision for all documentation as listed in clause 11 of the electrical system specification document","Sum",1]
["C32.14",null,"Provide the details of any additional equipment or installation work that might be required. If no details are provided below, the contractor shall not be allowed any claims on this item                                1.                                                                2.                                                                3.                                                                        4.                                                                       5.                                                               6.","Sum",1]
["C33",null,"Buffelshoek Reservoir(two reservoirs, but only one Telemetry building and existing Guardhouse to be upgraded)"]
["C33.1",null,"Telemetry building small power and lighting works","Sum",1]
["C33.2",null,"Telemetry building vandal resistant photovoltaic system","Each",1]
["C33.3",null,"Telemetry building intruder alarm system","Each",1]
["C33.4",null,"Telemetry building earthing and lightning protection","Each",1]
["C33.5",null,"Photovoltaic system earthing and lightning protection","Each",1]
["C33.6",null,"Cables, cable vandal protection systems, cable supports and excavations between photovoltaic system and telemetry building. Allow for 30 meters of cable","Sum",1]
["C33.7",null,"Replace the existing guardhouse distribution board circuit breakers to accommodate the new photovoltaic type installation","Sum",1]
["C33.8",null,"Replace the existing guardhouse building light fittings with new LED type fittings","Sum",1]
["C33.9",null,"Provide for a photovoltaic power system for the existing guardhouse building","Each",1]
["C33.10",null,"Guardhouse building earthing and lightning protection","Each",1]
["C33.11",null,"Guardhouse cabling, cable vandal protection systems, cable supports and excavations between photovoltaic system and building. Allow for 30 meters of cable","Sum",1]
["C33.12",null,"Earthing and lightning protection for the two automation kiosks on top of the reservoirs","Each",2]
["C33.13",null,"Provision for all documentation as listed in clause 11 of the electrical system specification document","Sum",1]
["C33.14",null,"Provide the details of any additional equipment or installation work that might be required. If no details are provided below, the contractor shall not be allowed any claims on this item                                1.                                                                2.                                                                3.                                                                        4.                                                                       5.                                                               6.","Sum",1]
["C34",null,"Modder East Reservoir(one reservoir)"]
["C34.1",null,"Telemetry building small power and lighting works","Sum",1]
["C34.2",null,"DC battery backup power system","Each",1]
["C34.3",null,"Telemetry building intruder alarm system","Each",1]
["C34.4",null,"Telemetry building earthing and lightning protection","Each",1]
["C34.5",null,"Cables, cable vandal protection systems, cable supports and excavations between telemetry building and the power source on site. Allow for 40 meters of cable","Sum",1]
["C34.6",null,"Guardhouse building small power and lighting works","Each",1]
["C34.7",null,"Guardhouse building earthing and lightning protection","Each",1]
["C34.8",null,"Guardhouse cabling, cable vandal protection systems, cable supports and excavations between  building and power source on site .Allow for 100 meters of cable","Sum",1]
["C34.9",null,"Earthing and lightning protection for the  automation kiosk on top of the reservoir","Each",1]
["C34.10",null,"Provision for all documentation as listed in clause 11 of the electrical system specification document","Sum",1]
["C34.11",null,"Provide the details of any additional equipment or installation work that might be required. If no details are provided below, the contractor shall not be allowed any claims on this item                                1.                                                                2.                                                                3.                                                                        4.                                                                       5.                                                               6.","Sum",1]
["C35",null,"Benoni Depot(two reservoirs, but only one Telemetry building)"]
["C35.1",null,"Telemetry building small power and lighting works","Sum",1]
["C35.2",null,"DC battery backup power system","Each",1]
["C35.3",null,"Telemetry building intruder alarm system","Each",1]
["C35.4",null,"Telemetry building earthing and lightning protection","Each",1]
["C35.5",null,"Cables, cable vandal protection systems, cable supports and excavations between telemetry building and the existing power source on site. Allow for 80 meters of cable","Sum",1]
["C35.6",null,"Earthing and lightning protection for the two automation kiosks on top of the reservoirs","Each",2]
["C35.7",null,"Provision for all documentation as listed in clause 11 of the electrical system specification document","Sum",1]
["C35.8",null,"Provide the details of any additional equipment or installation work that might be required. If no details are provided below, the contractor shall not be allowed any claims on this item                                1.                                                                2.                                                                3.                                                                        4.                                                                       5.                                                               6.","Sum",1]
["C36",null,"Vlakfontein Reservoir(two reservoirs, but only one Telemetry building and one Guardhouse)"]
["C36.1",null,"Telemetry building small power and lighting works","Sum",1]
["C36.2",null,"DC battery backup power system","Each",1]
["C36.3",null,"Telemetry building intruder alarm system","Each",1]
["C36.4",null,"Telemetry building earthing and lightning protection","Each",1]
["C36.5",null,"Cables, cable vandal protection systems, cable supports and excavations between telemetry building and the power source on site. Allow for 30 meters of cable","Sum",1]
["C36.6",null,"Guardhouse building small power and lighting works","Each",1]
["C36.7",null,"Guardhouse building earthing and lightning protection","Each",1]
["C36.8",null,"Guardhouse cabling, cable vandal protection systems, cable supports and excavations between  building and power source on site. Allow for 120 meters of cable ","Sum",1]
["C36.9",null,"Earthing and lightning protection for the two automation kiosks on top of the reservoirs","Each",2]
["C36.10",null,"Provision for a new vandal resistant power distribution kiosk to replace the existing power kiosk on site","Each",1]
["C36.11",null,"Provision for all documentation as listed in clause 11 of the electrical system specification document","Sum",1]
["C36.12",null,"Provide the details of any additional equipment or installation work that might be required. If no details are provided below, the contractor shall not be allowed any claims on this item                                1.                                                                2.                                                                3.                                                                        4.                                                                       5.                                                               6.","Sum",1]
["C37",null,"Brakpan Depot(three reservoirs, but only one Telemetry building)"]
["C37.1",null,"Telemetry building small power and lighting works","Sum",1]
["C37.2",null,"DC battery backup power system","Each",1]
["C37.3",null,"Telemetry building intruder alarm system","Each",1]
["C37.4",null,"Telemetry building earthing and lightning protection","Each",1]
["C37.5",null,"Cables, cable vandal protection systems, cable supports and excavations between telemetry building and the power source on site. Allow for 50 meters of cable","Sum",1]
["C37.6",null,"Earthing and lightning protection for the three automation kiosks on top of the reservoirs","Each",3]
["C37.7",null,"Provision for all documentation as listed in clause 11 of the electrical system specification document","Sum",1]
["C37.8",null,"Provide the details of any additional equipment or installation work that might be required. If no details are provided below, the contractor shall not be allowed any claims on this item                                1.                                                                2.                                                                3.                                                                        4.                                                                       5.                                                               6.","Sum",1]
["C38",null,"Selcourt Reservoir(one reservoir)"]
["C38.1",null,"Telemetry building small power and lighting works","Sum",1]
["C38.2",null,"DC battery backup power system","Each",1]
["C38.3",null,"Telemetry building intruder alarm system","Each",1]
["C38.4",null,"Telemetry building earthing and lightning protection","Each",1]
["C38.5",null,"Cables, cable vandal protection systems, cable supports and excavations between telemetry building and the power source on site. Allow for 60 meters of cable","Sum",1]
["C38.6",null,"Guardhouse building small power and lighting works","Each",1]
["C38.7",null,"Guardhouse building earthing and lightning protection","Each",1]
["C38.8",null,"Guardhouse cabling, cable vandal protection systems, cable supports and excavations between  building and power source on site ","Sum",1]
["C38.9",null,"Earthing and lightning protection for the  automation kiosk on top of the reservoir","Each",1]
["C38.10",null,"Provision for all documentation as listed in clause 11 of the electrical system specification document","Sum",1]
["C38.11",null,"Provide the details of any additional equipment or installation work that might be required. If no details are provided below, the contractor shall not be allowed any claims on this item                                1.                                                                2.                                                                3.                                                                        4.                                                                       5.                                                               6.","Sum",1]
[null,null,"Municipal Reservoirs"]
["C39",null,"Thlabani Reservoir(one reservoir)"]
["C39.1",null,"Photovoltaic power system for the existing telemetry building on site","Each",1]
["C39.2",null,"Photovoltaic system earthing and lightning protection","Each",1]
["C39.3",null,"Cables, cable vandal protection systems, cable supports and excavations between photovoltaic system and existing telemetry building. Allow for 40 meters of cable","Sum",1]
["C39.4",null,"Earthing and lightning protection for the  automation kiosk on top of the reservoir","Each",1]
["C39.5",null,"Provision for all documentation as listed in clause 11 of the electrical system specification document","Sum",1]
["C39.6",null,"Provide the details of any additional equipment or installation work that might be required. If no details are provided below, the contractor shall not be allowed any claims on this item                                1.                                                                2.                                                                3.                                                                        4.                                                                       5.                                                               6.","Sum",1]
["C40",null,"Bospoort Reservoir(two reservoirs)"]
["C40.1",null,"Photovoltaic power system for the existing telemetry building on site","Each",1]
["C40.2",null,"Photovoltaic system earthing and lightning protection","Each",1]
["C40.3",null,"Cables, cable vandal protection systems, cable supports and excavations between photovoltaic system and existing telemetry building. Allow for 40 meters of cable","Sum",1]
["C40.4",null,"Earthing and lightning protection for the two automation kiosks on top of the reservoirs","Each",2]
["C40.5",null,"Provision for all documentation as listed in clause 11 of the electrical system specification document","Sum",1]
["C40.6",null,"Provide the details of any additional equipment or installation work that might be required. If no details are provided below, the contractor shall not be allowed any claims on this item                                1.                                                                2.                                                                3.                                                                        4.                                                                       5.                                                               6.","Sum",1]
["C41",null,"Heilbron Reservoir(two reservoirs, but only one Telemetry building)"]
["C41.1",null,"Telemetry building small power and lighting works","Sum",1]
["C41.2",null,"DC battery backup power system","Each",1]
["C41.3",null,"Telemetry building intruder alarm system","Each",1]
["C41.4",null,"Telemetry building earthing and lightning protection","Each",1]
["C41.5",null,"Cables, cable vandal protection systems, cable supports and excavations between telemetry building and the existing power source on site. Allow for 30 meters of cable","Sum",1]
["C41.6",null,"Earthing and lightning protection for the two automation kiosks on top of the reservoirs","Each",2]
["C41.7",null,"Provision for all documentation as listed in clause 11 of the electrical system specification document","Sum",1]
["C41.8",null,"Provide the details of any additional equipment or installation work that might be required. If no details are provided below, the contractor shall not be allowed any claims on this item                                1.                                                                2.                                                                3.                                                                        4.                                                                       5.                                                               6.","Sum",1]
["C42",null,"Orangefarms Reservoir(two reservoirs, but only one Telemetry building)"]
["C42.1",null,"Telemetry building small power and lighting works","Sum",1]
["C42.2",null,"Photovoltaic power system for the new telemetry building on site","Each",1]
["C42.3",null,"Photovoltaic system earthing and lightning protection","Each",1]
["C42.4",null,"Cables, cable vandal protection systems, cable supports and excavations between photovoltaic system and new telemetry building. Allow for 30 meters of cable","Sum",1]
["C42.5",null,"Earthing and lightning protection for the two automation kiosks on top of the reservoirs","Each",2]
["C42.6",null,"Provision for all documentation as listed in clause 11 of the electrical system specification document","Sum",1]
["C42.7",null,"Provide the details of any additional equipment or installation work that might be required. If no details are provided below, the contractor shall not be allowed any claims on this item                                1.                                                                2.                                                                3.                                                                        4.                                                                       5.                                                               6.","Sum",1]
["C43",null,"Ennerdale Reservoir(two reservoirs, but only one Telemetry building)"]
["C43.1",null,"Telemetry building small power and lighting works","Sum",1]
["C43.2",null,"Photovoltaic power system for the new telemetry building on site","Each",1]
["C43.3",null,"Photovoltaic system earthing and lightning protection","Each",1]
["C43.4",null,"Cables, cable vandal protection systems, cable supports and excavations between photovoltaic system and new telemetry building. Allow for 40 meters of cable","Sum",1]
["C43.5",null,"Earthing and lightning protection for each automation kiosk on top of reservoirs","Each",2]
["C43.6",null,"Provision for all documentation as listed in clause 11 of the electrical system specification document","Sum",1]
["C43.7",null,"Provide the details of any additional equipment or installation work that might be required. If no details are provided below, the contractor shall not be allowed any claims on this item                                1.                                                                2.                                                                3.                                                                        4.                                                                       5.                                                               6.","Sum",1]
["C44",null,"Yeoville Reservoir(one reservoir)"]
["C44.1",null,"Telemetry building small power and lighting works","Sum",1]
["C44.2",null,"Photovoltaic power system for the new telemetry building on site","Each",1]
["C44.3",null,"Photovoltaic system earthing and lightning protection","Each",1]
["C44.4",null,"Cables, cable vandal protection systems, cable supports and excavations between photovoltaic system and new telemetry building. Allow for 40 meters of cable","Sum",1]
["C44.5",null,"Earthing and lightning protection for the  automation kiosk on top of the reservoir","Each",1]
["C44.6",null,"Provision for all documentation as listed in clause 11 of the electrical system specification document","Sum",1]
["C44.7",null,"Provide the details of any additional equipment or installation work that might be required. If no details are provided below, the contractor shall not be allowed any claims on this item                                1.                                                                2.                                                                3.                                                                        4.                                                                       5.                                                               6.","Sum",1]
["C45",null,"Delmas Reservoir(one reservoir)"]
["C45.1",null,"Telemetry building small power and lighting works","Sum",1]
["C45.2",null,"Photovoltaic power system for the new telemetry building on site","Each",1]
["C45.3",null,"Photovoltaic system earthing and lightning protection","Each",1]
["C45.4",null,"Cables, cable vandal protection systems, cable supports and excavations between photovoltaic system and new telemetry building. Allow for 40 meters of cable","Sum",1]
["C45.5",null,"Earthing and lightning protection for the  automation kiosk on top of the reservoir","Each",1]
["C45.6",null,"Provision for all documentation as listed in clause 11 of the electrical system specification document","Sum",1]
["C45.7",null,"Provide the details of any additional equipment or installation work that might be required. If no details are provided below, the contractor shall not be allowed any claims on this item                                1.                                                                2.                                                                3.                                                                        4.                                                                       5.                                                               6.","Sum",1]
["C46",null,"Bethal No.1 (4.5Ml) Reservoir(one reservoir)"]
["C46.1",null,"Telemetry building small power and lighting works","Sum",1]
["C46.2",null,"DC battery backup power system","Each",1]
["C46.3",null,"Telemetry building intruder alarm system","Each",1]
["C46.4",null,"Telemetry building earthing and lightning protection","Each",1]
["C46.5",null,"Cables, cable vandal protection systems, cable supports and excavations between telemetry building and the existing power source on site. Allow for 40 meters of cable","Sum",1]
["C46.6",null,"Earthing and lightning protection for the  automation kiosk on top of the reservoir","Each",1]
["C46.7",null,"Provision for all documentation as listed in clause 11 of the electrical system specification document","Sum",1]
["C46.8",null,"Provide the details of any additional equipment or installation work that might be required. If no details are provided below, the contractor shall not be allowed any claims on this item                                1.                                                                2.                                                                3.                                                                        4.                                                                       5.                                                               6.","Sum",1]
["C47",null,"Spares & Miscellaneous (Allow for the delivery of all spares to the Main Central Depot site situated in Alberton) "]
["C47.1",null,"Provide for F1 type light fittings as used at the Telemetry building","Each",5,"N/A",null,null,"N/A","N/A"]
["C47.2",null,"Provide for F2 type light fittings as used at the Telemetry building","Each",5,"N/A",null,null,"N/A","N/A"]
["C47.3",null,"Provide for F1 type light fittings as used at the Guardhouse building","Each",5,"N/A",null,null,"N/A","N/A"]
["C47.4",null,"Provide for F2 type light fittings as used at the Guardhouse building","Each",5,"N/A",null,null,"N/A","N/A"]
["C47.5",null,"Provide for F3 type light fittings as used at the Guardhouse building","Each",5,"N/A",null,null,"N/A","N/A"]
["C47.6",null,"Provide for a spare DC Power back up system complete with batteries.","Each",1,"N/A",null,null,"N/A","N/A"]
["C47.7",null,"Provide for a spare photovolatic inverter as used at the Telemetry installations","Each",1,"N/A",null,null,"N/A","N/A"]
["C47.8",null,"Provide for a spare photovolatic inverter as used at the Guardhouse installations","Each",1,"N/A",null,null,"N/A","N/A"]
["C47.9",null,"Provide for the supervision of manufacturing and construction of electrical equipment, including QCP’s, FAT’s and SAT’s.","Sum",1]
[null,null,"Total Carried Forward to Summary Sheet"]

{"sheet":"Schedule D - Civil","index":3,"n_rows":39,"n_cols":9,"rows_kept":39,"merged":[[1,1,1,8],[2,11,2,13],[3,11,3,13],[5,0,6,0],[5,1,6,1],[5,5,6,5],[5,6,6,6],[5,7,6,7]]}
[{"$nulls":8},{"$f":"'Schedule A - P&G'!G1","v":0}]
[null,{"$f":"'Schedule A - P&G'!B2:G2","v":"TENDER FOR THE DESIGN, MANUFACTURE, SUPPLY, DELIVERY, INSTALLATION, CONSTRUCTION, CONFIGURATION, TESTING AND COMMISSSIONING OF TELEMETRY SYSTEMS AND BUILDINGS FOR ALL RAND WATER BWD RESERVOIRS SITES  AND MUNICIPALITIES RESERVOIRS"}]
[]
[{"$nulls":8},"Schedule D: Civil"]
[]
["Item   No.","Payment Refers","Description","Unit","Qty","Design Rate","Manufacture, Supply & Delivery Rate","Installation, Construction, Testing & Commissioning Rate","Total Amount"]
[]
[]
[null,null,"CIVIL EQUIPMENT"]
[1,null,"PRELIMINARY AND GENERAL",1,"Sum"]
[2,null,"GEOTECHNICAL INVESTIGATION ",1,"Sum"]
[3,null,"SERVICE DETECTION",1,"Sum"]
[4,null,"PRELIMINARY DESIGN",1,"Sum"]
[5,null,"DETAILED DESIGN",1,"Sum"]
[6,null,"AS-BUILT DRAWINGS",1,"Sum"]
[]
[7,null,"CONSTRUCTION OF TELEMETRY BUILDING: "]
[8,null,"FOUNDATION",1,"Sum"]
[9,null,"APRON",1,"Sum"]
[10,null,"WALLS",1,"Sum"]
[11,null,"ROOF SLAB",1,"Sum"]
[12,null,"RAMP",1,"Sum"]
[]
[13,null,"CONSTRUCTION OF GUARD HOUSE: "]
[14,null,"FOUNDATION",1,"Sum"]
[15,null,"APRON",1,"Sum"]
[16,null,"RAMP",1,"Sum"]
[17,null,"SEWER",1,"Sum"]
[]
[18,null,"REINSTATEMENT OF SITE",1,"Sum "]
[19,null,"OTHER (CONTRACTOR TO SPECIFY)"]
[]
[]
[null,null,"Schedule D Carried Forward"]
[]
[]
[]
[]
[null,null,"Schedule D Brought Forward to Summary"]

{"sheet":"Schedule E - Mechanical ","index":4,"n_rows":25,"n_cols":9,"rows_kept":25,"merged":[[1,1,1,8],[2,11,2,13],[3,11,3,13],[5,0,6,0],[5,1,6,1],[5,5,6,5],[5,6,6,6],[5,7,6,7]]}
[]
[null,{"$f":"'Schedule A - P&G'!B2:G2","v":"TENDER FOR THE DESIGN, MANUFACTURE, SUPPLY, DELIVERY, INSTALLATION, CONSTRUCTION, CONFIGURATION, TESTING AND COMMISSSIONING OF TELEMETRY SYSTEMS AND BUILDINGS FOR ALL RAND WATER BWD RESERVOIRS SITES  AND MUNICIPALITIES RESERVOIRS"}]
[]
[{"$nulls":8},"Schedule E: Mechanical"]
[]
["Item   No.","Payment Refers","Description","Unit","Qty","Design Rate","Manufacture, Supply & Delivery Rate","Installation, Construction, Testing & Commissioning Rate","Total Amount"]
[]
[]
[null,null,"Mechanical Equipment"]
[1,null,"Supply and delivery of  Louvers  for Telementry building and Guards House at  Resevoir Sites as per drawing number RA 39634/002 and RA 39633/002","Each",132]
[2,null,"Supply and delivery of Turbine Ventilators for Guard Houses and Telementry building at Resevoir Sites as per drawing number RA 39633/002 and RA 39634/00","Each",132]
[3,null,"Maintenance during the defects & liability period.",1,"Sum "]
[]
[4,null,"Documentation & Training "]
[5,null,"Training of Rand Water Personnel",1,"Sum "]
[6,null,"Operation & Maintenance Manuals  (six copies)",1,"Sum"]
[]
[7,null,"Drawings "]
[8,null,"All other equipment /consumables/service  not stated above which are  required to complete and hand over the Installation",1,"Sum"]
[]
[null,null,"Schedule E Carried Forward"]
[]
[]
[]
[null,null,"Schedule E Brought Forward to Summary"]

{"sheet":"Schedule F - Quality","index":5,"n_rows":25,"n_cols":9,"rows_kept":25,"merged":[[1,1,1,8],[2,11,2,13],[3,11,3,13],[5,0,6,0],[5,1,6,1],[5,5,5,6],[5,7,5,8],[6,5,6,6],[6,7,6,8],[7,2,8,2],[7,5,7,6],[7,7,7,8],[8,5,8,6],[8,7,8,8],[9,5,9,6],[9,7,9,8],[10,5,10,6],[10,7,10,8],[11,5,11,6],[11,7,11,8],[12,5,12,6],[12,7,12,8],[13,5,13,6],[13,7,13,8],[14,5,14,6],[14,7,14,8],[15,5,15,6],[15,7,15,8],[16,5,16,6],[16,7,16,8],[17,5,17,6],[17,7,17,8],[18,5,18,6],[18,7,18,8],[19,5,19,6],[19,7,19,8],[20,5,20,6],[20,7,20,8],[21,5,21,6],[21,7,21,8],[22,5,22,6],[22,7,22,8],[23,5,23,6],[23,7,23,8],[24,5,24,6],[24,7,24,8],[25,5,25,6],[25,7,25,8],[26,5,26,6]]}
[]
[null,{"$f":"'Schedule A - P&G'!B2:G2","v":"TENDER FOR THE DESIGN, MANUFACTURE, SUPPLY, DELIVERY, INSTALLATION, CONSTRUCTION, CONFIGURATION, TESTING AND COMMISSSIONING OF TELEMETRY SYSTEMS AND BUILDINGS FOR ALL RAND WATER BWD RESERVOIRS SITES  AND MUNICIPALITIES RESERVOIRS"}]
[]
[{"$nulls":8},"Schedule F: Quality"]
[]
["Item   No.","SAM QA 00030 PR-Spec Clause ","Description","Unit","Qty","Rate",null,"Total Amount"]
[]
[null,null,"Quality Control and Assurance "]
[]
[1,7.1,"The contractor shall prepare and submit the  Quality Management Plan (CQMP), for review and approval prior to commencement of works",1,"Sum"]
[2,7.3,"The contractor shall conduct tests as per the approved Quality Control Plan or Inspection Test Plan activities not specified in the BOQ but included in the QCP/ITP ",1,"Sum"]
[3,"7.5.5","The contractor shall provide a qualified Quality Officer relevant to the scope of work  ",1,"Sum "]
[null,7.4,"The contractor shall Maintain the project  documents for the duration of the project ",1,"Sum"]
[4,"7.5.4","The contractor shall ensure that the  testing Equipment are calibrated and keep resord of the calibration certificates for the project duration ",1,"Sum"]
[5,7.6,"The contractor shall ensure that the special process technician ,artisan are qualified by the accredited body periodically ",1,"Sum "]
[6,7.6,"The contractor shall make provision of any other  testing and inspections requested and appoved  by the Engineer",1,"Sum"]
[]
[]
[]
[]
[null,null,"Schedule F Carried Forward"]
[]
[]
[]
[null,null,"Schedule F Brought Forward to Summary"]

{"sheet":"Schedule G - H&S","index":6,"n_rows":62,"n_cols":8,"rows_kept":62,"merged":[[1,1,1,7],[2,10,2,12],[3,10,3,12],[5,0,6,0],[5,1,6,1],[5,6,5,7],[6,6,6,7],[7,2,8,2],[7,6,7,7],[8,6,8,7],[9,6,9,7],[10,6,10,7],[11,6,11,7],[12,6,12,7],[13,6,13,7],[14,6,14,7],[15,6,15,7],[16,6,16,7],[17,6,17,7],[18,6,18,7],[19,6,19,7],[20,6,20,7],[21,6,21,7],[22,6,22,7],[23,6,23,7],[24,6,24,7],[25,6,25,7],[26,6,26,7],[27,6,27,7],[28,6,28,7],[29,6,29,7],[30,6,30,7],[31,6,31,7],[32,6,32,7],[33,6,33,7],[34,6,34,7],[35,6,35,7],[36,6,36,7],[37,6,37,7],[38,6,38,7],[39,6,39,7],[40,6,40,7],[41,6,41,7],[42,6,42,7],[43,6,43,7],[44,6,44,7],[45,6,45,7],[46,6,46,7],[47,6,47,7],[48,6,48,7],[49,6,49,7],[50,6,50,7],[51,6,51,7],[52,6,52,7],[53,6,53,7],[54,6,54,7],[55,6,55,7],[56,6,56,7],[57,6,57,7],[58,6,58,7],[59,6,59,7],[60,6,60,7],[61,6,61,7],[62,6,62,7],[63,6,63,7],[64,6,64,7]]}
[]
[null,{"$f":"'Schedule A - P&G'!B2:G2","v":"TENDER FOR THE DESIGN, MANUFACTURE, SUPPLY, DELIVERY, INSTALLATION, CONSTRUCTION, CONFIGURATION, TESTING AND COMMISSSIONING OF TELEMETRY SYSTEMS AND BUILDINGS FOR ALL RAND WATER BWD RESERVOIRS SITES  AND MUNICIPALITIES RESERVOIRS"}]
[]
[{"$nulls":7},"Schedule G: H&S"]
[]
["Item   No.","Payment refers","Description","Unit","Qty","Rate","Total Amount"]
[]
[null,null,"Occupational Health and Safety"]
[]
["C.01",null,"Preparation of the Contractor's site specific Health and Safety Plan","  lump sum"]
[]
["C.02",null,"Principal Contractor's initial obligations in respect of the Occupational Health and Safety Act and Construction Regulations","  lump sum"]
[]
["C.03",null,"Principal Contractor's time related obligations in respect of the Occupational Health and Safety Act and Construction Regulations","  month"]
[]
["C.04",null,"Provision of Personal Protective Equipment (PPE)"]
[]
["C.05",null,"Provision of a full-time Construction Health and Safety Officer"," month"]
[]
["C.06",null,"Cost of medical certificates and medical surveillance"]
[]
[null,null,"(a) Initial (baseline) medical examinations","lump sum"]
[]
[null,null,"(b) Periodic  examinations","lump sum"]
[]
[null,null,"(c)Exit examinations","lump sum"]
[]
["C.07",null,"Induction training","lump sum"]
[]
["C.08",null,"Provision of First Aid Boxes to GSR requirements and other emergency safety equipment such as fire extinguishers.","lump sum"]
[]
["C.09",null,"Transportation of Workers","lump sum"]
[]
["C.10",null,"Welfare Facilities","lump sum"]
[]
["C.11",null,"Occupational Hygiene Surveys","lump sum"]
[]
["C.12",null,"Training","lump sum"]
[]
["C.13",null,"Security requirements including the security risk assessment (before site establishment)","  lump sum"]
[]
["C.14",null,"Employee wellness programs","lump sum"]
[]
["C.15",null,"Drug and Alcohol Testing, Policies and Procedures","lump sum"]
[]
["C.16",null,"Barricading","lump sum"]
[]
["C.17",null,"Safety notices and signs","lump sum"]
[]
["C.18",null,"SHE  Incentives","lump sum"]
[]
[]
["C.20",null,"Adequate ventilation and lighting during construction","lump sum"]
[]
["C.21",null,"Submission of the Health and Safety File (hard and soft copies)","lump sum"]
[]
[]
[null,null,"Schedule G Carried Forward"]
[]
[]
[]
[null,null,"Schedule G Brought Forward to Summary"]

{"sheet":"Schedule  H-Environmental","index":7,"n_rows":55,"n_cols":9,"rows_kept":55,"merged":[[0,1,1,7],[2,11,2,13],[3,11,3,13],[5,0,6,0],[11,0,15,0],[21,0,26,0],[28,0,30,0]]}
[null,{"$f":"'Schedule A - P&G'!B2:G2","v":"TENDER FOR THE DESIGN, MANUFACTURE, SUPPLY, DELIVERY, INSTALLATION, CONSTRUCTION, CONFIGURATION, TESTING AND COMMISSSIONING OF TELEMETRY SYSTEMS AND BUILDINGS FOR ALL RAND WATER BWD RESERVOIRS SITES  AND MUNICIPALITIES RESERVOIRS"}]
[]
[]
[{"$nulls":8},"Schedule H: Environmental "]
[]
["Item   No.","Environmental specification item","Description","Unit","Qty","Rate","Total Amount"]
[]
[1,7.1,"Administrative requirements as per environmental specification.                                             • Understanding of compliance\n• Preparation of environmental file and work program approval.\n• Preparations of method statements\n• Maintaining of auditing of site compliances\n• Reporting of environmental incidence\n• Signing off of work for payment \n• Emergency preparedness retainement for external services\n• Programme scheduling details of administrative matters:\n","Sum",1]
[]
[2,"7.1.1","Appointment of a qualified on site environmental officer with a minimum of one year’s appropriate experience","rate",1]
[null,7.2,"Emergency preparedness funding"]
[3,null,"a)          Provision for bee, snake and other fauna removal","Sum",1]
[null,null,"b)          Provision for hydrocarbon spillages that require intervention from professional clean up provider"]
[null,null,"c)           Provision to clean up sewage spillages"]
[null,null,"d)          Equipment for fire fighting"]
[null,null,"e)          Call out of fire department"]
[4,7.3,"Environmental awareness and training ",null,1]
[null,null,"The rate for this item shall include costs for environmental awareness and training","Sum",1]
[5,7.4,"Social integration of the project to the public "]
[null,null,"The rate for this item shall include costs for establishment of construction campsite and working areas","Sum",1]
[6,7.5,"Establishment of site camp and works area.","Sum",1]
[7,null,"Signage The rate for this item must cover all expenses incurred in preparing signage at the entrance of the site offices indicating the following information ","Sum",1]
[null,null,"·        The contractor’s contact numbers"]
[null,null,"·        Authorisations details"]
[null,null,"·        ECO details "]
[null,null,"·        Emergency numbers and provision for: – snake removal, bee removal, fire, large hydrocarbon spillages, sewerage spillages"]
[null,null,"Signage measuring 30mmx30mm must also be made available for no go areas."]
[null,null,"Barricading and demarcation","sum",1]
[8,null,"a.      Screening for unsightly works"]
[null,null,"b.     Clear demarcating of the working foot print"]
[null,null,"c.      Barricading of sensitive no go areas"]
[]
[null,7.6,"Pollution prevention and preservation of environmental resources ","sum",1]
[null,null,"The rate for this item shall include costs for  pollution prevention and preservation of environmental resources",null,1]
[9,null,"a) Cleaning the site of litter and rubble","rate",1]
[10,null,"b)Weed control on site","rate",1]
[11,null,"C)          Waste bins and receptacles that comply with the waste clauses of the Environmental specification."]
[12,null,"c)  Appropriate skips for waste separation"]
[13,null,"d)General waste Waste removal","Rate per skip",1]
[14,null,"e)Hazardous waste Waste removal","Rate per skip",1]
[15,null,"f)Recycled waste management  Waste removal","Rate per Skip",1]
[16,null,"g) Spillage kits to clean up spillages  ","sum",1]
[17,null,"h) Hard impervious surfaces for storage of chemicals"]
[18,null,"i)Bunding facility for hazardous products"]
[19,null,"J)          Labelled containers for decanting of liquids"]
[{"$nulls":4},1]
[20,7.7,"Preservation of the environment: fauna ,flora, scenic value,  Archaeological artefacts","Lump Sum",1]
[null,null,"Erosion control and silt management The amount shall represent the costs associated with the practice of preventing or controlling wind or water erosion during construction. The erosion control measures must effectively prevent water pollution, soil loss, wildlife habitat loss and human property loss.  The rate shall also include the costs of silt control where devices shall be designed to keep eroded soil on a construction site, so that it does not wash off and cause water pollution to a nearby stream, river, lake, or dam.","Lump Sum",1]
[21,7.8,"Retention provision for final clean up inspection of the site ","rate",1]
[]
[null,null,"Schedule  H Carried Forward"]
[]
[]
[]
[null,null,"Schedule H  Brought Forward to Summary"]

{"sheet":"Sheet2","index":8,"n_rows":0,"n_cols":0,"rows_kept":0}

{"sheet":"Sheet1","index":9,"n_rows":0,"n_cols":0,"rows_kept":0}

{"sheet":"Summary","index":10,"n_rows":28,"n_cols":4,"rows_kept":28,"merged":[[1,1,1,2],[2,1,3,1],[4,0,5,2],[6,0,7,0],[6,1,7,1],[6,2,7,2],[24,0,24,1],[25,0,25,1],[26,0,26,1],[28,0,28,1]]}
[{"$f":"'Schedule A - P&G'!A1","v":0},null,{"$f":"'Schedule A - P&G'!G1","v":0}]
[{"$f":"'Schedule A - P&G'!A2","v":0},{"$f":"'Schedule A - P&G'!B2:G2","v":"TENDER FOR THE DESIGN, MANUFACTURE, SUPPLY, DELIVERY, INSTALLATION, CONSTRUCTION, CONFIGURATION, TESTING AND COMMISSSIONING OF TELEMETRY SYSTEMS AND BUILDINGS FOR ALL RAND WATER BWD RESERVOIRS SITES  AND MUNICIPALITIES RESERVOIRS"}]
[{"$f":"'Schedule A - P&G'!A4","v":0},{"$f":"'Schedule A - P&G'!C4","v":0}]
[]
["SUMMARY OF BILL OF QUANTITIES"]
[]
["SCHEDULE","DESCRIPTION","AMOUNT"]
[]
[]
["A","Preliminary and General",null,{"$f":"SUM(C11:C17)*0.4","v":{"v":0,"d":"R 0.00"}}]
["B","Automation",null,{"$f":"C11","v":{"v":0,"d":"R 0.00"}}]
["C","Electrical ",null,{"$f":"C12","v":{"v":0,"d":"R 0.00"}}]
["D","Civil",null,{"v":0,"d":"R 0.00"}]
["E","Mechanical",null,{"v":0,"d":"R 0.00"}]
["F","Quality"]
["G","SHE"]
{"$rows_empty":8}
["SUB TOTAL A",null,null,{"$f":"SUM(D11:D17)+D10","v":{"v":0,"d":"R 0.00"}}]
["ADD 15% FOR VAT"]
["TOTAL"]
[null,"Total Carried forward to the Form of Offer of the Commercial Document"]

{"sheet":"Mechanical","index":11,"n_rows":0,"n_cols":0,"rows_kept":0,"hidden":true,"merged":[[5,0,6,0],[5,1,6,2],[5,3,6,3],[5,4,6,4],[5,5,6,5],[5,6,6,6],[7,1,7,2],[8,1,8,2],[9,1,9,2],[10,1,10,2],[11,1,11,2],[12,1,12,2],[13,1,13,2],[14,1,14,2],[15,1,15,2],[16,0,17,0],[16,1,16,2],[16,3,17,3],[16,4,17,4],[16,5,17,5],[16,6,17,6],[16,7,17,7],[17,1,17,2],[18,0,19,0],[18,1,19,2],[18,3,19,3],[18,4,19,4],[18,5,19,5],[18,6,19,6],[18,7,19,7],[20,1,20,2],[21,1,21,2],[22,1,22,2],[23,1,23,2],[24,1,24,2],[25,1,25,2],[26,1,26,2],[27,1,27,2],[28,1,28,2],[29,1,29,2],[30,1,30,2],[31,1,31,2],[32,1,32,2],[33,1,33,2],[34,1,34,2],[35,1,35,2],[36,1,36,2],[37,0,37,5],[42,0,42,6],[45,1,45,7]]}